Workbook

Sheet Biodiesel Coefficients (hidden)
D1: kg/gallon | H1: MMBTU/Gal | J1: For inventory sheet:
B2: Fuel type | C2: Use type | D2: CO2 | E2: CH4 | F2: N2O | G2: CO2e | H2: Energy | J2: Fuel type | K2: bio % | L2: CO2e (Mton/gal) | M2: MMBTU/gal
A3: Buildings | B3: #2 residential, commercial, institutional | C3: Residential, commercial, industrial buildings | D3: 10.20648 | E3: 0.001518 | F3: 8.28e-05 | G3: 10.264026 | J3: None | L3: 0 | M3: 0
B4: #2 industrial (DEP) | C4: DEP facilities | D4: 10.20648 | E4: 0.000414 | F4: 8.28e-05 | G4: 10.240842 | J4: No. 2 Oil with B5 Blend | K4: 0.05 | L4: =(((1-K4)*$G$17)+(K4*$G$11))/1000 -> 0.01022376678 | M4: =(((1-K4)*$H$17)+(K4*$H$11)) -> 0.1375
A5: Vehicles | B5: Diesel passenger cars | C5: Passenger cars | D5: 10.21 | E5: 7.909650777e-06 | F5: 1.581930155e-05 | G5: 10.21507009 | J5: No. 2 Oil with B10 Blend | K5: 0.1 | L5: =(((1-K5)*$G$17)+(K5*$G$11))/1000 -> 0.01018350756 | M5: =(((1-K5)*$H$17)+(K5*$H$11)) -> 0.137
B6: Diesel light trucks | C6: Light trucks | D6: 10.21 | E6: 1.019647263e-05 | F6: 1.534620628e-05 | G6: 10.21497145 | J6: No. 2 Oil with B20 Blend | K6: 0.2 | L6: =(((1-K6)*$G$17)+(K6*$G$11))/1000 -> 0.01010298912 | M6: =(((1-K6)*$H$17)+(K6*$H$11)) -> 0.136
B7: Diesel heavy-duty vehicles | C7: Heavy trucks | D7: 10.21 | E7: 4.380739352e-05 | F7: 4.123048802e-05 | G7: 10.22370141 | J7: No. 2 Oil with B50 Blend | K7: 0.5 | L7: =(((1-K7)*$G$17)+(K7*$G$11))/1000 -> 0.0098614338 | M7: =(((1-K7)*$H$17)+(K7*$H$11)) -> 0.133
B8: Diesel bus | C8: Buses | D8: 10.21 | E8: 6.458443998e-05 | F8: 6.078535527e-05 | G8: 10.23019973 | J8: B100 Blend | K8: 1 | L8: =(((1-K8)*$G$17)+(K8*$G$11))/1000 -> 0.0094588416 | M8: =(((1-K8)*$H$17)+(K8*$H$11)) -> 0.128
B9: Diesel - off-road | C9: Off-road | D9: 10.21 | E9: =0.58/1000 -> 0.00058 | F9: =0.26/1000 -> 0.00026 | G9: =D9+(E9*21)+(F9*310) -> 10.30278 | J9: Biodiesel Blend (Select Type) | K9: 0 | L9: (Selection needed) | M9: (Selection needed)
B10: Diesel - marine | C10: Marine vessels | D10: 10.21 | E10: =0.74/1000 -> 0.00074 | F10: =0.26/1000 -> 0.00026 | G10: =D10+(E10*21)+(F10*310) -> 10.30614
A11: Biodiesel | B11: biodiesel (100%) | C11: All | D11: 9.45152 | E11: 0.0001408 | F11: 1.408e-05 | G11: 9.4588416 | H11: =0.128 -> 0.128
J12: For campus sheet:
J13: Fuel type | K13: bio % | L13: CO2e (Mton/gal) | M13: MMBTU/gal
D14: Emissions coefficients (non-bio) | J14: None
D15: kg/gallon | H15: MMBTU/Gal | J15: No. 2 Oil with B5 Blend | K15: 0.05 | L15: =(((1-K15)*$G$17)+(K15*$G$11))/1000 -> 0.01022376678 | M15: =(((1-K15)*$H$17)+(K15*$H$11)) -> 0.1375
D16: CO2 | E16: CH4 | F16: N2O | G16: CO2e | H16: Energy | J16: No. 2 Oil with B10 Blend | K16: 0.1 | L16: =(((1-K16)*$G$17)+(K16*$G$11))/1000 -> 0.01018350756 | M16: =(((1-K16)*$H$17)+(K16*$H$11)) -> 0.137
D17: 10.20648 | E17: 0.001518 | F17: 8.28e-05 | G17: 10.264026 | H17: 0.138 | J17: No. 2 Oil with B20 Blend | K17: 0.2 | L17: =(((1-K17)*$G$17)+(K17*$G$11))/1000 -> 0.01010298912 | M17: =(((1-K17)*$H$17)+(K17*$H$11)) -> 0.136
J18: No. 2 Oil with B50 Blend | K18: 0.5 | L18: =(((1-K18)*$G$17)+(K18*$G$11))/1000 -> 0.0098614338 | M18: =(((1-K18)*$H$17)+(K18*$H$11)) -> 0.133
J19: B100 Blend | K19: 1 | L19: =(((1-K19)*$G$17)+(K19*$G$11))/1000 -> 0.0094588416 | M19: =(((1-K19)*$H$17)+(K19*$H$11)) -> 0.128
J20: Biodiesel (Select Type) | K20: 0 | L20: 0 | M20: 0

Sheet New Inventory
D3: NYC Carbon Challenge - Commercial Offices | J3: Name of Company | K3: City Hall
D4: Carbon Emissions Inventory
J5: Submission Year | K5: 2015
J7: Base Year | K7: 2007 | N7: Square Feet
N8: FTE
J9: Normalization Factor | K9: FTE
N10: g
J11: NYC Carbon Challenge Goal | K11: 0.5 | N11: 0.3
N12: 0.4
J13: Submission Year Carbon Intensity (lbs CO2e/SF) | K13: =IF($K$5=2005,$K$76, IF($K$5=2006,$K$123, IF($K$5=2007,$K$170, IF($K$5=2008,$K$217, IF($K$5=2009,$K$264, IF($K$5=2010,$K$311, IF($K$5=2011,$K$358, IF($K$5=2012,$K$405, IF($K$5=2013,$K$452, IF($K$5=2014,$K$499, IF($K$5=2015,$K$546, IF($K$5=2016,$K$593, IF($K$5=2017,$K$640, IF($K$5=2018,$K$687, IF($K$5=2019,$K$734, IF($K$5=2020,$K$781, IF($K$5=0,0))))))))))))))))) -> 8004.742978 | N13: 0.5
J15: =IF(K9="Square Feet","Base Year Carbon Intensity (lbs CO2e/SF)", "Base Year Carbon Intensity (lbs CO2e/FTE)") -> Base Year Carbon Intensity (lbs CO2e/FTE) | K15: =IF($K$7=2005,$K$76, IF($K$7=2006,$K$123, IF($K$7=2007,$K$170, IF($K$7=2008,$K$217, IF($K$7=2009,$K$264, IF($K$7=2010,$K$311, IF($K$7=2011,$K$358, IF($K$7=2012,$K$405, IF($K$7=2013,$K$452, IF($K$7=2014,$K$499, IF($K$7=0,0))))))))))) -> 10776.1188
J17: =IF(AND(K9="Square Feet", K11=30%),"30% Reduction Goal (lbs CO2e/SF)", IF(AND(K9="Square Feet", K11=40%), "40% Reduction Goal (lbs CO2e/SF)", IF(AND(K9="FTE", K11=50%), "50% Reduction Goal (lbs CO2e/FTE)", IF(AND(K9="Square Feet", K11=50%), "50% Reduction Goal (lbs CO2e/SF)", IF(AND(K9="FTE", K11=30%), "30% Reduction Goal (lbs CO2e/FTE)", "40% Reduction Goal (lbs CO2e/FTE)"))))) -> 50% Reduction Goal (lbs CO2e/FTE) | K17: =IF(ISBLANK(K13),"",IF($K$11=30%,PRODUCT($K$15,0.7),IF($K$11=40%,PRODUCT($K$15,0.6),IF($K$11=50%,PRODUCT($K$15,0.5),"")))) -> 5388.059401
C22: Additional Information | E22: Additional Information | N22: Tenant
N23: Owner-Occupier
E24: Participant Type | F24: Owner-Occupier | J24: Properties < 10,000 SF Included | K24: Yes
N25: New York City
E26: Covered Area | F26: New York City | J26: Retail Space Included | K26: No | N26: Tri-State Area
E28: Data Centers Included | F28: Yes | N28: Yes
N29: No
E32: 2005 | F32: =IF('New Inventory'!$K$7=2005,"Base Year", "") -> 
E34: Energy Use
E35: Fuel Type | F35: Fuel Consumed | G35: Units | H35: CO2e Coefficient | I35: MMBtu Coefficient | J35: MMBTUs | K35: CO2e (Mtons)
C36: 2000
E37: Electricity | G37: kWh | H37: =VLOOKUP($C36,[7]Coefficients!$A$5:$AB$25,3) -> 0.0004227035007 | I37: =(VLOOKUP(C36,[7]Coefficients!$A$5:$AB$25,2)) -> 0.009546 | J37: =$I37*$F37 -> 0 | K37: =$H37*$F37 -> 0
E38: Natural Gas | G38: Therms | H38: =VLOOKUP(C36,[7]Coefficients!$A$5:$AB$25,5) -> 0.0053156 | I38: =VLOOKUP(C36,[7]Coefficients!$A$5:$AB$25,4) -> 0.1 | J38: =$I38*$F38 -> 0 | K38: =$H38*$F38 -> 0
E39: Distillate Fuel Oil (#2) | G39: US Gallons | H39: =VLOOKUP(C36,[7]Coefficients!$A$5:$AB$25,7) -> 0.010264026 | I39: =VLOOKUP(C36,[7]Coefficients!$A$5:$AB$25,6) -> 0.138 | J39: =$I39*$F39 -> 0 | K39: =$H39*$F39 -> 0
E40: Distillate Fuel Oil (#4) | G40: US Gallons | H40: =VLOOKUP(C36,[7]Coefficients!$A$5:$AB$25,9) -> 0.011016722 | I40: =VLOOKUP(C36,[7]Coefficients!$A$5:$AB$25,8) -> 0.146 | J40: =$I40*$F40 -> 0 | K40: =$H40*$F40 -> 0
E41: Residual Fuel Oil (#6) | G41: US Gallons | H41: =VLOOKUP(C36,[7]Coefficients!$A$5:$AB$25,11) -> 0.01132755 | I41: =VLOOKUP(C36,[7]Coefficients!$A$5:$AB$25,10) -> 0.15 | J41: =$I41*$F41 -> 0 | K41: =$H41*$F41 -> 0
E42: Biodiesel Blend (Select Type) | G42: US Gallons | H42: =VLOOKUP(E42,'[7]Biodiesel Coefficients'!$J$2:$M$9, 3,FALSE) -> (Selection needed) | I42: =VLOOKUP(E42,'[7]Biodiesel Coefficients'!$J$2:$M$9, 4,FALSE) -> (Selection needed) | J42: =IFERROR($I42*$F42,0) -> 0 | K42: =IFERROR($H42*$F42,0) -> 0
E43: On-Site Renewable Electricity | G43: kWh | H43: 0 | I43: 0.0034121412 | J43: =IFERROR($I43*$F43,0) -> 0 | K43: =IFERROR($H43*$F43,0) -> 0
E44: Off-Site Renewable Electricity | G44: kWh | H44: -0.0004227035007 | I44: 0 | J44: =$I44*$F44 -> 0 | K44: =$H44*$F44 -> 0
E45: Diesel Fuel (Back-up Gen.) | G45: US Gallons | H45: =VLOOKUP(C36,[7]Coefficients!$A$5:$AB$25,13) -> 0.010264026 | I45: =VLOOKUP(C36,[7]Coefficients!$A$5:$AB$25,12) -> 0.138 | J45: =$I45*$F45 -> 0 | K45: =$H45*$F45 -> 0
E46: District Steam | G46: Mlbs | H46: =VLOOKUP(C36,[7]Coefficients!$A$5:$AB$25,15) -> 0.086629611 | I46: =VLOOKUP(C36,[7]Coefficients!$A$5:$AB$25,14) -> 1.33015 | J46: =$I46*$F46 -> 0 | K46: =$H46*$F46 -> 0
H48: TOTAL | J48: =SUM(J37:J46) -> 0 | K48: =SUM(K37:K46) -> 0
E49: Waste (optional)
F50: Waste Type | G50: Weight | H50: Waste Characterization % | I50: Units | J50: CO2e Coefficient | K50: CO2e (Mtons)
E51: Was a physical waste audit completed in the past 5 years?
F52: Unsorted MSW | H52: =IF(E54="yes", "", 100%) -> 1 | I52: Tons | J52: ='[7]Waste Coeff.'!$D$9 -> 0.819 | K52: =IF($E53="Yes", "", $G52*$J52) -> 0
E53: No | F53: Mixed Recyclables | G53: =$G52*H53 -> 0 | I53: Tons | J53: ='[7]Waste Coeff.'!$D$10 -> 0.416475 | K53: =IF($E53="No", "", $G53*$J53) -> 
E54: =IF(E53="yes","Enter % values in waste characterization column","Ignore waste characterization column") -> Ignore waste characterization column | F54: Food Scraps/Organics | G54: =$G52*H54 -> 0 | I54: Tons | J54: ='[7]Waste Coeff.'!$D$11 -> 0.2821275 | K54: =IF($E53="No", "", $G54*$J54) -> 
F55: Sorted MSW | G55: =$G52*H55 -> 0 | I55: Tons | J55: ='[7]Waste Coeff.'!$D$9 -> 0.819 | K55: =IF($E53="No", "", $G55*$J55) -> 
E56: Yes | F56: Recycled | I56: Tons | J56: 0 | K56: =$J56*$G56 -> 0
E57: No | F57: Composted | I57: Tons | J57: 0 | K57: =$J57*$G57 -> 0
J59: TOTAL | K59: =IF($E53="yes",SUM(K53:K57),SUM(K52,K56:K57)) -> 0
E60: Fleets (optional)
F61: Fuel Type | H61: Fuel Consumed | I61: Units | J61: CO2 Coefficient | K61: CO2 (Mtons)
F63: Gasoline | I63: Gallons | J63: ='[7]Fleets Coeff.'!$D$5 -> 0.008477 | K63: =$H63*$J63 -> 0
F64: Diesel Fuel (Distillate No. 2) | I64: Gallons | J64: ='[7]Fleets Coeff.'!$D$6 -> 0.01021 | K64: =$H64*$J64 -> 0
F65: Biodiesel (B20) | I65: Gallons | J65: ='[7]Fleets Coeff.'!$D$7 -> 0.0086716 | K65: =$H65*$J65 -> 0
F66: Biodiesel (B5) | I66: Gallons | J66: ='[7]Fleets Coeff.'!$D$8 -> 0.00852565 | K66: =$H66*$J66 -> 0
J68: TOTAL | K68: =SUM(K63:K66) -> 0
J70: TOTAL CO2e* | K70: =SUM($K48,$K59,$K68) -> 0
J72: =IF($K$9="Square Feet","Square Feet", "FTE") -> FTE
J74: =IF($K$9="Square Feet","Energy Intensity (MMBTU/SF)", "Energy Intensity (MMBTU/FTE)") -> Energy Intensity (MMBTU/FTE) | K74: =IF(ISERR((J48)/K72),"",((J48)/K72)) -> 
J76: =IF($K$9="Square Feet","Carbon Intensity (lbs CO2e/SF)", "Carbon Intensity (lbs CO2e/FTE)") -> Carbon Intensity (lbs CO2e/FTE) | K76: =IF(ISERR((K70*2204.62)/K72),"",((K70*2204.62)/K72)) -> 
E79: 2006 | F79: =IF($K$7=2006,"Base Year", "") -> 
E81: Energy Use
E82: Fuel Type | F82: Fuel Consumed | G82: Units | H82: CO2e Coefficient | I82: MMBtu Coefficient | J82: MMBTUs | K82: CO2e (Mtons)
C83: 2000
E84: Electricity | G84: kWh | H84: =VLOOKUP($C83,[7]Coefficients!$A$5:$AB$25,3) -> 0.0004227035007 | I84: =VLOOKUP(C83,[7]Coefficients!$A$5:$AB$25,2) -> 0.009546 | J84: =$I84*$F84 -> 0 | K84: =$H84*$F84 -> 0
E85: Natural Gas | G85: Therms | H85: =VLOOKUP(C83,[7]Coefficients!$A$5:$AB$25,5) -> 0.0053156 | I85: =VLOOKUP(C83,[7]Coefficients!$A$5:$AB$25,4) -> 0.1 | J85: =$I85*$F85 -> 0 | K85: =$H85*$F85 -> 0
E86: Distillate Fuel Oil (#2) | G86: US Gallons | H86: =VLOOKUP(C83,[7]Coefficients!$A$5:$AB$25,7) -> 0.010264026 | I86: =VLOOKUP(C83,[7]Coefficients!$A$5:$AB$25,6) -> 0.138 | J86: =$I86*$F86 -> 0 | K86: =$H86*$F86 -> 0
E87: Distillate Fuel Oil (#4) | G87: US Gallons | H87: =VLOOKUP(C83,[7]Coefficients!$A$5:$AB$25,9) -> 0.011016722 | I87: =VLOOKUP(C83,[7]Coefficients!$A$5:$AB$25,8) -> 0.146 | J87: =$I87*$F87 -> 0 | K87: =$H87*$F87 -> 0
E88: Residual Fuel Oil (#6) | G88: US Gallons | H88: =VLOOKUP(C83,[7]Coefficients!$A$5:$AB$25,11) -> 0.01132755 | I88: =VLOOKUP(C83,[7]Coefficients!$A$5:$AB$25,10) -> 0.15 | J88: =$I88*$F88 -> 0 | K88: =$H88*$F88 -> 0
E89: Biodiesel Blend (Select Type) | G89: US Gallons | H89: =VLOOKUP(E89,'[7]Biodiesel Coefficients'!$J$2:$M$9, 3,FALSE) -> (Selection needed) | I89: =VLOOKUP(E89,'[7]Biodiesel Coefficients'!$J$2:$M$9, 4,FALSE) -> (Selection needed) | J89: =IFERROR($I89*$F89,0) -> 0 | K89: =IFERROR($H89*$F89,0) -> 0
E90: On-Site Renewable Electricity | G90: kWh | H90: 0 | I90: 0.0034121412 | J90: =IFERROR($I90*$F90,0) -> 0 | K90: =IFERROR($H90*$F90,0) -> 0
E91: Off-Site Renewable Electricity | G91: kWh | H91: -0.0004227035007 | I91: 0 | J91: =$I91*$F91 -> 0 | K91: =$H91*$F91 -> 0
E92: Diesel Fuel (Back-up Gen.) | G92: US Gallons | H92: =VLOOKUP(C83,[7]Coefficients!$A$5:$AB$25,13) -> 0.010264026 | I92: =VLOOKUP(C83,[7]Coefficients!$A$5:$AB$25,12) -> 0.138 | J92: =$I92*$F92 -> 0 | K92: =$H92*$F92 -> 0
E93: District Steam | G93: Mlbs | H93: =VLOOKUP(C83,[7]Coefficients!$A$5:$AB$25,15) -> 0.086629611 | I93: =VLOOKUP(C83,[7]Coefficients!$A$5:$AB$25,14) -> 1.33015 | J93: =$I93*$F93 -> 0 | K93: =$H93*$F93 -> 0
H95: TOTAL | J95: =SUM(J84:J93) -> 0 | K95: =SUM(K84:K93) -> 0
E96: Waste (optional)
F97: Waste Type | G97: Weight | H97: Waste Characterization % | I97: Units | J97: CO2e Coefficient | K97: CO2e (Mtons)
E98: Was a physical waste audit completed in the past 5 years?
F99: Unsorted MSW | H99: =IF(E101="yes", "", 100%) -> 1 | I99: Tons | J99: ='[7]Waste Coeff.'!$D$9 -> 0.819 | K99: =IF($E100="Yes", "", $G99*$J99) -> 0
E100: No | F100: Mixed Recyclables | G100: =$G99*H100 -> 0 | I100: Tons | J100: ='[7]Waste Coeff.'!$D$10 -> 0.416475 | K100: =IF($E100="No", "", $G100*$J100) -> 
E101: =IF(E100="yes","Enter % values in waste characterization column","Ignore waste characterization column") -> Ignore waste characterization column | F101: Food Scraps/Organics | G101: =$G99*H101 -> 0 | I101: Tons | J101: ='[7]Waste Coeff.'!$D$11 -> 0.2821275 | K101: =IF($E100="No", "", $G101*$J101) -> 
F102: Sorted MSW | G102: =$G99*H102 -> 0 | I102: Tons | J102: ='[7]Waste Coeff.'!$D$9 -> 0.819 | K102: =IF($E100="No", "", $G102*$J102) -> 
E103: Yes | F103: Recycled | I103: Tons | J103: 0 | K103: =$J103*$G103 -> 0
E104: No | F104: Composted | I104: Tons | J104: 0 | K104: =$J104*$G104 -> 0
J106: TOTAL | K106: =IF($E100="yes",SUM(K100:K104),SUM(K99,K103:K104)) -> 0
E107: Fleets (optional)
F108: Fuel Type | H108: Fuel Consumed | I108: Units | J108: CO2 Coefficient | K108: CO2 (Mtons)
F110: Gasoline | I110: Gallons | J110: ='[7]Fleets Coeff.'!$D$5 -> 0.008477 | K110: =$H110*$J110 -> 0
F111: Diesel Fuel (Distillate No. 2) | I111: Gallons | J111: ='[7]Fleets Coeff.'!$D$6 -> 0.01021 | K111: =$H111*$J111 -> 0
F112: Biodiesel (B20) | I112: Gallons | J112: ='[7]Fleets Coeff.'!$D$7 -> 0.0086716 | K112: =$H112*$J112 -> 0
F113: Biodiesel (B5) | I113: Gallons | J113: ='[7]Fleets Coeff.'!$D$8 -> 0.00852565 | K113: =$H113*$J113 -> 0
J115: TOTAL | K115: =SUM(K110:K113) -> 0
J117: TOTAL CO2e* | K117: =SUM($K95,$K106,$K115) -> 0
J119: =IF($K$9="Square Feet","Square Feet", "FTE") -> FTE
J121: =IF($K$9="Square Feet","Energy Intensity (MMBTU/SF)", "Energy Intensity (MMBTU/FTE)") -> Energy Intensity (MMBTU/FTE) | K121: =IF(ISERR((J95)/K119),"",((J95)/K119)) -> 
J123: =IF($K$9="Square Feet","Carbon Intensity (lbs CO2e/SF)", "Carbon Intensity (lbs CO2e/FTE)") -> Carbon Intensity (lbs CO2e/FTE) | K123: =IF(ISERR((K117*2204.62)/K119),"",((K117*2204.62)/K119)) -> 
E126: 2007 | F126: =IF($K$7=2007,"Base Year", "") -> Base Year
E128: Energy Use
E129: Fuel Type | F129: Fuel Consumed | G129: Units | H129: CO2e Coefficient | I129: MMBtu Coefficient | J129: MMBTUs | K129: CO2e (Mtons)
C130: 2000
E131: Electricity | F131: 70000000 | G131: kWh | H131: =VLOOKUP($C130,[7]Coefficients!$A$5:$AB$25,3) -> 0.0004227035007 | I131: =VLOOKUP(C130,[7]Coefficients!$A$5:$AB$25,2) -> 0.009546 | J131: =$I131*$F131 -> 668220 | K131: =$H131*$F131 -> 29589.24505
E132: Natural Gas | F132: 30000 | G132: Therms | H132: =VLOOKUP(C130,[7]Coefficients!$A$5:$AB$25,5) -> 0.0053156 | I132: =VLOOKUP(C130,[7]Coefficients!$A$5:$AB$25,4) -> 0.1 | J132: =$I132*$F132 -> 3000 | K132: =$H132*$F132 -> 159.468
E133: Distillate Fuel Oil (#2) | F133: 15000 | G133: US Gallons | H133: =VLOOKUP(C130,[7]Coefficients!$A$5:$AB$25,7) -> 0.010264026 | I133: =VLOOKUP(C130,[7]Coefficients!$A$5:$AB$25,6) -> 0.138 | J133: =$I133*$F133 -> 2070 | K133: =$H133*$F133 -> 153.96039
E134: Distillate Fuel Oil (#4) | G134: US Gallons | H134: =VLOOKUP(C130,[7]Coefficients!$A$5:$AB$25,9) -> 0.011016722 | I134: =VLOOKUP(C130,[7]Coefficients!$A$5:$AB$25,8) -> 0.146 | J134: =$I134*$F134 -> 0 | K134: =$H134*$F134 -> 0
E135: Residual Fuel Oil (#6) | G135: US Gallons | H135: =VLOOKUP(C130,[7]Coefficients!$A$5:$AB$25,11) -> 0.01132755 | I135: =VLOOKUP(C130,[7]Coefficients!$A$5:$AB$25,10) -> 0.15 | J135: =$I135*$F135 -> 0 | K135: =$H135*$F135 -> 0
E136: Biodiesel Blend (Select Type) | G136: US Gallons | H136: =VLOOKUP(E136,'[7]Biodiesel Coefficients'!$J$2:$M$9, 3,FALSE) -> (Selection needed) | I136: =VLOOKUP(E136,'[7]Biodiesel Coefficients'!$J$2:$M$9, 4,FALSE) -> (Selection needed) | J136: =IFERROR($I136*$F136,0) -> 0 | K136: =IFERROR($H136*$F136,0) -> 0
E137: On-Site Renewable Electricity | G137: kWh | H137: 0 | I137: 0.0034121412 | J137: =IFERROR($I137*$F137,0) -> 0 | K137: =IFERROR($H137*$F137,0) -> 0
E138: Off-Site Renewable Electricity | G138: kWh | H138: -0.0004227035007 | I138: 0 | J138: =$I138*$F138 -> 0 | K138: =$H138*$F138 -> 0
E139: Diesel Fuel (Back-up Gen.) | G139: US Gallons | H139: =VLOOKUP(C130,[7]Coefficients!$A$5:$AB$25,13) -> 0.010264026 | I139: =VLOOKUP(C130,[7]Coefficients!$A$5:$AB$25,12) -> 0.138 | J139: =$I139*$F139 -> 0 | K139: =$H139*$F139 -> 0
E140: District Steam | F140: 78000 | G140: Mlbs | H140: =VLOOKUP(C130,[7]Coefficients!$A$5:$AB$25,15) -> 0.086629611 | I140: =VLOOKUP(C130,[7]Coefficients!$A$5:$AB$25,14) -> 1.33015 | J140: =$I140*F140 -> 103751.7 | K140: =$H140*F140 -> 6757.109658
H142: TOTAL | J142: =SUM(J131:J140) -> 777041.7 | K142: =SUM(K131:K140) -> 36659.7831
E143: Waste (optional)
F144: Waste Type | G144: Weight | H144: Waste Characterization % | I144: Units | J144: CO2e Coefficient | K144: CO2e (Mtons)
E145: Was a physical waste audit completed in the past 5 years?
F146: Unsorted MSW | H146: =IF(E148="yes", "", 100%) -> 1 | I146: Tons | J146: ='[7]Waste Coeff.'!$D$9 -> 0.819 | K146: =IF($E147="Yes", "", $G146*$J146) -> 0
E147: No | F147: Mixed Recyclables | G147: =$G146*H147 -> 0 | I147: Tons | J147: ='[7]Waste Coeff.'!$D$10 -> 0.416475 | K147: =IF($E147="No", "", $G147*$J147) -> 
E148: =IF(E147="yes","Enter % values in waste characterization column","Ignore waste characterization column") -> Ignore waste characterization column | F148: Food Scraps/Organics | G148: =$G146*H148 -> 0 | I148: Tons | J148: ='[7]Waste Coeff.'!$D$11 -> 0.2821275 | K148: =IF($E147="No", "", $G148*$J148) -> 
F149: Sorted MSW | G149: =$G146*H149 -> 0 | I149: Tons | J149: ='[7]Waste Coeff.'!$D$9 -> 0.819 | K149: =IF($E147="No", "", $G149*$J149) -> 
E150: Yes | F150: Recycled | I150: Tons | J150: 0 | K150: =$J150*$G150 -> 0
E151: No | F151: Composted | I151: Tons | J151: 0 | K151: =$J151*$G151 -> 0
J153: TOTAL | K153: =IF($E147="yes",SUM(K147:K151),SUM(K146,K150:K151)) -> 0
E154: Fleets (optional)
F155: Fuel Type | H155: Fuel Consumed | I155: Units | J155: CO2 Coefficient | K155: CO2 (Mtons)
F157: Gasoline | I157: Gallons | J157: ='[7]Fleets Coeff.'!$D$5 -> 0.008477 | K157: =$H157*$J157 -> 0
F158: Diesel Fuel (Distillate No. 2) | I158: Gallons | J158: ='[7]Fleets Coeff.'!$D$6 -> 0.01021 | K158: =$H158*$J158 -> 0
F159: Biodiesel (B20) | I159: Gallons | J159: ='[7]Fleets Coeff.'!$D$7 -> 0.0086716 | K159: =$H159*$J159 -> 0
F160: Biodiesel (B5) | I160: Gallons | J160: ='[7]Fleets Coeff.'!$D$8 -> 0.00852565 | K160: =$H160*$J160 -> 0
J162: TOTAL | K162: =SUM(K157:K160) -> 0
J164: TOTAL CO2e* | K164: =SUM($K142,$K153,$K162) -> 36659.7831
J166: =IF($K$9="Square Feet","Square Feet", "FTE") -> FTE | K166: 7500
J168: =IF($K$9="Square Feet","Energy Intensity (MMBTU/SF)", "Energy Intensity (MMBTU/FTE)") -> Energy Intensity (MMBTU/FTE) | K168: =IF(ISERR((J142)/K166),"",((J142)/K166)) -> 103.60556
J170: =IF($K$9="Square Feet","Carbon Intensity (lbs CO2e/SF)", "Carbon Intensity (lbs CO2e/FTE)") -> Carbon Intensity (lbs CO2e/FTE) | K170: =IF(ISERR((K164*2204.62)/K166),"",((K164*2204.62)/K166)) -> 10776.1188
E173: 2008 | F173: =IF($K$7=2008,"Base Year", "") -> 
E175: Energy Use
E176: Fuel Type | F176: Fuel Consumed | G176: Units | H176: CO2e Coefficient | I176: MMBtu Coefficient | J176: MMBTUs | K176: CO2e (Mtons)
C177: 2000
E178: Electricity | F178: 70000000 | G178: kWh | H178: =VLOOKUP($C177,[7]Coefficients!$A$5:$AB$25,3) -> 0.0004227035007 | I178: =VLOOKUP(C177,[7]Coefficients!$A$5:$AB$25,2) -> 0.009546 | J178: =$I178*$F178 -> 668220 | K178: =$H178*$F178 -> 29589.24505
E179: Natural Gas | F179: 28000 | G179: Therms | H179: =VLOOKUP(C177,[7]Coefficients!$A$5:$AB$25,5) -> 0.0053156 | I179: =VLOOKUP(C177,[7]Coefficients!$A$5:$AB$25,4) -> 0.1 | J179: =$I179*$F179 -> 2800 | K179: =$H179*$F179 -> 148.8368
E180: Distillate Fuel Oil (#2) | F180: 10000 | G180: US Gallons | H180: =VLOOKUP(C177,[7]Coefficients!$A$5:$AB$25,7) -> 0.010264026 | I180: =VLOOKUP(C177,[7]Coefficients!$A$5:$AB$25,6) -> 0.138 | J180: =$I180*$F180 -> 1380 | K180: =$H180*$F180 -> 102.64026
E181: Distillate Fuel Oil (#4) | G181: US Gallons | H181: =VLOOKUP(C177,[7]Coefficients!$A$5:$AB$25,9) -> 0.011016722 | I181: =VLOOKUP(C177,[7]Coefficients!$A$5:$AB$25,8) -> 0.146 | J181: =$I181*$F181 -> 0 | K181: =$H181*$F181 -> 0
E182: Residual Fuel Oil (#6) | G182: US Gallons | H182: =VLOOKUP(C177,[7]Coefficients!$A$5:$AB$25,11) -> 0.01132755 | I182: =VLOOKUP(C177,[7]Coefficients!$A$5:$AB$25,10) -> 0.15 | J182: =$I182*$F182 -> 0 | K182: =$H182*$F182 -> 0
E183: Biodiesel Blend (Select Type) | G183: US Gallons | H183: =VLOOKUP(E183,'[7]Biodiesel Coefficients'!$J$2:$M$9, 3,FALSE) -> (Selection needed) | I183: =VLOOKUP(E183,'[7]Biodiesel Coefficients'!$J$2:$M$9, 4,FALSE) -> (Selection needed) | J183: =IFERROR($I183*$F183,0) -> 0 | K183: =IFERROR($H183*$F183,0) -> 0
E184: On-Site Renewable Electricity | G184: kWh | H184: 0 | I184: 0.0034121412 | J184: =IFERROR($I184*$F184,0) -> 0 | K184: =IFERROR($H184*$F184,0) -> 0
E185: Off-Site Renewable Electricity | G185: kWh | H185: -0.0004227035007 | I185: 0 | J185: =$I185*$F185 -> 0 | K185: =$H185*$F185 -> 0
E186: Diesel Fuel (Back-up Gen.) | G186: US Gallons | H186: =VLOOKUP(C177,[7]Coefficients!$A$5:$AB$25,13) -> 0.010264026 | I186: =VLOOKUP(C177,[7]Coefficients!$A$5:$AB$25,12) -> 0.138 | J186: =$I186*$F186 -> 0 | K186: =$H186*$F186 -> 0
E187: District Steam | F187: 80000 | G187: Mlbs | H187: =VLOOKUP(C177,[7]Coefficients!$A$5:$AB$25,15) -> 0.086629611 | I187: =VLOOKUP(C177,[7]Coefficients!$A$5:$AB$25,14) -> 1.33015 | J187: =$I187*$F187 -> 106412 | K187: =$H187*$F187 -> 6930.36888
H189: TOTAL | J189: =SUM(J178:J187) -> 778812 | K189: =SUM(K178:K187) -> 36771.09099
E190: Waste (optional)
F191: Waste Type | G191: Weight | H191: Waste Characterization % | I191: Units | J191: CO2e Coefficient | K191: CO2e (Mtons)
E192: Was a physical waste audit completed in the past 5 years?
F193: Unsorted MSW | H193: =IF(E195="yes", "", 100%) -> 1 | I193: Tons | J193: ='[7]Waste Coeff.'!$D$9 -> 0.819 | K193: =IF($E194="Yes", "", $G193*$J193) -> 0
E194: No | F194: Mixed Recyclables | G194: =$G193*H194 -> 0 | I194: Tons | J194: ='[7]Waste Coeff.'!$D$10 -> 0.416475 | K194: =IF($E194="No", "", $G194*$J194) -> 
E195: =IF(E194="yes","Enter % values in waste characterization column","Ignore waste characterization column") -> Ignore waste characterization column | F195: Food Scraps/Organics | G195: =$G193*H195 -> 0 | I195: Tons | J195: ='[7]Waste Coeff.'!$D$11 -> 0.2821275 | K195: =IF($E194="No", "", $G195*$J195) -> 
F196: Sorted MSW | G196: =$G193*H196 -> 0 | I196: Tons | J196: ='[7]Waste Coeff.'!$D$9 -> 0.819 | K196: =IF($E194="No", "", $G196*$J196) -> 
E197: Yes | F197: Recycled | I197: Tons | J197: 0 | K197: =$J197*$G197 -> 0
E198: No | F198: Composted | I198: Tons | J198: 0 | K198: =$J198*$G198 -> 0
J200: TOTAL | K200: =IF($E194="yes",SUM(K194:K198),SUM(K193,K197:K198)) -> 0
E201: Fleets (optional)
F202: Fuel Type | H202: Fuel Consumed | I202: Units | J202: CO2 Coefficient | K202: CO2 (Mtons)
F204: Gasoline | I204: Gallons | J204: ='[7]Fleets Coeff.'!$D$5 -> 0.008477 | K204: =$H204*$J204 -> 0
F205: Diesel Fuel (Distillate No. 2) | I205: Gallons | J205: ='[7]Fleets Coeff.'!$D$6 -> 0.01021 | K205: =$H205*$J205 -> 0
F206: Biodiesel (B20) | I206: Gallons | J206: ='[7]Fleets Coeff.'!$D$7 -> 0.0086716 | K206: =$H206*$J206 -> 0
F207: Biodiesel (B5) | I207: Gallons | J207: ='[7]Fleets Coeff.'!$D$8 -> 0.00852565 | K207: =$H207*$J207 -> 0
J209: TOTAL | K209: =SUM(K204:K207) -> 0
J211: TOTAL CO2e* | K211: =SUM($K189,$K200,$K209) -> 36771.09099
J213: =IF($K$9="Square Feet","Square Feet", "FTE") -> FTE | K213: 7500
J215: =IF($K$9="Square Feet","Energy Intensity (MMBTU/SF)", "Energy Intensity (MMBTU/FTE)") -> Energy Intensity (MMBTU/FTE) | K215: =IF(ISERR((J189)/K213),"",((J189)/K213)) -> 103.8416
J217: =IF($K$9="Square Feet","Carbon Intensity (lbs CO2e/SF)", "Carbon Intensity (lbs CO2e/FTE)") -> Carbon Intensity (lbs CO2e/FTE) | K217: =IF(ISERR((K211*2204.62)/K213),"",((K211*2204.62)/K213)) -> 10808.83768
E220: 2009 | F220: =IF($K$7=2009,"Base Year", "") -> 
E222: Energy Use
E223: Fuel Type | F223: Fuel Consumed | G223: Units | H223: CO2e Coefficient | I223: MMBtu Coefficient | J223: MMBTUs | K223: CO2e (Mtons)
C224: 2000
E225: Electricity | F225: 62000000 | G225: kWh | H225: =VLOOKUP($C224,[7]Coefficients!$A$5:$AB$25,3) -> 0.0004227035007 | I225: =VLOOKUP(C224,[7]Coefficients!$A$5:$AB$25,2) -> 0.009546 | J225: =$I225*$F225 -> 591852 | K225: =$H225*$F225 -> 26207.61704
E226: Natural Gas | F226: 21000 | G226: Therms | H226: =VLOOKUP(C224,[7]Coefficients!$A$5:$AB$25,5) -> 0.0053156 | I226: =VLOOKUP(C224,[7]Coefficients!$A$5:$AB$25,4) -> 0.1 | J226: =$I226*$F226 -> 2100 | K226: =$H226*$F226 -> 111.6276
E227: Distillate Fuel Oil (#2) | F227: 14000 | G227: US Gallons | H227: =VLOOKUP(C224,[7]Coefficients!$A$5:$AB$25,7) -> 0.010264026 | I227: =VLOOKUP(C224,[7]Coefficients!$A$5:$AB$25,6) -> 0.138 | J227: =$I227*$F227 -> 1932 | K227: =$H227*$F227 -> 143.696364
E228: Distillate Fuel Oil (#4) | G228: US Gallons | H228: =VLOOKUP(C224,[7]Coefficients!$A$5:$AB$25,9) -> 0.011016722 | I228: =VLOOKUP(C224,[7]Coefficients!$A$5:$AB$25,8) -> 0.146 | J228: =$I228*$F228 -> 0 | K228: =$H228*$F228 -> 0
E229: Residual Fuel Oil (#6) | G229: US Gallons | H229: =VLOOKUP(C224,[7]Coefficients!$A$5:$AB$25,11) -> 0.01132755 | I229: =VLOOKUP(C224,[7]Coefficients!$A$5:$AB$25,10) -> 0.15 | J229: =$I229*$F229 -> 0 | K229: =$H229*$F229 -> 0
E230: Biodiesel Blend (Select Type) | G230: US Gallons | H230: =VLOOKUP(E230,'[7]Biodiesel Coefficients'!$J$2:$M$9, 3,FALSE) -> (Selection needed) | I230: =VLOOKUP(E230,'[7]Biodiesel Coefficients'!$J$2:$M$9, 4,FALSE) -> (Selection needed) | J230: =IFERROR($I230*$F230,0) -> 0 | K230: =IFERROR($H230*$F230,0) -> 0
E231: On-Site Renewable Electricity | G231: kWh | H231: 0 | I231: 0.0034121412 | J231: =IFERROR($I231*$F231,0) -> 0 | K231: =IFERROR($H231*$F231,0) -> 0
E232: Off-Site Renewable Electricity | G232: kWh | H232: -0.0004227035007 | I232: 0 | J232: =$I232*$F232 -> 0 | K232: =$H232*$F232 -> 0
E233: Diesel Fuel (Back-up Gen.) | G233: US Gallons | H233: =VLOOKUP(C224,[7]Coefficients!$A$5:$AB$25,13) -> 0.010264026 | I233: =VLOOKUP(C224,[7]Coefficients!$A$5:$AB$25,12) -> 0.138 | J233: =$I233*$F233 -> 0 | K233: =$H233*$F233 -> 0
E234: District Steam | F234: 63000 | G234: Mlbs | H234: =VLOOKUP(C224,[7]Coefficients!$A$5:$AB$25,15) -> 0.086629611 | I234: =VLOOKUP(C224,[7]Coefficients!$A$5:$AB$25,14) -> 1.33015 | J234: =$I234*$F234 -> 83799.45 | K234: =$H234*$F234 -> 5457.665493
H236: TOTAL | J236: =SUM(J225:J234) -> 679683.45 | K236: =SUM(K225:K234) -> 31920.6065
E237: Waste (optional)
F238: Waste Type | G238: Weight | H238: Waste Characterization % | I238: Units | J238: CO2e Coefficient | K238: CO2e (Mtons)
E239: Was a physical waste audit completed in the past 5 years?
F240: Unsorted MSW | H240: =IF(E242="yes", "", 100%) -> 1 | I240: Tons | J240: ='[7]Waste Coeff.'!$D$9 -> 0.819 | K240: =IF($E241="Yes", "", $G240*$J240) -> 0
E241: No | F241: Mixed Recyclables | G241: =$G240*H241 -> 0 | I241: Tons | J241: ='[7]Waste Coeff.'!$D$10 -> 0.416475 | K241: =IF($E241="No", "", $G241*$J241) -> 
E242: =IF(E241="yes","Enter % values in waste characterization column","Ignore waste characterization column") -> Ignore waste characterization column | F242: Food Scraps/Organics | G242: =$G240*H242 -> 0 | I242: Tons | J242: ='[7]Waste Coeff.'!$D$11 -> 0.2821275 | K242: =IF($E241="No", "", $G242*$J242) -> 
F243: Sorted MSW | G243: =$G240*H243 -> 0 | I243: Tons | J243: ='[7]Waste Coeff.'!$D$9 -> 0.819 | K243: =IF($E241="No", "", $G243*$J243) -> 
E244: Yes | F244: Recycled | I244: Tons | J244: 0 | K244: =$J244*$G244 -> 0
E245: No | F245: Composted | I245: Tons | J245: 0 | K245: =$J245*$G245 -> 0
J247: TOTAL | K247: =IF($E241="yes",SUM(K241:K245),SUM(K240,K244:K245)) -> 0
E248: Fleets (optional)
F249: Fuel Type | H249: Fuel Consumed | I249: Units | J249: CO2 Coefficient | K249: CO2 (Mtons)
F251: Gasoline | I251: Gallons | J251: ='[7]Fleets Coeff.'!$D$5 -> 0.008477 | K251: =$H251*$J251 -> 0
F252: Diesel Fuel (Distillate No. 2) | I252: Gallons | J252: ='[7]Fleets Coeff.'!$D$6 -> 0.01021 | K252: =$H252*$J252 -> 0
F253: Biodiesel (B20) | I253: Gallons | J253: ='[7]Fleets Coeff.'!$D$7 -> 0.0086716 | K253: =$H253*$J253 -> 0
F254: Biodiesel (B5) | I254: Gallons | J254: ='[7]Fleets Coeff.'!$D$8 -> 0.00852565 | K254: =$H254*$J254 -> 0
J256: TOTAL | K256: =SUM(K251:K254) -> 0
J258: TOTAL CO2e* | K258: =SUM($K236,$K247,$K256) -> 31920.6065
J260: =IF($K$9="Square Feet","Square Feet", "FTE") -> FTE | K260: 6500
J262: =IF($K$9="Square Feet","Energy Intensity (MMBTU/SF)", "Energy Intensity (MMBTU/FTE)") -> Energy Intensity (MMBTU/FTE) | K262: =IF(ISERR((J236)/K260),"",((J236)/K260)) -> 104.5666846
J264: =IF($K$9="Square Feet","Carbon Intensity (lbs CO2e/SF)", "Carbon Intensity (lbs CO2e/FTE)") -> Carbon Intensity (lbs CO2e/FTE) | K264: =IF(ISERR((K258*2204.62)/K260),"",((K258*2204.62)/K260)) -> 10826.58577
E267: 2010 | F267: =IF($K$7=2010,"Base Year", "") -> 
... 396 more rows

Sheet RECs (hidden)
O3: Name of Institution | P3: ='New Inventory'!$K$3 -> City Hall
D4: NYC Carbon Challenge - Universities and Hospitals
D5: Carbon Emissions Inventory | O5: Submission Year | P5: ='New Inventory'!$K$5 -> 2015
O7: Base Year | P7: ='New Inventory'!$K$7 -> 2007
O9: Submission Year - Carbon Intensity | P9: ='New Inventory'!$K$13 -> 8004.742978
O11: Base Year - Carbon Intensity | P11: ='New Inventory'!$K$15 -> 10776.1188
O13: ='New Inventory'!$J$17 -> 50% Reduction Goal (lbs CO2e/FTE) | P13: ='New Inventory'!$K$17 -> 5388.059401
D15: Explanation: Purchases of renewable energy certificates (RECs) from off-site renewable energy production may be used to offset consumption of electricity from
D16: the grid in the NYC Carbon Challenge. NYC Carbon Challenge rules dictate that these purchases account for no more than 15% of the total required carbon intensity
D17: reduction of 30% – ie. 4.5% of your base year's carbon intensity. Because the number of RECS that can be applied to the Challenge depends on a percentage of carbon
D18: intensity, the number of RECS you may apply is calcuated each year based on current square footage. All REC purchases up to the allowable maximum will count toward
D19: offsetting your electricity consumption.
D21: Instructions: The table below will calculate the kWh of RECs that you may apply to the Challenge. Enter the amount of RECs you have purchased in the light blue column,
D22: and the appropriate amount will be applied to your inventory -- the number you have purchased or the maximum allowable, whichever is less. In order for RECs to qualify
D23: towards fulfilling your Carbon Challenge carbon intensity reduction goal, the purchase contracts must be long-term, lasting at least through 2030. Additionally, you must
D24: submit documentation verifying the RECs purchase with the Mayor’s Office of Sustainability.
E26: =P3&"'s carbon intensity allowed to be offset by RECs in "&[5]Inventory!K5&"" -> City Hall's carbon intensity allowed to be offset by RECs in 2014
E27: =IFERROR(($P$11)*0.3*0.15," -") -> 484.9253461 | G27: (lbs CO2e/SF)
E29: Year | F29: REC purchases | G29: Carbon Intensity | H29: Percent Change | I29: Sq. Ft. | J29: Carbon allowed to be offset | K29: Allowed RECs | L29: Applied RECs
F30: (kWh) | G30: (lbs CO2e/sq. Ft.) | H30: From Base Year | J30: (Mtons CO2e) | K30: (kWh) | L30: (kWh)
E31: =baseline_year1 -> 2005 | G31: =IFERROR(LOOKUP(E31,'New Inventory'!E32:E516,OFFSET('New Inventory'!E32:E516,44,6)),"") ->  | H31: =IFERROR((G31-$P$11)/$P$11,"") ->  | I31: =IFERROR(LOOKUP(E31,'New Inventory'!E32:E516,OFFSET('New Inventory'!E32:E516,40,6)),"") -> 0 | J31: =IFERROR(($E$27/2204.6226)*I31,"") -> 0 | K31: =IFERROR(J31/[5]Coefficients!$C$5,"") -> 0 | L31: =IF(ISBLANK(F31),"",IF(F31>K31,K31,F31)) -> 
E32: =IFERROR(IF(E31+1=submission_year,submission_year, IF(E31=submission_year,"",E31+1)),"") -> 2006 | G32: =IFERROR(LOOKUP(E32,'New Inventory'!E33:E517,OFFSET('New Inventory'!E33:E517,44,6)),"") ->  | I32: =IFERROR(LOOKUP(E32,'New Inventory'!E33:E517,OFFSET('New Inventory'!E33:E517,40,6)),"") -> 0 | J32: 0 | K32: =IFERROR(J32/[5]Coefficients!$C$5,"") -> 0 | L32: =IF(ISBLANK(F32),"",IF(F32>K32,K32,F32)) -> 
E33: 2007 | G33: =IFERROR(LOOKUP(E33,'New Inventory'!E34:E518,OFFSET('New Inventory'!E34:E518,44,6)),"") -> 10776.1188 | H33: 0 | I33: =IFERROR(LOOKUP(E33,'New Inventory'!E34:E518,OFFSET('New Inventory'!E34:E518,40,6)),"") -> 7500 | J33: 1649.688294 | K33: =IFERROR(J33/[5]Coefficients!$C$5,"") -> 3902707.905
E34: 2008 | G34: =IFERROR(LOOKUP(E34,'New Inventory'!E35:E519,OFFSET('New Inventory'!E35:E519,44,6)),"") -> 10808.83768 | H34: 0.003036239786 | I34: =IFERROR(LOOKUP(E34,'New Inventory'!E35:E519,OFFSET('New Inventory'!E35:E519,40,6)),"") -> 7500 | J34: 1649.688294 | K34: =IFERROR(J34/[5]Coefficients!$C$5,"") -> 3902707.905
E35: 2009 | G35: =IFERROR(LOOKUP(E35,'New Inventory'!E36:E520,OFFSET('New Inventory'!E36:E520,44,6)),"") -> 10826.58577 | H35: 0.00468322307 | I35: =IFERROR(LOOKUP(E35,'New Inventory'!E36:E520,OFFSET('New Inventory'!E36:E520,40,6)),"") -> 6500 | J35: 1429.729855 | K35: =IFERROR(J35/[5]Coefficients!$C$5,"") -> 3382346.851
E36: 2010 | G36: =IFERROR(LOOKUP(E36,'New Inventory'!E37:E521,OFFSET('New Inventory'!E37:E521,44,6)),"") -> 9903.283771 | H36: -0.08099716112 | I36: =IFERROR(LOOKUP(E36,'New Inventory'!E37:E521,OFFSET('New Inventory'!E37:E521,40,6)),"") -> 6700 | J36: 1473.721543 | K36: =IFERROR(J36/[5]Coefficients!$C$5,"") -> 3486419.062
E37: 2011 | G37: =IFERROR(LOOKUP(E37,'New Inventory'!E38:E522,OFFSET('New Inventory'!E38:E522,44,6)),"") -> 9527.096152 | H37: -0.1159065405 | I37: =IFERROR(LOOKUP(E37,'New Inventory'!E38:E522,OFFSET('New Inventory'!E38:E522,40,6)),"") -> 6400 | J37: 1407.734011 | K37: =IFERROR(J37/[5]Coefficients!$C$5,"") -> 3330310.746
E38: 2012 | G38: =IFERROR(LOOKUP(E38,'New Inventory'!E39:E523,OFFSET('New Inventory'!E39:E523,44,6)),"") -> 8763.334735 | H38: -0.1867819114 | I38: =IFERROR(LOOKUP(E38,'New Inventory'!E39:E523,OFFSET('New Inventory'!E39:E523,40,6)),"") -> 6500 | J38: 1429.729855 | K38: =IFERROR(J38/[5]Coefficients!$C$5,"") -> 3382346.851
E39: 2013 | G39: =IFERROR(LOOKUP(E39,'New Inventory'!E40:E524,OFFSET('New Inventory'!E40:E524,44,6)),"") -> 8182.063239 | H39: -0.2407226211 | I39: =IFERROR(LOOKUP(E39,'New Inventory'!E40:E524,OFFSET('New Inventory'!E40:E524,40,6)),"") -> 6600 | J39: 1451.725699 | K39: =IFERROR(J39/[5]Coefficients!$C$5,"") -> 3434382.957
E40: 2014 | G40: =IFERROR(LOOKUP(E40,'New Inventory'!E41:E525,OFFSET('New Inventory'!E41:E525,44,6)),"") -> 8281.706012 | H40: -0.231475992 | I40: =IFERROR(LOOKUP(E40,'New Inventory'!E41:E525,OFFSET('New Inventory'!E41:E525,40,6)),"") -> 6500 | J40: 1429.729855 | K40: =IFERROR(J40/[5]Coefficients!$C$5,"") -> 3382346.851
E41: 2015 | G41: =IFERROR(LOOKUP(E41,'New Inventory'!E42:E526,OFFSET('New Inventory'!E42:E526,44,6)),"") -> 8004.742978 | H41: -0.2571775492 | I41: =IFERROR(LOOKUP(E41,'New Inventory'!E42:E526,OFFSET('New Inventory'!E42:E526,40,6)),"") -> 6600 | J41: 1451.725699 | K41: =IFERROR(J41/[5]Coefficients!$C$5,"") -> 3434382.957

Sheet Summary
D3: NYC Carbon Challenge - Commercial Offices | U3: Name | V3: ='New Inventory'!K3 -> City Hall
D4: Carbon Emissions Inventory
U5: Submission Year | V5: ='New Inventory'!$K$5 -> 2015
U7: Base Year | V7: ='New Inventory'!K7 -> 2007
U9: Submission Year - Carbon Intensity | V9: ='New Inventory'!K13 -> 8004.742978
U11: Base Year - Carbon Intensity | V11: ='New Inventory'!K15 -> 10776.1188
U13: ='New Inventory'!J17 -> 50% Reduction Goal (lbs CO2e/FTE) | V13: ='New Inventory'!K17 -> 5388.059401
B16: ="Summary: Energy Use "&IF('New Inventory'!K9="Square Feet", "(KBTU / SF)", "(KBTU / FTE)") -> Summary: Energy Use (KBTU / FTE)
G18: ="KBTU"&IF('New Inventory'!K9="Square Feet","/ SF - by Fuel Type","/ FTE - by Fuel Type") -> KBTU/ FTE - by Fuel Type | U18: =IF('New Inventory'!K9="Square Feet", "Total Kbtu / SF", "Total Kbtu / FTE") -> Total Kbtu / FTE | V18: % Change from prior year | W18: % Change from Base year
E19: Year | G19: Electricity | H19: NG | I19: #2 Oil | J19: #4 Oil | K19: #6 Oil | L19: No. 2 Oil with B-5 Blend | M19: On-Site Renewable energy | N19: Off-Site Renewable energy | O19: Disel Fuel (Back-Up Gen) | P19: Steam | AM19: MMBTUs
AM21: Electricity | AN21: NG | AO21: #2 | AP21: #4 | AQ21: #6 | AR21: No. 2 Oil with B5 Blend | AS21: On Site-Renewable | AT21: Off-Site Renewables | AU21: Diesel Fuel Back up Gen | AV21: Steam | AW21: Waste | AX21: Fleets
B22: 2005 | E22: =IF('New Inventory'!baseline_year=2005,"Base Year", "") ->  | F22: 2005 | G22: =IF(ISERR(AM$22/'New Inventory'!$K$72),"",(AM$22/'New Inventory'!$K$72*1000)) ->  | H22: =IF(ISERR(AN$22/'New Inventory'!$K$72),"",(AN$22/'New Inventory'!$K$72*1000)) ->  | I22: =IF(ISERR(AO$22/'New Inventory'!$K$72),"",(AO$22/'New Inventory'!$K$72*1000)) ->  | J22: =IF(ISERR(AP$22/'New Inventory'!$K$72),"",(AP$22/'New Inventory'!$K$72*1000)) ->  | K22: =IF(ISERR(AQ$22/'New Inventory'!$K$72),"",(AQ$22/'New Inventory'!$K$72*1000)) ->  | L22: =IF(ISERR(AR$22/'New Inventory'!$K$72),"",(AR$22/'New Inventory'!$K$72*1000)) ->  | M22: =IF(ISERR(AS$22/'New Inventory'!$K$72),"",(AS$22/'New Inventory'!$K$72*1000)) ->  | N22: =IF(ISERR(AT$22/'New Inventory'!$K$72),"",(AT$22/'New Inventory'!$K$72*1000)) ->  | O22: =IF(ISERR(AU$22/'New Inventory'!$K$72),"",(AU$22/'New Inventory'!$K$72*1000)) ->  | P22: =IF(ISERR(AV$22/'New Inventory'!$K$72),"",(AV$22/'New Inventory'!$K$72*1000)) ->  | Q22: =IF(ISERR(AW$22/'New Inventory'!$K$72),"",(AW$22/'New Inventory'!$K$72)) ->  | R22: =IF(ISERR(AX$22/'New Inventory'!$K$72),"",(AX$22/'New Inventory'!$K$72)) ->  | U22: =IF('New Inventory'!K74="","",'New Inventory'!$K$74*1000) ->  | W22: =IF(ISERR(($U22-$V$47)/$V$47),"",($U22-$V$47)/$V$47) ->  | AL22: 2005 | AM22: ='New Inventory'!J37 -> 0 | AN22: ='New Inventory'!J38 -> 0 | AO22: ='New Inventory'!J39 -> 0 | AP22: ='New Inventory'!J40 -> 0 | AQ22: ='New Inventory'!J41 -> 0 | AR22: ='New Inventory'!J42 -> 0 | AS22: ='New Inventory'!J43 -> 0 | AT22: ='New Inventory'!J44 -> 0 | AU22: ='New Inventory'!J45 -> 0 | AV22: ='New Inventory'!J46 -> 0
B23: 2006 | E23: =IF('New Inventory'!baseline_year=2006,"Base Year", "") ->  | F23: 2006 | G23: =IF(ISERR(AM$23/'New Inventory'!$K$119),"",(AM$23/'New Inventory'!$K$119*1000)) ->  | H23: =IF(ISERR(AN$23/'New Inventory'!$K$119),"",(AN$23/'New Inventory'!$K$119*1000)) ->  | I23: =IF(ISERR(AO$23/'New Inventory'!$K$119),"",(AO$23/'New Inventory'!$K$119*1000)) ->  | J23: =IF(ISERR(AP$23/'New Inventory'!$K$119),"",(AP$23/'New Inventory'!$K$119*1000)) ->  | K23: =IF(ISERR(AQ$23/'New Inventory'!$K$119),"",(AQ$23/'New Inventory'!$K$119*1000)) ->  | L23: =IF(ISERR(AR$23/'New Inventory'!$K$119),"",(AR$23/'New Inventory'!$K$119*1000)) ->  | M23: =IF(ISERR(AS$23/'New Inventory'!$K$119),"",(AS$23/'New Inventory'!$K$119*1000)) ->  | N23: =IF(ISERR(AT$23/'New Inventory'!$K$119),"",(AT$23/'New Inventory'!$K$119*1000)) ->  | O23: =IF(ISERR(AU$23/'New Inventory'!$K$119),"",(AU$23/'New Inventory'!$K$119*1000)) ->  | P23: =IF(ISERR(AV$23/'New Inventory'!$K$119),"",(AV$23/'New Inventory'!$K$119*1000)) ->  | Q23: =IF(ISERR(AW$23/'New Inventory'!$K$119),"",(AW$23/'New Inventory'!$K$119)) ->  | R23: =IF(ISERR(AX$23/'New Inventory'!$K$119),"",(AX$23/'New Inventory'!$K$119)) ->  | U23: =IF('New Inventory'!$K$121="","",'New Inventory'!$K$121*1000) ->  | V23: =IF(ISERR((U23-U22)/U22),"",(U23-U22)/U22) ->  | W23: =IF(ISERR(($U23-$V$47)/$V$47),"",($U23-$V$47)/$V$47) ->  | AL23: 2006 | AM23: ='New Inventory'!J84 -> 0 | AN23: ='New Inventory'!J85 -> 0 | AO23: ='New Inventory'!J86 -> 0 | AP23: ='New Inventory'!J87 -> 0 | AQ23: ='New Inventory'!J88 -> 0 | AR23: ='New Inventory'!J89 -> 0 | AS23: ='New Inventory'!J90 -> 0 | AT23: ='New Inventory'!J91 -> 0 | AU23: ='New Inventory'!J92 -> 0 | AV23: ='New Inventory'!J93 -> 0
B24: 2007 | E24: =IF('New Inventory'!baseline_year=2007,"Base Year", "") -> Base Year | F24: 2007 | G24: =IF(ISERR(AM$24/'New Inventory'!$K$166),"",(AM$24/'New Inventory'!$K$166*1000)) -> 89096 | H24: =IF(ISERR(AN$24/'New Inventory'!$K$166),"",(AN$24/'New Inventory'!$K$166*1000)) -> 400 | I24: =IF(ISERR(AO$24/'New Inventory'!$K$166),"",(AO$24/'New Inventory'!$K$166*1000)) -> 276 | J24: =IF(ISERR(AP$24/'New Inventory'!$K$166),"",(AP$24/'New Inventory'!$K$166*1000)) -> 0 | K24: =IF(ISERR(AQ$24/'New Inventory'!$K$166),"",(AQ$24/'New Inventory'!$K$166*1000)) -> 0 | L24: =IF(ISERR(AR$24/'New Inventory'!$K$166),"",(AR$24/'New Inventory'!$K$166*1000)) -> 0 | M24: =IF(ISERR(AS$24/'New Inventory'!$K$166),"",(AS$24/'New Inventory'!$K$166*1000)) -> 0 | N24: =IF(ISERR(AT$24/'New Inventory'!$K$166),"",(AT$24/'New Inventory'!$K$166*1000)) -> 0 | O24: =IF(ISERR(AU$24/'New Inventory'!$K$166),"",(AU$24/'New Inventory'!$K$166*1000)) -> 0 | P24: =IF(ISERR(AV$24/'New Inventory'!$K$166),"",(AV$24/'New Inventory'!$K$166*1000)) -> 13833.56 | U24: =IF('New Inventory'!$K$168="","",'New Inventory'!$K$168*1000) -> 103605.56 | W24: =IF(ISERR(($U24-$V$47)/$V$47),"",($U24-$V$47)/$V$47) -> 0 | AL24: 2007 | AM24: ='New Inventory'!J131 -> 668220 | AN24: ='New Inventory'!J132 -> 3000 | AO24: ='New Inventory'!J133 -> 2070 | AP24: ='New Inventory'!J134 -> 0 | AQ24: ='New Inventory'!J135 -> 0 | AR24: ='New Inventory'!J136 -> 0 | AS24: ='New Inventory'!J137 -> 0 | AT24: ='New Inventory'!J138 -> 0 | AU24: ='New Inventory'!J139 -> 0 | AV24: ='New Inventory'!J140 -> 103751.7
B25: 2008 | E25: =IF('New Inventory'!baseline_year=2008,"Base Year", "") ->  | F25: 2008 | G25: =IF(ISERR(AM$25/'New Inventory'!$K$213),"",(AM$25/'New Inventory'!$K$213*1000)) -> 89096 | H25: =IF(ISERR(AN$25/'New Inventory'!$K$213),"",(AN$25/'New Inventory'!$K$213*1000)) -> 373.3333333 | I25: =IF(ISERR(AO$25/'New Inventory'!$K$213),"",(AO$25/'New Inventory'!$K$213*1000)) -> 184 | J25: =IF(ISERR(AP$25/'New Inventory'!$K$213),"",(AP$25/'New Inventory'!$K$213*1000)) -> 0 | K25: =IF(ISERR(AQ$25/'New Inventory'!$K$213),"",(AQ$25/'New Inventory'!$K$213*1000)) -> 0 | L25: =IF(ISERR(AR$25/'New Inventory'!$K$213),"",(AR$25/'New Inventory'!$K$213*1000)) -> 0 | M25: =IF(ISERR(AS$25/'New Inventory'!$K$213),"",(AS$25/'New Inventory'!$K$213*1000)) -> 0 | N25: =IF(ISERR(AT$25/'New Inventory'!$K$213),"",(AT$25/'New Inventory'!$K$213*1000)) -> 0 | O25: =IF(ISERR(AU$25/'New Inventory'!$K$213),"",(AU$25/'New Inventory'!$K$213*1000)) -> 0 | P25: =IF(ISERR(AV$25/'New Inventory'!$K$213),"",(AV$25/'New Inventory'!$K$213*1000)) -> 14188.26667 | U25: =IF('New Inventory'!$K$215="","",'New Inventory'!$K$215*1000) -> 103841.6 | V25: 0.002278256109 | W25: 0.002278256109 | AL25: 2008 | AM25: ='New Inventory'!J178 -> 668220 | AN25: ='New Inventory'!J179 -> 2800 | AO25: ='New Inventory'!J180 -> 1380 | AP25: ='New Inventory'!J181 -> 0 | AQ25: ='New Inventory'!J182 -> 0 | AR25: ='New Inventory'!J183 -> 0 | AS25: ='New Inventory'!J184 -> 0 | AT25: ='New Inventory'!J185 -> 0 | AU25: ='New Inventory'!J186 -> 0 | AV25: ='New Inventory'!J187 -> 106412
B26: 2009 | E26: =IF('New Inventory'!baseline_year=2009,"Base Year", "") ->  | F26: 2009 | G26: =IF(ISERR(AM$26/'New Inventory'!$K$260),"",(AM$26/'New Inventory'!$K$260*1000)) -> 91054.15385 | H26: =IF(ISERR(AN$26/'New Inventory'!$K$260),"",(AN$26/'New Inventory'!$K$260*1000)) -> 323.0769231 | I26: =IF(ISERR(AO$26/'New Inventory'!$K$260),"",(AO$26/'New Inventory'!$K$260*1000)) -> 297.2307692 | J26: =IF(ISERR(AP$26/'New Inventory'!$K$260),"",(AP$26/'New Inventory'!$K$260*1000)) -> 0 | K26: =IF(ISERR(AQ$26/'New Inventory'!$K$260),"",(AQ$26/'New Inventory'!$K$260*1000)) -> 0 | L26: =IF(ISERR(AR$26/'New Inventory'!$K$260),"",(AR$26/'New Inventory'!$K$260*1000)) -> 0 | M26: =IF(ISERR(AS$26/'New Inventory'!$K$260),"",(AS$26/'New Inventory'!$K$260*1000)) -> 0 | N26: =IF(ISERR(AT$26/'New Inventory'!$K$260),"",(AT$26/'New Inventory'!$K$260*1000)) -> 0 | O26: =IF(ISERR(AU$26/'New Inventory'!$K$260),"",(AU$26/'New Inventory'!$K$260*1000)) -> 0 | P26: =IF(ISERR(AV$26/'New Inventory'!$K$260),"",(AV$26/'New Inventory'!$K$260*1000)) -> 12892.22308 | U26: =IF('New Inventory'!$K$262="","",'New Inventory'!$K$262*1000) -> 104566.6846 | V26: 0.006982602496 | W26: 0.009276766762 | AL26: 2009 | AM26: ='New Inventory'!J225 -> 591852 | AN26: ='New Inventory'!J226 -> 2100 | AO26: ='New Inventory'!J227 -> 1932 | AP26: ='New Inventory'!J228 -> 0 | AQ26: ='New Inventory'!J229 -> 0 | AR26: ='New Inventory'!J230 -> 0 | AS26: ='New Inventory'!J231 -> 0 | AT26: ='New Inventory'!J232 -> 0 | AU26: ='New Inventory'!J233 -> 0 | AV26: ='New Inventory'!J234 -> 83799.45
B27: 2010 | E27: =IF('New Inventory'!baseline_year=2010,"Base Year", "") ->  | F27: 2010 | G27: =IF(ISERR(AM$27/'New Inventory'!$K$307),"",(AM$27/'New Inventory'!$K$307*1000)) -> 85486.56716 | H27: =IF(ISERR(AN$27/'New Inventory'!$K$307),"",(AN$27/'New Inventory'!$K$307*1000)) -> 328.358209 | I27: =IF(ISERR(AO$27/'New Inventory'!$K$307),"",(AO$27/'New Inventory'!$K$307*1000)) -> 226.5671642 | J27: =IF(ISERR(AP$27/'New Inventory'!$K$307),"",(AP$27/'New Inventory'!$K$307*1000)) -> 0 | K27: =IF(ISERR(AQ$27/'New Inventory'!$K$307),"",(AQ$27/'New Inventory'!$K$307*1000)) -> 0 | L27: =IF(ISERR(AR$27/'New Inventory'!$K$307),"",(AR$27/'New Inventory'!$K$307*1000)) -> 0 | M27: =IF(ISERR(AS$27/'New Inventory'!$K$307),"",(AS$27/'New Inventory'!$K$307*1000)) -> 0 | N27: =IF(ISERR(AT$27/'New Inventory'!$K$307),"",(AT$27/'New Inventory'!$K$307*1000)) -> 0 | O27: =IF(ISERR(AU$27/'New Inventory'!$K$307),"",(AU$27/'New Inventory'!$K$307*1000)) -> 0 | P27: =IF(ISERR(AV$27/'New Inventory'!$K$307),"",(AV$27/'New Inventory'!$K$307*1000)) -> 10323.55224 | U27: =IF('New Inventory'!$K$309="","",'New Inventory'!$K$309*1000) -> 96365.04478 | V27: -0.07843454031 | W27: -0.06988539248 | AL27: 2010 | AM27: ='New Inventory'!J272 -> 572760 | AN27: ='New Inventory'!J273 -> 2200 | AO27: ='New Inventory'!J274 -> 1518 | AP27: ='New Inventory'!J275 -> 0 | AQ27: ='New Inventory'!J276 -> 0 | AR27: ='New Inventory'!J277 -> 0 | AS27: ='New Inventory'!J278 -> 0 | AT27: ='New Inventory'!J279 -> 0 | AU27: ='New Inventory'!J280 -> 0 | AV27: ='New Inventory'!J281 -> 69167.8
B28: 2011 | E28: =IF('New Inventory'!baseline_year=2011,"Base Year", "") ->  | F28: 2011 | G28: =IF(ISERR(AM$28/'New Inventory'!$K$354),"",(AM$28/'New Inventory'!$K$354*1000)) -> 83527.5 | H28: =IF(ISERR(AN$28/'New Inventory'!$K$354),"",(AN$28/'New Inventory'!$K$354*1000)) -> 343.75 | I28: =IF(ISERR(AO$28/'New Inventory'!$K$354),"",(AO$28/'New Inventory'!$K$354*1000)) -> 301.875 | J28: =IF(ISERR(AP$28/'New Inventory'!$K$354),"",(AP$28/'New Inventory'!$K$354*1000)) -> 0 | K28: =IF(ISERR(AQ$28/'New Inventory'!$K$354),"",(AQ$28/'New Inventory'!$K$354*1000)) -> 0 | L28: =IF(ISERR(AR$28/'New Inventory'!$K$354),"",(AR$28/'New Inventory'!$K$354*1000)) -> 0 | M28: =IF(ISERR(AS$28/'New Inventory'!$K$354),"",(AS$28/'New Inventory'!$K$354*1000)) -> 0 | N28: =IF(ISERR(AT$28/'New Inventory'!$K$354),"",(AT$28/'New Inventory'!$K$354*1000)) -> 0 | O28: =IF(ISERR(AU$28/'New Inventory'!$K$354),"",(AU$28/'New Inventory'!$K$354*1000)) -> 0 | P28: =IF(ISERR(AV$28/'New Inventory'!$K$354),"",(AV$28/'New Inventory'!$K$354*1000)) -> 8936.945312 | U28: =IF('New Inventory'!$K$356="","",'New Inventory'!$K$356*1000) -> 93110.07031 | V28: -0.03377754321 | W28: -0.1013023788 | AL28: 2011 | AM28: ='New Inventory'!J319 -> 534576 | AN28: ='New Inventory'!J320 -> 2200 | AO28: ='New Inventory'!J321 -> 1932 | AP28: ='New Inventory'!J322 -> 0 | AQ28: ='New Inventory'!$J323 -> 0 | AR28: ='New Inventory'!$J324 -> 0 | AS28: ='New Inventory'!$J325 -> 0 | AT28: ='New Inventory'!$J326 -> 0 | AU28: ='New Inventory'!$J327 -> 0 | AV28: ='New Inventory'!$J328 -> 57196.45
B29: 2012 | E29: =IF('New Inventory'!baseline_year=20012,"Base Year", "") ->  | F29: 2012 | G29: =IF(ISERR(AM$29/'New Inventory'!$K$401),"",(AM$29/'New Inventory'!$K$401*1000)) -> 76368 | H29: =IF(ISERR(AN$29/'New Inventory'!$K$401),"",(AN$29/'New Inventory'!$K$401*1000)) -> 307.6923077 | I29: =IF(ISERR(AO$29/'New Inventory'!$K$401),"",(AO$29/'New Inventory'!$K$401*1000)) -> 1486.153846 | J29: =IF(ISERR(AP$29/'New Inventory'!$K$401),"",(AP$29/'New Inventory'!$K$401*1000)) -> 0 | K29: =IF(ISERR(AQ$29/'New Inventory'!$K$401),"",(AQ$29/'New Inventory'!$K$401*1000)) -> 0 | L29: =IF(ISERR(AR$29/'New Inventory'!$K$401),"",(AR$29/'New Inventory'!$K$401*1000)) -> 0 | M29: =IF(ISERR(AS$29/'New Inventory'!$K$401),"",(AS$29/'New Inventory'!$K$401*1000)) -> 0 | N29: =IF(ISERR(AT$29/'New Inventory'!$K$401),"",(AT$29/'New Inventory'!$K$401*1000)) -> 0 | O29: =IF(ISERR(AU$29/'New Inventory'!$K$401),"",(AU$29/'New Inventory'!$K$401*1000)) -> 0 | P29: =IF(ISERR(AV$29/'New Inventory'!$K$401),"",(AV$29/'New Inventory'!$K$401*1000)) -> 7162.346154 | U29: =IF('New Inventory'!$K$403="","",'New Inventory'!$K$403*1000) -> 85324.19231 | V29: -0.08362014956 | W29: -0.1764516083 | AL29: 2012 | AM29: ='New Inventory'!J366 -> 496392 | AN29: ='New Inventory'!J367 -> 2000 | AO29: ='New Inventory'!J368 -> 9660 | AP29: ='New Inventory'!J369 -> 0 | AQ29: ='New Inventory'!$J370 -> 0 | AR29: ='New Inventory'!$J371 -> 0 | AS29: ='New Inventory'!$J372 -> 0 | AT29: ='New Inventory'!$J373 -> 0 | AU29: ='New Inventory'!$J374 -> 0 | AV29: ='New Inventory'!$J375 -> 46555.25
B30: 2013 | E30: =IF('New Inventory'!baseline_year=20013,"Base Year", "") ->  | F30: 2013 | G30: =IF(ISERR(AM$30/'New Inventory'!$K$448),"",(AM$30/'New Inventory'!$K$448*1000)) -> 72318.18182 | H30: =IF(ISERR(AN$30/'New Inventory'!$K$448),"",(AN$30/'New Inventory'!$K$448*1000)) -> 348.4848485 | I30: =IF(ISERR(AO$30/'New Inventory'!$K$448),"",(AO$30/'New Inventory'!$K$448*1000)) -> 418.1818182 | J30: =IF(ISERR(AP$30/'New Inventory'!$K$448),"",(AP$30/'New Inventory'!$K$448*1000)) -> 0 | K30: =IF(ISERR(AQ$30/'New Inventory'!$K$448),"",(AQ$30/'New Inventory'!$K$448*1000)) -> 0 | L30: =IF(ISERR(AR$30/'New Inventory'!$K$448),"",(AR$30/'New Inventory'!$K$448*1000)) -> 0 | M30: =IF(ISERR(AS$30/'New Inventory'!$K$448),"",(AS$30/'New Inventory'!$K$448*1000)) -> 0 | N30: =IF(ISERR(AT$30/'New Inventory'!$K$448),"",(AT$30/'New Inventory'!$K$448*1000)) -> 0 | O30: =IF(ISERR(AU$30/'New Inventory'!$K$448),"",(AU$30/'New Inventory'!$K$448*1000)) -> 0 | P30: =IF(ISERR(AV$30/'New Inventory'!$K$448),"",(AV$30/'New Inventory'!$K$448*1000)) -> 7053.825758 | U30: =IF('New Inventory'!$K$450="", "", 'New Inventory'!$K$450*1000) -> 80138.67424 | V30: -0.06077430006 | W30: -0.2265021854 | AL30: 2013 | AM30: ='New Inventory'!J413 -> 477300 | AN30: ='New Inventory'!J414 -> 2300 | AO30: ='New Inventory'!J415 -> 2760 | AP30: ='New Inventory'!J416 -> 0 | AQ30: ='New Inventory'!$J417 -> 0 | AR30: ='New Inventory'!$J418 -> 0 | AS30: ='New Inventory'!$J419 -> 0 | AT30: ='New Inventory'!$J420 -> 0 | AU30: ='New Inventory'!$J421 -> 0 | AV30: ='New Inventory'!$J422 -> 46555.25
B31: 2014 | E31: =IF('New Inventory'!baseline_year=2014,"Base Year", "") ->  | F31: 2014 | G31: =IF(ISERR(AM$31/'New Inventory'!$K$495),"",(AM$31/'New Inventory'!$K$495*1000)) -> 71962.15385 | H31: =IF(ISERR(AN$31/'New Inventory'!$K$495),"",(AN$31/'New Inventory'!$K$495*1000)) -> 307.6923077 | I31: =IF(ISERR(AO$31/'New Inventory'!$K$495),"",(AO$31/'New Inventory'!$K$495*1000)) -> 276 | J31: =IF(ISERR(AP$31/'New Inventory'!$K$495),"",(AP$31/'New Inventory'!$K$495*1000)) -> 0 | K31: =IF(ISERR(AQ$31/'New Inventory'!$K$495),"",(AQ$31/'New Inventory'!$K$495*1000)) -> 0 | L31: =IF(ISERR(AR$31/'New Inventory'!$K$495),"",(AR$31/'New Inventory'!$K$495*1000)) -> 0 | M31: =IF(ISERR(AS$31/'New Inventory'!$K$495),"",(AS$31/'New Inventory'!$K$495*1000)) -> 0 | N31: =IF(ISERR(AT$31/'New Inventory'!$K$495),"",(AT$31/'New Inventory'!$K$495*1000)) -> 0 | O31: =IF(ISERR(AU$31/'New Inventory'!$K$495),"",(AU$31/'New Inventory'!$K$495*1000)) -> 0 | P31: =IF(ISERR(AV$31/'New Inventory'!$K$495),"",(AV$31/'New Inventory'!$K$495*1000)) -> 8185.538462 | U31: =IF('New Inventory'!$K$497="","",'New Inventory'!$K$497*1000) -> 80731.38462 | V31: 0.007396059126 | W31: -0.2207813498 | AL31: 2014 | AM31: ='New Inventory'!$J460 -> 467754 | AN31: ='New Inventory'!$J461 -> 2000 | AO31: ='New Inventory'!$J462 -> 1794 | AP31: ='New Inventory'!$J463 -> 0 | AQ31: ='New Inventory'!$J464 -> 0 | AR31: ='New Inventory'!$J465 -> 0 | AS31: ='New Inventory'!$J466 -> 0 | AT31: ='New Inventory'!$J467 -> 0 | AU31: ='New Inventory'!$J468 -> 0 | AV31: ='New Inventory'!$J469 -> 53206
B32: 2015 | E32: =IF('New Inventory'!baseline_year=2015,"Base Year", "") ->  | F32: 2015 | G32: =IF(ISERR(AM$32/'New Inventory'!$K$542),"",(AM$32/'New Inventory'!$K$542*1000)) -> 69425.45455 | H32: =IF(ISERR(AN$32/'New Inventory'!$K$542),"",(AN$32/'New Inventory'!$K$542*1000)) -> 303.030303 | I32: =IF(ISERR(AO$32/'New Inventory'!$K$542),"",(AO$32/'New Inventory'!$K$542*1000)) -> 209.0909091 | J32: =IF(ISERR(AP$32/'New Inventory'!$K$542),"",(AP$32/'New Inventory'!$K$542*1000)) -> 0 | K32: =IF(ISERR(AQ$32/'New Inventory'!$K$542),"",(AQ$32/'New Inventory'!$K$542*1000)) -> 0 | L32: =IF(ISERR(AR$32/'New Inventory'!$K$542),"",(AR$32/'New Inventory'!$K$542*1000)) -> 0 | M32: =IF(ISERR(AS$32/'New Inventory'!$K$542),"",(AS$32/'New Inventory'!$K$542*1000)) -> 0 | N32: =IF(ISERR(AT$32/'New Inventory'!$K$542),"",(AT$32/'New Inventory'!$K$542*1000)) -> 0 | O32: =IF(ISERR(AU$32/'New Inventory'!$K$542),"",(AU$32/'New Inventory'!$K$542*1000)) -> 0 | P32: =IF(ISERR(AV$32/'New Inventory'!$K$542),"",(AV$32/'New Inventory'!$K$542*1000)) -> 8061.515152 | U32: =IF('New Inventory'!$K$544="","",'New Inventory'!$K$544*1000) -> 77999.09091 | V32: -0.03384425672 | W32: -0.2471534258 | AL32: 2015 | AM32: ='New Inventory'!J507 -> 458208 | AN32: ='New Inventory'!J508 -> 2000 | AO32: ='New Inventory'!J509 -> 1380 | AP32: ='New Inventory'!J510 -> 0 | AQ32: ='New Inventory'!$J511 -> 0 | AR32: ='New Inventory'!$J512 -> 0 | AS32: ='New Inventory'!$J513 -> 0 | AT32: ='New Inventory'!$J514 -> 0 | AU32: ='New Inventory'!$J515 -> 0 | AV32: ='New Inventory'!$J516 -> 53206
B33: 2016 | E33: =IF('New Inventory'!baseline_year=2016,"Base Year", "") ->  | F33: 2016 | G33: =IF(ISERR(AM$33/'New Inventory'!$K$589),"",(AM$33/'New Inventory'!$K$589*1000)) ->  | H33: =IF(ISERR(AN$33/'New Inventory'!$K$589),"",(AN$33/'New Inventory'!$K$589*1000)) ->  | I33: =IF(ISERR(AO$33/'New Inventory'!$K$589),"",(AO$33/'New Inventory'!$K$589*1000)) ->  | J33: =IF(ISERR(AP$33/'New Inventory'!$K$589),"",(AP$33/'New Inventory'!$K$589*1000)) ->  | K33: =IF(ISERR(AQ$33/'New Inventory'!$K$589),"",(AQ$33/'New Inventory'!$K$589*1000)) ->  | L33: =IF(ISERR(AR$33/'New Inventory'!$K$589),"",(AR$33/'New Inventory'!$K$589*1000)) ->  | M33: =IF(ISERR(AS$33/'New Inventory'!$K$589),"",(AS$33/'New Inventory'!$K$589*1000)) ->  | N33: =IF(ISERR(AT$33/'New Inventory'!$K$589),"",(AT$33/'New Inventory'!$K$589*1000)) ->  | O33: =IF(ISERR(AU$33/'New Inventory'!$K$589),"",(AU$33/'New Inventory'!$K$589*1000)) ->  | P33: =IF(ISERR(AV$33/'New Inventory'!$K$589),"",(AV$33/'New Inventory'!$K$589*1000)) ->  | U33: =IF('New Inventory'!$K$591="","",'New Inventory'!$K$591*1000) ->  | AL33: 2016 | AM33: ='New Inventory'!J554 -> 0 | AN33: ='New Inventory'!J555 -> 0 | AO33: ='New Inventory'!J556 -> 0 | AP33: ='New Inventory'!J557 -> 0 | AQ33: ='New Inventory'!$J558 -> 0 | AR33: ='New Inventory'!$J559 -> 0 | AS33: ='New Inventory'!$J560 -> 0 | AT33: ='New Inventory'!$J561 -> 0 | AU33: ='New Inventory'!$J562 -> 0 | AV33: ='New Inventory'!$J563 -> 0
B34: 2017 | E34: =IF('New Inventory'!baseline_year=2017,"Base Year", "") ->  | F34: 2017 | G34: =IF(ISERR(AM$34/'New Inventory'!$K$636),"",(AM$34/'New Inventory'!$K$636*1000)) ->  | H34: =IF(ISERR(AN$34/'New Inventory'!$K$636),"",(AN$34/'New Inventory'!$K$636*1000)) ->  | I34: =IF(ISERR(AO$34/'New Inventory'!$K$636),"",(AO$34/'New Inventory'!$K$636*1000)) ->  | J34: =IF(ISERR(AP$34/'New Inventory'!$K$636),"",(AP$34/'New Inventory'!$K$636*1000)) ->  | K34: =IF(ISERR(AQ$34/'New Inventory'!$K$636),"",(AQ$34/'New Inventory'!$K$636*1000)) ->  | L34: =IF(ISERR(AR$34/'New Inventory'!$K$636),"",(AR$34/'New Inventory'!$K$636*1000)) ->  | M34: =IF(ISERR(AS$34/'New Inventory'!$K$636),"",(AS$34/'New Inventory'!$K$636*1000)) ->  | N34: =IF(ISERR(AT$34/'New Inventory'!$K$636),"",(AT$34/'New Inventory'!$K$636*1000)) ->  | O34: =IF(ISERR(AU$34/'New Inventory'!$K$636),"",(AU$34/'New Inventory'!$K$636*1000)) ->  | P34: =IF(ISERR(AV$34/'New Inventory'!$K$636),"",(AV$34/'New Inventory'!$K$636*1000)) ->  | U34: =IF('New Inventory'!$K$638="","",'New Inventory'!$K$638*1000) ->  | AL34: 2017 | AM34: ='New Inventory'!J601 -> 0 | AN34: ='New Inventory'!J602 -> 0 | AO34: ='New Inventory'!J603 -> 0 | AP34: ='New Inventory'!J604 -> 0 | AQ34: ='New Inventory'!$J605 -> 0 | AR34: ='New Inventory'!$J606 -> 0 | AS34: ='New Inventory'!$J607 -> 0 | AT34: ='New Inventory'!$J608 -> 0 | AU34: ='New Inventory'!$J609 -> 0 | AV34: ='New Inventory'!$J610 -> 0
B35: 2018 | E35: =IF('New Inventory'!baseline_year=2018,"Base Year", "") ->  | F35: 2018 | G35: =IF(ISERR(AM$35/'New Inventory'!$K$683),"",(AM$35/'New Inventory'!$K$683*1000)) ->  | H35: =IF(ISERR(AN$35/'New Inventory'!$K$683),"",(AN$35/'New Inventory'!$K$683*1000)) ->  | I35: =IF(ISERR(AO$35/'New Inventory'!$K$683),"",(AO$35/'New Inventory'!$K$683*1000)) ->  | J35: =IF(ISERR(AP$35/'New Inventory'!$K$683),"",(AP$35/'New Inventory'!$K$683*1000)) ->  | K35: =IF(ISERR(AQ$35/'New Inventory'!$K$683),"",(AQ$35/'New Inventory'!$K$683*1000)) ->  | L35: =IF(ISERR(AR$35/'New Inventory'!$K$683),"",(AR$35/'New Inventory'!$K$683*1000)) ->  | M35: =IF(ISERR(AS$35/'New Inventory'!$K$683),"",(AS$35/'New Inventory'!$K$683*1000)) ->  | N35: =IF(ISERR(AT$35/'New Inventory'!$K$683),"",(AT$35/'New Inventory'!$K$683*1000)) ->  | O35: =IF(ISERR(AU$35/'New Inventory'!$K$683),"",(AU$35/'New Inventory'!$K$683*1000)) ->  | P35: =IF(ISERR(AV$35/'New Inventory'!$K$683),"",(AV$35/'New Inventory'!$K$683*1000)) ->  | U35: =IF('New Inventory'!$K$685="","",('New Inventory'!$K$685*1000)) ->  | AL35: 2018 | AM35: ='New Inventory'!J648 -> 0 | AN35: ='New Inventory'!J649 -> 0 | AO35: ='New Inventory'!J650 -> 0 | AP35: ='New Inventory'!J651 -> 0 | AQ35: ='New Inventory'!$J652 -> 0 | AR35: ='New Inventory'!$J653 -> 0 | AS35: ='New Inventory'!$J654 -> 0 | AT35: ='New Inventory'!$J655 -> 0 | AU35: ='New Inventory'!$J656 -> 0 | AV35: ='New Inventory'!$J657 -> 0
B36: 2019 | E36: =IF('New Inventory'!baseline_year=2019,"Base Year", "") ->  | F36: 2019 | G36: =IF(ISERR(AM$36/'New Inventory'!$K$730),"",(AM$36/'New Inventory'!$K$730*1000)) ->  | H36: =IF(ISERR(AN$36/'New Inventory'!$K$730),"",(AN$36/'New Inventory'!$K$730*1000)) ->  | I36: =IF(ISERR(AO$36/'New Inventory'!$K$730),"",(AO$36/'New Inventory'!$K$730*1000)) ->  | J36: =IF(ISERR(AP$36/'New Inventory'!$K$730),"",(AP$36/'New Inventory'!$K$730*1000)) ->  | K36: =IF(ISERR(AQ$36/'New Inventory'!$K$730),"",(AQ$36/'New Inventory'!$K$730*1000)) ->  | L36: =IF(ISERR(AR$36/'New Inventory'!$K$730),"",(AR$36/'New Inventory'!$K$730*1000)) ->  | M36: =IF(ISERR(AS$36/'New Inventory'!$K$730),"",(AS$36/'New Inventory'!$K$730*1000)) ->  | N36: =IF(ISERR(AT$36/'New Inventory'!$K$730),"",(AT$36/'New Inventory'!$K$730*1000)) ->  | O36: =IF(ISERR(AU$36/'New Inventory'!$K$730),"",(AU$36/'New Inventory'!$K$730*1000)) ->  | P36: =IF(ISERR(AV$36/'New Inventory'!$K$730),"",(AV$36/'New Inventory'!$K$730*1000)) ->  | U36: =IF('New Inventory'!$K$732="","",'New Inventory'!$K$732*1000) ->  | AL36: 2019 | AM36: ='New Inventory'!J695 -> 0 | AN36: ='New Inventory'!J696 -> 0 | AO36: ='New Inventory'!J697 -> 0 | AP36: ='New Inventory'!J698 -> 0 | AQ36: ='New Inventory'!$J699 -> 0 | AR36: ='New Inventory'!$J700 -> 0 | AS36: ='New Inventory'!$J701 -> 0 | AT36: ='New Inventory'!$J702 -> 0 | AU36: ='New Inventory'!$J703 -> 0 | AV36: ='New Inventory'!$J704 -> 0
B37: 2020 | E37: =IF('New Inventory'!baseline_year=2020,"Base Year", "") ->  | F37: 2020 | G37: =IF(ISERR(AM$37/'New Inventory'!$K$777),"",(AM$37/'New Inventory'!$K$777*1000)) ->  | H37: =IF(ISERR(AN$37/'New Inventory'!$K$777),"",(AN$37/'New Inventory'!$K$777*1000)) ->  | I37: =IF(ISERR(AO$37/'New Inventory'!$K$777),"",(AO$37/'New Inventory'!$K$777*1000)) ->  | J37: =IF(ISERR(AP$37/'New Inventory'!$K$777),"",(AP$37/'New Inventory'!$K$777*1000)) ->  | K37: =IF(ISERR(AQ$37/'New Inventory'!$K$777),"",(AQ$37/'New Inventory'!$K$777*1000)) ->  | L37: =IF(ISERR(AR$37/'New Inventory'!$K$777),"",(AR$37/'New Inventory'!$K$777*1000)) ->  | M37: =IF(ISERR(AS$37/'New Inventory'!$K$777),"",(AS$37/'New Inventory'!$K$777*1000)) ->  | N37: =IF(ISERR(AT$37/'New Inventory'!$K$777),"",(AT$37/'New Inventory'!$K$777*1000)) ->  | O37: =IF(ISERR(AU$37/'New Inventory'!$K$777),"",(AU$37/'New Inventory'!$K$777*1000)) ->  | P37: =IF(ISERR(AV$37/'New Inventory'!$K$777),"",(AV$37/'New Inventory'!$K$777*1000)) ->  | U37: =IF('New Inventory'!$K$779="","",'New Inventory'!$K$779*1000) ->  | AL37: 2020 | AM37: ='New Inventory'!$J743 -> 0 | AN37: ='New Inventory'!$J744 -> 0 | AO37: ='New Inventory'!$J745 -> 0 | AP37: ='New Inventory'!$J746 -> 0 | AQ37: ='New Inventory'!$J747 -> 0 | AR37: ='New Inventory'!$J748 -> 0 | AS37: ='New Inventory'!$J749 -> 0 | AT37: ='New Inventory'!$J750 -> 0 | AU37: ='New Inventory'!$J751 -> 0 | AV37: ='New Inventory'!$J752 -> 0
E38: =IF('New Inventory'!baseline_year=2021,"Base Year", "") ->  | F38: 2021 | AL38: 2021
E39: =IF('New Inventory'!baseline_year=2022,"Base Year", "") ->  | F39: 2022 | AL39: 2022
E40: =IF('New Inventory'!baseline_year=2023,"Base Year", "") ->  | F40: 2023 | AL40: 2023
U43: Base Year | V43: ='New Inventory'!K7 -> 2007
U45: Submission Year | V45: ='New Inventory'!$K$5 -> 2015
U47: =IF('New Inventory'!K9="Square Feet", "Base Year - Kbtu / SF", "Base Year - KBTU / FTE") -> Base Year - KBTU / FTE | V47: =VLOOKUP(V43,F22:U31,16,FALSE) -> 103605.56
U49: =IF('New Inventory'!K9="Square Feet", "Submission Year - Kbtu / SF", "Submission Year - KBTU / FTE") -> Submission Year - KBTU / FTE | V49: =VLOOKUP(submission_year, F22:U37,16,FALSE ) -> 77999.09091
U51: % Change from Base Year | V51: =IFERROR(-(($V$47-$V$49)/$V$47),"") -> -0.2471534258
AG52: ="Carbon Intensity by Fuel Type (CO2 /"&IF('New Inventory'!K9="FTE","FTE","SF")&")" -> Carbon Intensity by Fuel Type (CO2 /FTE)
AG53: ="Carbon Intensity and Energy Intensity " -> Carbon Intensity and Energy Intensity
B54: ="Summary: Carbon Intensity "&IF('New Inventory'!K9="Square Feet", "(lbs CO2e / SF)", "(lbs CO2e / FTE)") -> Summary: Carbon Intensity (lbs CO2e / FTE) | AG54: ="Energy Intensity by Fuel Type (Kbtu/"&IF('New Inventory'!K9="FTE","FTE","SF")&")" -> Energy Intensity by Fuel Type (Kbtu/FTE) | AM54: Carbon Emissions (MTons)
AG55: ="CO2/"&IF('New Inventory'!$K$9="FTE","FTE","SF"&"") -> CO2/FTE
G56: Carbon Intensity By Fuel Type | S56: Pre Offset Carbon Intensity (lbs C02e /SF) | U56: Total Carbon Intensity (lbs C02e / SF) | V56: % Change from prior year | W56: % Change from Base year | AG56: ="KBTU/"&IF('New Inventory'!K9="FTE","FTE","SF"&"") -> KBTU/FTE
F57: Year | G57: Electricity | H57: NG | I57: #2 Oil | J57: #4 Oil | K57: #6 Oil | L57: #2 Oil with B-5 Blend | M57: On-Site Renewable energy | N57: Off-Site Renewable energy | O57: Disel Fuel (Back-Up Gen) | P57: Steam | Q57: Waste | R57: Fleets
AF58: Electricity Consumed (lbs) accounting for offsets from Off-Site Renewable Electricity
AA59: Baseline | AB59: =IF('New Inventory'!K15=30%,30%,40%) -> 0.4 | AF59: Electricity Consumed (MTons) | AG59: Off-Site Renewable Electricity (Mtons) | AH59: Electricity Consumed (MTons) (after Off-Site Renewable Electricity offests Electricity Consumed) | AI59: Lbs of electricity consumed (after being offset by off-site renewable electricity)/SF | AJ59: Lbs of electricity consumed (after being offset by both off-site renewable electricity and Recs)/SF | AM59: Electricity | AN59: NG | AO59: #2 | AP59: #4 | AQ59: #6 | AR59: No. 2 Oil with B5 Blend | AS59: On-Site Renewables | AT59: Off-Site Renewables | AU59: Diessel Fuel Back up Gen | AV59: Steam | AW59: Waste | AX59: Fleets | AY59: Recs
E60: =IF('New Inventory'!baseline_year=2005,"Base Year", "") ->  | F60: 2005 | G60: =IF(ISERR(AM$60/'New Inventory'!$K$72*2204.62),"",(AM$60/'New Inventory'!$K$72*2204.62)) ->  | H60: =IF(ISERR(AN$60/'New Inventory'!$K$72*2204.62),"",(AN$60/'New Inventory'!$K$72*2204.62)) ->  | I60: =IF(ISERR(AO$60/'New Inventory'!$K$72*2204.62),"",(AO$60/'New Inventory'!$K$72*2204.62)) ->  | J60: =IF(ISERR(AP$60/'New Inventory'!$K$72*2204.62),"",(AP$60/'New Inventory'!$K$72*2204.62)) ->  | K60: =IF(ISERR(AQ$60/'New Inventory'!$K$72*2204.62),"",(AQ$60/'New Inventory'!$K$72*2204.62)) ->  | L60: =IF(ISERR(AR$60/'New Inventory'!$K$72*2204.62),"",(AR$60/'New Inventory'!$K$72*2204.62)) ->  | M60: =IF(ISERR(AS$60/'New Inventory'!$K$72*2204.62),"",(AS$60/'New Inventory'!$K$72*2204.62)) ->  | N60: =IF(ISERR(AT$60/'New Inventory'!$K$72*2204.62),"",(AT$60/'New Inventory'!$K$72*2204.62)) ->  | O60: =IF(ISERR(AU$60/'New Inventory'!$K$72*2204.62),"",(AU$60/'New Inventory'!$K$72*2204.62)) ->  | P60: =IF(ISERR(AV$60/'New Inventory'!$K$72*2204.62),"",(AV$60/'New Inventory'!$K$72*2204.62)) ->  | Q60: =IF(ISERR(AW$60/'New Inventory'!$K$72*2204.62),"",(AW$60/'New Inventory'!$K$72*2204.62)) ->  | R60: =IF(ISERR(AX$60/'New Inventory'!$K$72*2204.62),"",(AX$60/'New Inventory'!$K$72*2204.62)) ->  | S60: =IF(('New Inventory'!$K$76)=0,"",('New Inventory'!$K$76)) ->  | T60: =IF(ISERR($AY60/'New Inventory'!$K$72*2204.62),"",($AY60/'New Inventory'!$K$72*2204.62)) ->  | U60: =IFERROR($S60+$T60,"") ->  | W60: =IF(ISERR(($U60-$V$85)/$V$85),"",(($U60-$V$85)/$V$85)) ->  | Z60: 2005 | AA60: ='New Inventory'!$K$15 -> 10776.1188 | AB60: ='New Inventory'!$K$17 -> 5388.059401 | AE60: 2005 | AF60: =$AM60 -> 0 | AG60: =$AT60 -> 0 | AH60: =$AF60+$AG60 -> 0 | AI60: =IF(ISERROR(AH60/'New Inventory'!K72*2204.5),"",(AH60/'New Inventory'!K72*2204.5)) ->  | AJ60: =IFERROR(AI60+T60,"") ->  | AL60: 2005 | AM60: ='New Inventory'!$K37 -> 0 | AN60: ='New Inventory'!$K38 -> 0 | AO60: ='New Inventory'!$K39 -> 0 | AP60: ='New Inventory'!$K40 -> 0 | AQ60: ='New Inventory'!$K41 -> 0 | AR60: ='New Inventory'!$K42 -> 0 | AS60: ='New Inventory'!$K43 -> 0 | AT60: ='New Inventory'!$K44 -> 0 | AU60: ='New Inventory'!$K45 -> 0 | AV60: ='New Inventory'!$K46 -> 0 | AW60: ='New Inventory'!K59 -> 0 | AX60: ='New Inventory'!K68 -> 0 | AY60: =IFERROR(IF(VLOOKUP(Summary!$AL60, RECs!$E$31:$L$40,8,FALSE)="",0,VLOOKUP(Summary!$AL60, RECs!$E$31:$L$40,8,FALSE)),0)*-Coefficients!$C$5 -> 0
E61: =IF('New Inventory'!baseline_year=2006,"Base Year", "") ->  | F61: 2006 | G61: =IF(ISERR(AM$61/'New Inventory'!$K$119*2204.62),"",(AM$61/'New Inventory'!$K$119*2204.62)) ->  | H61: =IF(ISERR(AN$61/'New Inventory'!$K$119*2204.62),"",(AN$61/'New Inventory'!$K$119*2204.62)) ->  | I61: =IF(ISERR(AO$61/'New Inventory'!$K$119*2204.62),"",(AO$61/'New Inventory'!$K$119*2204.62)) ->  | J61: =IF(ISERR(AP$61/'New Inventory'!$K$119*2204.62),"",(AP$61/'New Inventory'!$K$119*2204.62)) ->  | K61: =IF(ISERR(AQ$61/'New Inventory'!$K$119*2204.62),"",(AQ$61/'New Inventory'!$K$119*2204.62)) ->  | L61: =IF(ISERR(AR$61/'New Inventory'!$K$119*2204.62),"",(AR$61/'New Inventory'!$K$119*2204.62)) ->  | M61: =IF(ISERR(AS$61/'New Inventory'!$K$119*2204.62),"",(AS$61/'New Inventory'!$K$119*2204.62)) ->  | N61: =IF(ISERR(AT$61/'New Inventory'!$K$119*2204.62),"",(AT$61/'New Inventory'!$K$119*2204.62)) ->  | O61: =IF(ISERR(AU$61/'New Inventory'!$K$119*2204.62),"",(AU$61/'New Inventory'!$K$119*2204.62)) ->  | P61: =IF(ISERR(AV$61/'New Inventory'!$K$119*2204.62),"",(AV$61/'New Inventory'!$K$119*2204.62)) ->  | Q61: =IF(ISERR(AW$61/'New Inventory'!$K$119*2204.62),"",(AW$61/'New Inventory'!$K$119*2204.62)) ->  | R61: =IF(ISERR(AX$61/'New Inventory'!$K$119*2204.62),"",(AX$61/'New Inventory'!$K$119*2204.62)) ->  | S61: =IF(('New Inventory'!$K$123)=0,"",('New Inventory'!$K$123)) ->  | T61: =IF(ISERR($AY61/'New Inventory'!$K$119*2204.62),"",($AY61/'New Inventory'!$K$119*2204.62)) ->  | U61: =IFERROR($S61+$T61,"") ->  | V61: =IF(ISERR((U61-U60)/U60),"",((U61-U60)/U60)) ->  | Z61: 2006 | AA61: ='New Inventory'!$K$15 -> 10776.1188 | AB61: ='New Inventory'!$K$17 -> 5388.059401 | AE61: 2006 | AF61: =$AM61 -> 0 | AG61: =$AT61 -> 0 | AH61: =$AF61+$AG61 -> 0 | AI61: =IF(ISERROR(AH61/'New Inventory'!K119*2204.5),"",(AH61/'New Inventory'!K119*2204.5)) ->  | AJ61: =IFERROR(AI61+T61,"") ->  | AL61: 2006 | AM61: ='New Inventory'!$K84 -> 0 | AN61: ='New Inventory'!$K85 -> 0 | AO61: ='New Inventory'!$K86 -> 0 | AP61: ='New Inventory'!$K87 -> 0 | AQ61: ='New Inventory'!$K88 -> 0 | AR61: ='New Inventory'!$K89 -> 0 | AS61: ='New Inventory'!$K90 -> 0 | AT61: ='New Inventory'!$K91 -> 0 | AU61: ='New Inventory'!$K92 -> 0 | AV61: ='New Inventory'!$K93 -> 0 | AW61: ='New Inventory'!K106 -> 0 | AX61: ='New Inventory'!K115 -> 0 | AY61: =IFERROR(IF(VLOOKUP(Summary!$AL61, RECs!$E$31:$L$40,8,FALSE)="",0,VLOOKUP(Summary!$AL61, RECs!$E$31:$L$40,8,FALSE)),0)*-Coefficients!$C$5 -> 0
E62: =IF('New Inventory'!baseline_year=2007,"Base Year", "") -> Base Year | F62: 2007 | G62: =IF(ISERR(AM$62/'New Inventory'!$K$166*2204.62),"",(AM$62/'New Inventory'!$K$166*2204.62)) -> 8697.738856 | H62: =IF(ISERR(AN$62/'New Inventory'!$K$166*2204.62),"",(AN$62/'New Inventory'!$K$166*2204.62)) -> 46.87551229 | I62: =IF(ISERR(AO$62/'New Inventory'!$K$166*2204.62),"",(AO$62/'New Inventory'!$K$166*2204.62)) -> 45.256554 | J62: =IF(ISERR(AP$62/'New Inventory'!$K$166*2204.62),"",(AP$62/'New Inventory'!$K$166*2204.62)) -> 0 | K62: =IF(ISERR(AQ$62/'New Inventory'!$K$166*2204.62),"",(AQ$62/'New Inventory'!$K$166*2204.62)) -> 0 | L62: =IF(ISERR(AR$62/'New Inventory'!$K$166*2204.62),"",(AR$62/'New Inventory'!$K$166*2204.62)) -> 0 | M62: =IF(ISERR(AS$62/'New Inventory'!$K$166*2204.62),"",(AS$62/'New Inventory'!$K$166*2204.62)) -> 0 | N62: =IF(ISERR(AT$62/'New Inventory'!$K$166*2204.62),"",(AT$62/'New Inventory'!$K$166*2204.62)) -> 0 | O62: =IF(ISERR(AU$62/'New Inventory'!$K$166*2204.62),"",(AU$62/'New Inventory'!$K$166*2204.62)) -> 0 | P62: =IF(ISERR(AV$62/'New Inventory'!$K$166*2204.62),"",(AV$62/'New Inventory'!$K$166*2204.62)) -> 1986.247879 | Q62: =IF(ISERR(AW$62/'New Inventory'!$K$166*2204.62),"",(AW$62/'New Inventory'!$K$166*2204.62)) -> 0 | R62: =IF(ISERR(AX$62/'New Inventory'!$K$166*2204.62),"",(AX$62/'New Inventory'!$K$166*2204.62)) -> 0 | S62: =IF(('New Inventory'!$K$170)=0,"",('New Inventory'!$K$170)) -> 10776.1188 | T62: =IF(ISERR($AY62/'New Inventory'!$K$166*2204.62),"",($AY62/'New Inventory'!$K$166*2204.62)) -> 0 | U62: 10776.1188 | W62: 0 | Z62: 2007 | AA62: ='New Inventory'!$K$15 -> 10776.1188 | AB62: ='New Inventory'!$K$17 -> 5388.059401 | AE62: 2007 | AF62: 29589.24505 | AG62: 0 | AH62: =$AF62+$AG62 -> 29589.24505 | AI62: =IF(ISERROR(AH62/'New Inventory'!K166*2204.5),"",(AH62/'New Inventory'!K166*2204.5)) -> 8697.265428 | AJ62: 8697.265428 | AL62: 2007 | AM62: ='New Inventory'!$K131 -> 29589.24505 | AN62: ='New Inventory'!$K132 -> 159.468 | AO62: ='New Inventory'!$K133 -> 153.96039 | AP62: ='New Inventory'!$K134 -> 0 | AQ62: ='New Inventory'!$K135 -> 0 | AR62: ='New Inventory'!$K136 -> 0 | AS62: ='New Inventory'!$K137 -> 0 | AT62: ='New Inventory'!$K138 -> 0 | AU62: ='New Inventory'!$K139 -> 0 | AV62: ='New Inventory'!$K140 -> 6757.109658 | AW62: ='New Inventory'!K153 -> 0 | AX62: ='New Inventory'!K162 -> 0 | AY62: =IFERROR(IF(VLOOKUP(Summary!$AL62, RECs!$E$31:$L$40,8,FALSE)="",0,VLOOKUP(Summary!$AL62, RECs!$E$31:$L$40,8,FALSE)),0)*-Coefficients!$C$5 -> 0
E63: =IF('New Inventory'!baseline_year=2008,"Base Year", "") ->  | F63: 2008 | G63: =IF(ISERR(AM$63/'New Inventory'!$K$213*2204.62),"",(AM$63/'New Inventory'!$K$213*2204.62)) -> 8697.738856 | H63: =IF(ISERR(AN$63/'New Inventory'!$K$213*2204.62),"",(AN$63/'New Inventory'!$K$213*2204.62)) -> 43.75047814 | I63: =IF(ISERR(AO$63/'New Inventory'!$K$213*2204.62),"",(AO$63/'New Inventory'!$K$213*2204.62)) -> 30.171036 | J63: =IF(ISERR(AP$63/'New Inventory'!$K$213*2204.62),"",(AP$63/'New Inventory'!$K$213*2204.62)) -> 0 | K63: =IF(ISERR(AQ$63/'New Inventory'!$K$213*2204.62),"",(AQ$63/'New Inventory'!$K$213*2204.62)) -> 0 | L63: =IF(ISERR(AR$63/'New Inventory'!$K$213*2204.62),"",(AR$63/'New Inventory'!$K$213*2204.62)) -> 0 | M63: =IF(ISERR(AS$63/'New Inventory'!$K$213*2204.62),"",(AS$63/'New Inventory'!$K$213*2204.62)) -> 0 | N63: =IF(ISERR(AT$63/'New Inventory'!$K$213*2204.62),"",(AT$63/'New Inventory'!$K$213*2204.62)) -> 0 | O63: =IF(ISERR(AU$63/'New Inventory'!$K$213*2204.62),"",(AU$63/'New Inventory'!$K$213*2204.62)) -> 0 | P63: =IF(ISERR(AV$63/'New Inventory'!$K$213*2204.62),"",(AV$63/'New Inventory'!$K$213*2204.62)) -> 2037.177312 | Q63: =IF(ISERR(AW$63/'New Inventory'!$K$213*2204.62),"",(AW$63/'New Inventory'!$K$213*2204.62)) -> 0 | R63: =IF(ISERR(AX$63/'New Inventory'!$K$213*2204.62),"",(AX$63/'New Inventory'!$K$213*2204.62)) -> 0 | S63: =IF(('New Inventory'!$K$217)=0,"",('New Inventory'!$K$217)) -> 10808.83768 | T63: =IF(ISERR($AY63/'New Inventory'!$K$213*2204.62),"",($AY63/'New Inventory'!$K$213*2204.62)) -> 0 | U63: 10808.83768 | V63: 0.003036239786 | W63: 0.003036239786 | Z63: 2008 | AA63: ='New Inventory'!$K$15 -> 10776.1188 | AB63: ='New Inventory'!$K$17 -> 5388.059401 | AE63: 2008 | AF63: 29589.24505 | AG63: 0 | AH63: 29589.24505 | AI63: =IF(ISERROR(AH63/'New Inventory'!K213*2204.5),"",(AH63/'New Inventory'!K213*2204.5)) -> 8697.265428 | AJ63: 8697.265428 | AL63: 2008 | AM63: ='New Inventory'!$K178 -> 29589.24505 | AN63: ='New Inventory'!$K179 -> 148.8368 | AO63: ='New Inventory'!$K180 -> 102.64026 | AP63: ='New Inventory'!$K181 -> 0 | AQ63: ='New Inventory'!$K182 -> 0 | AR63: ='New Inventory'!$K183 -> 0 | AS63: ='New Inventory'!$K184 -> 0 | AT63: ='New Inventory'!$K185 -> 0 | AU63: ='New Inventory'!$K186 -> 0 | AV63: ='New Inventory'!$K187 -> 6930.36888 | AW63: ='New Inventory'!K200 -> 0 | AX63: ='New Inventory'!K209 -> 0 | AY63: =IFERROR(IF(VLOOKUP(Summary!$AL63, RECs!$E$31:$L$40,8,FALSE)="",0,VLOOKUP(Summary!$AL63, RECs!$E$31:$L$40,8,FALSE)),0)*-Coefficients!$C$5 -> 0
F64: 2009 | G64: =IF(ISERR(AM$64/'New Inventory'!$K$260*2204.62),"",(AM$64/'New Inventory'!$K$260*2204.62)) -> 8888.897952 | H64: =IF(ISERR(AN$64/'New Inventory'!$K$260*2204.62),"",(AN$64/'New Inventory'!$K$260*2204.62)) -> 37.86099069 | I64: =IF(ISERR(AO$64/'New Inventory'!$K$260*2204.62),"",(AO$64/'New Inventory'!$K$260*2204.62)) -> 48.73782738 | J64: =IF(ISERR(AP$64/'New Inventory'!$K$260*2204.62),"",(AP$64/'New Inventory'!$K$260*2204.62)) -> 0 | K64: =IF(ISERR(AQ$64/'New Inventory'!$K$260*2204.62),"",(AQ$64/'New Inventory'!$K$260*2204.62)) -> 0 | L64: =IF(ISERR(AR$64/'New Inventory'!$K$260*2204.62),"",(AR$64/'New Inventory'!$K$260*2204.62)) -> 0 | M64: =IF(ISERR(AS$64/'New Inventory'!$K$260*2204.62),"",(AS$64/'New Inventory'!$K$260*2204.62)) -> 0 | N64: =IF(ISERR(AT$64/'New Inventory'!$K$260*2204.62),"",(AT$64/'New Inventory'!$K$260*2204.62)) -> 0 | O64: =IF(ISERR(AU$64/'New Inventory'!$K$260*2204.62),"",(AU$64/'New Inventory'!$K$260*2204.62)) -> 0 | P64: =IF(ISERR(AV$64/'New Inventory'!$K$260*2204.62),"",(AV$64/'New Inventory'!$K$260*2204.62)) -> 1851.089 | Q64: =IF(ISERR(AW$64/'New Inventory'!$K$260*2204.62),"",(AW$64/'New Inventory'!$K$260*2204.62)) -> 0 | R64: =IF(ISERR(AX$64/'New Inventory'!$K$260*2204.62),"",(AX$64/'New Inventory'!$K$260*2204.62)) -> 0 | S64: =IF(('New Inventory'!$K$264)=0,"",('New Inventory'!$K$264)) -> 10826.58577 | T64: =IF(ISERR($AY64/'New Inventory'!$K$260*2204.62),"",($AY64/'New Inventory'!$K$260*2204.62)) -> 0 | U64: 10826.58577 | V64: 0.001641997784 | W64: 0.00468322307 | Z64: 2009 | AA64: ='New Inventory'!$K$15 -> 10776.1188 | AB64: ='New Inventory'!$K$17 -> 5388.059401 | AE64: 2009 | AF64: 26207.61704 | AG64: 0 | AH64: 26207.61704 | AI64: =IF(ISERROR(AH64/'New Inventory'!K260*2204.5),"",(AH64/'New Inventory'!K260*2204.5)) -> 8888.414119 | AJ64: 8888.414119 | AL64: 2009 | AM64: ='New Inventory'!$K225 -> 26207.61704 | AN64: ='New Inventory'!$K226 -> 111.6276 | AO64: ='New Inventory'!$K227 -> 143.696364 | AP64: ='New Inventory'!$K228 -> 0 | AQ64: ='New Inventory'!$K229 -> 0 | AR64: ='New Inventory'!$K230 -> 0 | AS64: ='New Inventory'!$K231 -> 0 | AT64: ='New Inventory'!$K232 -> 0 | AU64: ='New Inventory'!$K233 -> 0 | AV64: ='New Inventory'!$K234 -> 5457.665493 | AW64: ='New Inventory'!K247 -> 0 | AX64: ='New Inventory'!K256 -> 0 | AY64: =IFERROR(IF(VLOOKUP(Summary!$AL64, RECs!$E$31:$L$40,8,FALSE)="",0,VLOOKUP(Summary!$AL64, RECs!$E$31:$L$40,8,FALSE)),0)*-Coefficients!$C$5 -> 0
F65: 2010 | G65: =IF(ISERR(AM$65/'New Inventory'!$K$307*2204.62),"",(AM$65/'New Inventory'!$K$307*2204.62)) -> 8345.378433 | H65: =IF(ISERR(AN$65/'New Inventory'!$K$307*2204.62),"",(AN$65/'New Inventory'!$K$307*2204.62)) -> 38.47989815 | I65: =IF(ISERR(AO$65/'New Inventory'!$K$307*2204.62),"",(AO$65/'New Inventory'!$K$307*2204.62)) -> 37.15090254 | J65: =IF(ISERR(AP$65/'New Inventory'!$K$307*2204.62),"",(AP$65/'New Inventory'!$K$307*2204.62)) -> 0 | K65: =IF(ISERR(AQ$65/'New Inventory'!$K$307*2204.62),"",(AQ$65/'New Inventory'!$K$307*2204.62)) -> 0 | L65: =IF(ISERR(AR$65/'New Inventory'!$K$307*2204.62),"",(AR$65/'New Inventory'!$K$307*2204.62)) -> 0 | M65: =IF(ISERR(AS$65/'New Inventory'!$K$307*2204.62),"",(AS$65/'New Inventory'!$K$307*2204.62)) -> 0 | N65: =IF(ISERR(AT$65/'New Inventory'!$K$307*2204.62),"",(AT$65/'New Inventory'!$K$307*2204.62)) -> 0 | O65: =IF(ISERR(AU$65/'New Inventory'!$K$307*2204.62),"",(AU$65/'New Inventory'!$K$307*2204.62)) -> 0 | P65: =IF(ISERR(AV$65/'New Inventory'!$K$307*2204.62),"",(AV$65/'New Inventory'!$K$307*2204.62)) -> 1482.274537 | Q65: =IF(ISERR(AW$65/'New Inventory'!$K$307*2204.62),"",(AW$65/'New Inventory'!$K$307*2204.62)) -> 0 | R65: =IF(ISERR(AX$65/'New Inventory'!$K$307*2204.62),"",(AX$65/'New Inventory'!$K$307*2204.62)) -> 0 | S65: =IF(('New Inventory'!$K$311)=0,"",('New Inventory'!$K$311)) -> 9903.283771 | T65: =IF(ISERR($AY65/'New Inventory'!$K$307*2204.62),"",($AY65/'New Inventory'!$K$307*2204.62)) -> 0 | U65: 9903.283771 | V65: -0.08528099427 | W65: -0.08099716112 | Z65: 2010 | AA65: ='New Inventory'!$K$15 -> 10776.1188 | AB65: ='New Inventory'!$K$17 -> 5388.059401 | AE65: 2010 | AF65: 25362.21004 | AG65: 0 | AH65: 25362.21004 | AI65: =IF(ISERROR(AH65/'New Inventory'!K307*2204.5),"",(AH65/'New Inventory'!K307*2204.5)) -> 8344.924185 | AJ65: 8344.924185 | AL65: 2010 | AM65: ='New Inventory'!$K272 -> 25362.21004 | AN65: ='New Inventory'!$K273 -> 116.9432 | AO65: ='New Inventory'!$K274 -> 112.904286 | AP65: ='New Inventory'!$K275 -> 0 | AQ65: ='New Inventory'!$K276 -> 0 | AR65: ='New Inventory'!$K277 -> 0 | AS65: ='New Inventory'!$K278 -> 0 | AT65: ='New Inventory'!$K279 -> 0 | AU65: ='New Inventory'!$K280 -> 0 | AV65: ='New Inventory'!$K281 -> 4504.739772 | AW65: ='New Inventory'!K294 -> 0 | AX65: ='New Inventory'!K303 -> 0 | AY65: =IFERROR(IF(VLOOKUP(Summary!$AL65, RECs!$E$31:$L$40,8,FALSE)="",0,VLOOKUP(Summary!$AL65, RECs!$E$31:$L$40,8,FALSE)),0)*-Coefficients!$C$5 -> 0
F66: 2011 | G66: =IF(ISERR(AM$66/'New Inventory'!$K$354*2204.62),"",(AM$66/'New Inventory'!$K$354*2204.62)) -> 8154.130178 | H66: =IF(ISERR(AN$66/'New Inventory'!$K$354*2204.62),"",(AN$66/'New Inventory'!$K$354*2204.62)) -> 40.28364337 | I66: =IF(ISERR(AO$66/'New Inventory'!$K$354*2204.62),"",(AO$66/'New Inventory'!$K$354*2204.62)) -> 49.49935594 | J66: =IF(ISERR(AP$66/'New Inventory'!$K$354*2204.62),"",(AP$66/'New Inventory'!$K$354*2204.62)) -> 0 | K66: =IF(ISERR(AQ$66/'New Inventory'!$K$354*2204.62),"",(AQ$66/'New Inventory'!$K$354*2204.62)) -> 0 | L66: =IF(ISERR(AR$66/'New Inventory'!$K$354*2204.62),"",(AR$66/'New Inventory'!$K$354*2204.62)) -> 0 | M66: =IF(ISERR(AS$66/'New Inventory'!$K$354*2204.62),"",(AS$66/'New Inventory'!$K$354*2204.62)) -> 0 | N66: =IF(ISERR(AT$66/'New Inventory'!$K$354*2204.62),"",(AT$66/'New Inventory'!$K$354*2204.62)) -> 0 | O66: =IF(ISERR(AU$66/'New Inventory'!$K$354*2204.62),"",(AU$66/'New Inventory'!$K$354*2204.62)) -> 0 | P66: =IF(ISERR(AV$66/'New Inventory'!$K$354*2204.62),"",(AV$66/'New Inventory'!$K$354*2204.62)) -> 1283.182975 | Q66: =IF(ISERR(AW$66/'New Inventory'!$K$354*2204.62),"",(AW$66/'New Inventory'!$K$354*2204.62)) -> 0 | R66: =IF(ISERR(AX$66/'New Inventory'!$K$354*2204.62),"",(AX$66/'New Inventory'!$K$354*2204.62)) -> 0 | S66: =IF(('New Inventory'!$K$358)=0,"",('New Inventory'!$K$358)) -> 9527.096152 | T66: =IF(ISERR($AY66/'New Inventory'!$K$354*2204.62),"",($AY66/'New Inventory'!$K$354*2204.62)) -> 0 | U66: 9527.096152 | V66: -0.03798614962 | W66: -0.1159065405 | Z66: 2011 | AA66: ='New Inventory'!$K$15 -> 10776.1188 | AB66: ='New Inventory'!$K$17 -> 5388.059401 | AE66: 2011 | AF66: 23671.39604 | AG66: 0 | AH66: 23671.39604 | AI66: =IF(ISERROR(AH66/'New Inventory'!K354*2204.5),"",(AH66/'New Inventory'!K354*2204.5)) -> 8153.686339 | AJ66: 8153.686339 | AL66: 2011 | AM66: ='New Inventory'!$K319 -> 23671.39604 | AN66: ='New Inventory'!$K320 -> 116.9432 | AO66: ='New Inventory'!$K321 -> 143.696364 | AP66: ='New Inventory'!$K322 -> 0 | AQ66: ='New Inventory'!$K323 -> 0 | AR66: ='New Inventory'!$K324 -> 0 | AS66: ='New Inventory'!$K325 -> 0 | AT66: ='New Inventory'!$K326 -> 0 | AU66: ='New Inventory'!$K327 -> 0 | AV66: ='New Inventory'!$K328 -> 3725.073273 | AW66: ='New Inventory'!K341 -> 0 | AX66: ='New Inventory'!K350 -> 0 | AY66: =IFERROR(IF(VLOOKUP(Summary!$AL66, RECs!$E$31:$L$40,8,FALSE)="",0,VLOOKUP(Summary!$AL66, RECs!$E$31:$L$40,8,FALSE)),0)*-Coefficients!$C$5 -> 0
F67: 2012 | G67: =IF(ISERR(AM$67/'New Inventory'!$K$401*2204.62),"",(AM$67/'New Inventory'!$K$401*2204.62)) -> 7455.204734 | H67: =IF(ISERR(AN$67/'New Inventory'!$K$401*2204.62),"",(AN$67/'New Inventory'!$K$401*2204.62)) -> 36.05808638 | I67: =IF(ISERR(AO$67/'New Inventory'!$K$401*2204.62),"",(AO$67/'New Inventory'!$K$401*2204.62)) -> 243.6891369 | J67: =IF(ISERR(AP$67/'New Inventory'!$K$401*2204.62),"",(AP$67/'New Inventory'!$K$401*2204.62)) -> 0 | K67: =IF(ISERR(AQ$67/'New Inventory'!$K$401*2204.62),"",(AQ$67/'New Inventory'!$K$401*2204.62)) -> 0 | L67: =IF(ISERR(AR$67/'New Inventory'!$K$401*2204.62),"",(AR$67/'New Inventory'!$K$401*2204.62)) -> 0 | M67: =IF(ISERR(AS$67/'New Inventory'!$K$401*2204.62),"",(AS$67/'New Inventory'!$K$401*2204.62)) -> 0 | N67: =IF(ISERR(AT$67/'New Inventory'!$K$401*2204.62),"",(AT$67/'New Inventory'!$K$401*2204.62)) -> 0 | O67: =IF(ISERR(AU$67/'New Inventory'!$K$401*2204.62),"",(AU$67/'New Inventory'!$K$401*2204.62)) -> 0 | P67: =IF(ISERR(AV$67/'New Inventory'!$K$401*2204.62),"",(AV$67/'New Inventory'!$K$401*2204.62)) -> 1028.382778 | Q67: =IF(ISERR(AW$67/'New Inventory'!$K$401*2204.62),"",(AW$67/'New Inventory'!$K$401*2204.62)) -> 0 | R67: =IF(ISERR(AX$67/'New Inventory'!$K$401*2204.62),"",(AX$67/'New Inventory'!$K$401*2204.62)) -> 0 | S67: =IF(('New Inventory'!$K$405)=0,"",('New Inventory'!$K$405)) -> 8763.334735 | T67: =IF(ISERR($AY67/'New Inventory'!$K$401*2204.62),"",($AY67/'New Inventory'!$K$401*2204.62)) -> 0 | U67: 8763.334735 | V67: -0.08016728338 | W67: -0.1867819114 | Z67: 2012 | AA67: ='New Inventory'!$K$15 -> 10776.1188 | AB67: ='New Inventory'!$K$17 -> 5388.059401 | AE67: 2012 | AF67: 21980.58204 | AG67: 0 | AH67: 21980.58204 | AI67: =IF(ISERROR(AH67/'New Inventory'!K401*2204.5),"",(AH67/'New Inventory'!K401*2204.5)) -> 7454.798939 | AJ67: 7454.798939 | AL67: 2012 | AM67: ='New Inventory'!$K366 -> 21980.58204 | AN67: ='New Inventory'!$K367 -> 106.312 | AO67: ='New Inventory'!$K368 -> 718.48182 | AP67: ='New Inventory'!$K369 -> 0 | AQ67: ='New Inventory'!$K370 -> 0 | AR67: ='New Inventory'!$K371 -> 0 | AS67: ='New Inventory'!$K372 -> 0 | AT67: ='New Inventory'!$K373 -> 0 | AU67: ='New Inventory'!$K374 -> 0 | AV67: ='New Inventory'!$K375 -> 3032.036385 | AW67: ='New Inventory'!K388 -> 0 | AX67: ='New Inventory'!K397 -> 0 | AY67: =IFERROR(IF(VLOOKUP(Summary!$AL67, RECs!$E$31:$L$40,8,FALSE)="",0,VLOOKUP(Summary!$AL67, RECs!$E$31:$L$40,8,FALSE)),0)*-Coefficients!$C$5 -> 0
F68: 2013 | G68: =IF(ISERR(AM$68/'New Inventory'!$K$448*2204.62),"",(AM$68/'New Inventory'!$K$448*2204.62)) -> 7059.852968 | H68: =IF(ISERR(AN$68/'New Inventory'!$K$448*2204.62),"",(AN$68/'New Inventory'!$K$448*2204.62)) -> 40.83851449 | I68: =IF(ISERR(AO$68/'New Inventory'!$K$448*2204.62),"",(AO$68/'New Inventory'!$K$448*2204.62)) -> 68.57053636 | J68: =IF(ISERR(AP$68/'New Inventory'!$K$448*2204.62),"",(AP$68/'New Inventory'!$K$448*2204.62)) -> 0 | K68: =IF(ISERR(AQ$68/'New Inventory'!$K$448*2204.62),"",(AQ$68/'New Inventory'!$K$448*2204.62)) -> 0 | L68: =IF(ISERR(AR$68/'New Inventory'!$K$448*2204.62),"",(AR$68/'New Inventory'!$K$448*2204.62)) -> 0 | M68: =IF(ISERR(AS$68/'New Inventory'!$K$448*2204.62),"",(AS$68/'New Inventory'!$K$448*2204.62)) -> 0 | N68: =IF(ISERR(AT$68/'New Inventory'!$K$448*2204.62),"",(AT$68/'New Inventory'!$K$448*2204.62)) -> 0 | O68: =IF(ISERR(AU$68/'New Inventory'!$K$448*2204.62),"",(AU$68/'New Inventory'!$K$448*2204.62)) -> 0 | P68: =IF(ISERR(AV$68/'New Inventory'!$K$448*2204.62),"",(AV$68/'New Inventory'!$K$448*2204.62)) -> 1012.80122 | Q68: =IF(ISERR(AW$68/'New Inventory'!$K$448*2204.62),"",(AW$68/'New Inventory'!$K$448*2204.62)) -> 0 | R68: =IF(ISERR(AX$68/'New Inventory'!$K$448*2204.62),"",(AX$68/'New Inventory'!$K$448*2204.62)) -> 0 | S68: =IF(('New Inventory'!$K$452)=0,"",('New Inventory'!$K$452)) -> 8182.063239 | T68: =IF(ISERR($AY68/'New Inventory'!$K$448*2204.62),"",($AY68/'New Inventory'!$K$448*2204.62)) -> 0 | U68: 8182.063239 | V68: -0.06632994328 | W68: -0.2407226211 | Z68: 2013 | AA68: ='New Inventory'!$K$15 -> 10776.1188 | AB68: ='New Inventory'!$K$17 -> 5388.059401 | AE68: 2013 | AF68: 21135.17504 | AG68: 0 | AH68: 21135.17504 | AI68: =IF(ISERROR(AH68/'New Inventory'!K448*2204.5),"",(AH68/'New Inventory'!K448*2204.5)) -> 7059.468692 | AJ68: 7059.468692 | AL68: 2013 | AM68: ='New Inventory'!$K413 -> 21135.17504 | AN68: ='New Inventory'!$K414 -> 122.2588 | AO68: ='New Inventory'!$K415 -> 205.28052 | AP68: ='New Inventory'!$K416 -> 0 | AQ68: ='New Inventory'!$K417 -> 0 | AR68: ='New Inventory'!$K418 -> 0 | AS68: ='New Inventory'!$K419 -> 0 | AT68: ='New Inventory'!$K420 -> 0 | AU68: ='New Inventory'!$K421 -> 0 | AV68: ='New Inventory'!$K422 -> 3032.036385 | AW68: ='New Inventory'!K435 -> 0 | AX68: ='New Inventory'!K444 -> 0 | AY68: =IFERROR(IF(VLOOKUP(Summary!$AL68, RECs!$E$31:$L$40,8,FALSE)="",0,VLOOKUP(Summary!$AL68, RECs!$E$31:$L$40,8,FALSE)),0)*-Coefficients!$C$5 -> 0
F69: 2014 | G69: =IF(ISERR(AM$69/'New Inventory'!$K$495*2204.62),"",(AM$69/'New Inventory'!$K$495*2204.62)) -> 7025.096768 | H69: =IF(ISERR(AN$69/'New Inventory'!$K$495*2204.62),"",(AN$69/'New Inventory'!$K$495*2204.62)) -> 36.05808638 | I69: =IF(ISERR(AO$69/'New Inventory'!$K$495*2204.62),"",(AO$69/'New Inventory'!$K$495*2204.62)) -> 45.256554 | J69: =IF(ISERR(AP$69/'New Inventory'!$K$495*2204.62),"",(AP$69/'New Inventory'!$K$495*2204.62)) -> 0 | K69: =IF(ISERR(AQ$69/'New Inventory'!$K$495*2204.62),"",(AQ$69/'New Inventory'!$K$495*2204.62)) -> 0 | L69: =IF(ISERR(AR$69/'New Inventory'!$K$495*2204.62),"",(AR$69/'New Inventory'!$K$495*2204.62)) -> 0 | M69: =IF(ISERR(AS$69/'New Inventory'!$K$495*2204.62),"",(AS$69/'New Inventory'!$K$495*2204.62)) -> 0 | N69: =IF(ISERR(AT$69/'New Inventory'!$K$495*2204.62),"",(AT$69/'New Inventory'!$K$495*2204.62)) -> 0 | O69: =IF(ISERR(AU$69/'New Inventory'!$K$495*2204.62),"",(AU$69/'New Inventory'!$K$495*2204.62)) -> 0 | P69: =IF(ISERR(AV$69/'New Inventory'!$K$495*2204.62),"",(AV$69/'New Inventory'!$K$495*2204.62)) -> 1175.294603 | Q69: =IF(ISERR(AW$69/'New Inventory'!$K$495*2204.62),"",(AW$69/'New Inventory'!$K$495*2204.62)) -> 0 | R69: =IF(ISERR(AX$69/'New Inventory'!$K$495*2204.62),"",(AX$69/'New Inventory'!$K$495*2204.62)) -> 0 | S69: =IF(('New Inventory'!$K$499)=0,"",('New Inventory'!$K$499)) -> 8281.706012 | T69: =IF(ISERR($AY69/'New Inventory'!$K$495*2204.62),"",($AY69/'New Inventory'!$K$495*2204.62)) -> 0 | U69: 8281.706012 | V69: 0.01217819638 | W69: -0.231475992 | Z69: 2014 | AA69: ='New Inventory'!$K$15 -> 10776.1188 | AB69: ='New Inventory'!$K$17 -> 5388.059401 | AE69: 2014 | AF69: 20712.47153 | AG69: 0 | AH69: 20712.47153 | AI69: =IF(ISERROR(AH69/'New Inventory'!K495*2204.5),"",(AH69/'New Inventory'!K495*2204.5)) -> 7024.714384 | AJ69: 7024.714384 | AL69: 2014 | AM69: ='New Inventory'!$K460 -> 20712.47153 | AN69: ='New Inventory'!$K461 -> 106.312 | AO69: ='New Inventory'!$K462 -> 133.432338 | AP69: ='New Inventory'!$K463 -> 0 | AQ69: ='New Inventory'!$K464 -> 0 | AR69: ='New Inventory'!$K465 -> 0 | AS69: ='New Inventory'!$K466 -> 0 | AT69: ='New Inventory'!$K467 -> 0 | AU69: ='New Inventory'!$K468 -> 0 | AV69: ='New Inventory'!$K469 -> 3465.18444 | AW69: ='New Inventory'!K482 -> 0 | AX69: ='New Inventory'!K491 -> 0 | AY69: =IFERROR(IF(VLOOKUP(Summary!$AL69, RECs!$E$31:$L$40,8,FALSE)="",0,VLOOKUP(Summary!$AL69, RECs!$E$31:$L$40,8,FALSE)),0)*-Coefficients!$C$5 -> 0
F70: 2015 | G70: =IF(ISERR(AM$70/'New Inventory'!$K$542*2204.62),"",(AM$70/'New Inventory'!$K$542*2204.62)) -> 6777.458849 | H70: =IF(ISERR(AN$70/'New Inventory'!$K$542*2204.62),"",(AN$70/'New Inventory'!$K$542*2204.62)) -> 35.51175173 | I70: =IF(ISERR(AO$70/'New Inventory'!$K$542*2204.62),"",(AO$70/'New Inventory'!$K$542*2204.62)) -> 34.28526818 | J70: =IF(ISERR(AP$70/'New Inventory'!$K$542*2204.62),"",(AP$70/'New Inventory'!$K$542*2204.62)) -> 0 | K70: =IF(ISERR(AQ$70/'New Inventory'!$K$542*2204.62),"",(AQ$70/'New Inventory'!$K$542*2204.62)) -> 0 | L70: =IF(ISERR(AR$70/'New Inventory'!$K$542*2204.62),"",(AR$70/'New Inventory'!$K$542*2204.62)) -> 0 | M70: =IF(ISERR(AS$70/'New Inventory'!$K$542*2204.62),"",(AS$70/'New Inventory'!$K$542*2204.62)) -> 0 | N70: =IF(ISERR(AT$70/'New Inventory'!$K$542*2204.62),"",(AT$70/'New Inventory'!$K$542*2204.62)) -> 0 | O70: =IF(ISERR(AU$70/'New Inventory'!$K$542*2204.62),"",(AU$70/'New Inventory'!$K$542*2204.62)) -> 0 | P70: =IF(ISERR(AV$70/'New Inventory'!$K$542*2204.62),"",(AV$70/'New Inventory'!$K$542*2204.62)) -> 1157.487109 | Q70: =IF(ISERR(AW$70/'New Inventory'!$K$542*2204.62),"",(AW$70/'New Inventory'!$K$542*2204.62)) -> 0 | R70: =IF(ISERR(AX$70/'New Inventory'!$K$542*2204.62),"",(AX$70/'New Inventory'!$K$542*2204.62)) -> 0 | S70: =IF(('New Inventory'!$K$546)=0,"",('New Inventory'!$K$546)) -> 8004.742978 | T70: =IF(ISERR($AY70/'New Inventory'!$K$542*2204.62),"",($AY70/'New Inventory'!$K$542*2204.62)) -> 0 | U70: 8004.742978 | V70: -0.03344275123 | W70: -0.2571775492 | Z70: 2015 | AA70: ='New Inventory'!$K$15 -> 10776.1188 | AB70: ='New Inventory'!$K$17 -> 5388.059401 | AE70: 2015 | AF70: 20289.76803 | AG70: 0 | AH70: =$AF70+$AG70 -> 20289.76803 | AI70: =IF(ISERROR(AH70/'New Inventory'!K542*2204.5),"",(AH70/'New Inventory'!K542*2204.5)) -> 6777.089944 | AJ70: 6777.089944 | AL70: 2015 | AM70: ='New Inventory'!$K507 -> 20289.76803 | AN70: ='New Inventory'!$K508 -> 106.312 | AO70: ='New Inventory'!$K509 -> 102.64026 | AP70: ='New Inventory'!$K510 -> 0 | AQ70: ='New Inventory'!$K511 -> 0 | AR70: ='New Inventory'!$K512 -> 0 | AS70: ='New Inventory'!$K513 -> 0 | AT70: ='New Inventory'!$K514 -> 0 | AU70: ='New Inventory'!$K515 -> 0 | AV70: ='New Inventory'!$K516 -> 3465.18444 | AW70: ='New Inventory'!K529 -> 0 | AX70: ='New Inventory'!K538 -> 0 | AY70: =IFERROR(IF(VLOOKUP(Summary!$AL70, RECs!$E$31:$L$40,8,FALSE)="",0,VLOOKUP(Summary!$AL70, RECs!$E$31:$L$40,8,FALSE)),0)*-Coefficients!$C$5 -> 0
F71: 2016 | G71: =IF(ISERR(AM$71/'New Inventory'!$K$589*2204.62),"",(AM$71/'New Inventory'!$K$589*2204.62)) ->  | H71: =IF(ISERR(AN$71/'New Inventory'!$K$589*2204.62),"",(AN$71/'New Inventory'!$K$589*2204.62)) ->  | I71: =IF(ISERR(AO$71/'New Inventory'!$K$589*2204.62),"",(AO$71/'New Inventory'!$K$589*2204.62)) ->  | J71: =IF(ISERR(AP$71/'New Inventory'!$K$589*2204.62),"",(AP$71/'New Inventory'!$K$589*2204.62)) ->  | K71: =IF(ISERR(AQ$71/'New Inventory'!$K$589*2204.62),"",(AQ$71/'New Inventory'!$K$589*2204.62)) ->  | L71: =IF(ISERR(AR$71/'New Inventory'!$K$589*2204.62),"",(AR$71/'New Inventory'!$K$589*2204.62)) ->  | M71: =IF(ISERR(AS$71/'New Inventory'!$K$589*2204.62),"",(AS$71/'New Inventory'!$K$589*2204.62)) ->  | N71: =IF(ISERR(AT$71/'New Inventory'!$K$589*2204.62),"",(AT$71/'New Inventory'!$K$589*2204.62)) ->  | O71: =IF(ISERR(AU$71/'New Inventory'!$K$589*2204.62),"",(AU$71/'New Inventory'!$K$589*2204.62)) ->  | P71: =IF(ISERR(AV$71/'New Inventory'!$K$589*2204.62),"",(AV$71/'New Inventory'!$K$589*2204.62)) ->  | Q71: =IF(ISERR(AW$71/'New Inventory'!$K$589*2204.62),"",(AW$71/'New Inventory'!$K$589*2204.62)) ->  | R71: =IF(ISERR(AX$71/'New Inventory'!$K$589*2204.62),"",(AX$71/'New Inventory'!$K$589*2204.62)) ->  | S71: =IF(('New Inventory'!$K$593)=0,"",('New Inventory'!$K$593)) ->  | T71: =IF(ISERR($AY71/'New Inventory'!$K$589*2204.62),"",($AY71/'New Inventory'!$K$589*2204.62)) ->  | Z71: 2016 | AA71: ='New Inventory'!$K$15 -> 10776.1188 | AB71: ='New Inventory'!$K$17 -> 5388.059401 | AE71: 2016 | AF71: 0 | AG71: 0 | AH71: 0 | AI71: =IF(ISERROR(AH71/'New Inventory'!K589*2204.5),"",(AH71/'New Inventory'!K589*2204.5)) ->  | AL71: 2016 | AM71: ='New Inventory'!$K554 -> 0 | AN71: ='New Inventory'!$K555 -> 0 | AO71: ='New Inventory'!$K556 -> 0 | AP71: ='New Inventory'!$K557 -> 0 | AQ71: ='New Inventory'!$K558 -> 0 | AR71: ='New Inventory'!$K559 -> 0 | AS71: ='New Inventory'!$K560 -> 0 | AT71: ='New Inventory'!$K561 -> 0 | AU71: ='New Inventory'!$K562 -> 0 | AV71: ='New Inventory'!$K563 -> 0 | AW71: ='New Inventory'!K576 -> 0 | AX71: ='New Inventory'!K585 -> 0 | AY71: =IFERROR(IF(VLOOKUP(Summary!$AL71, RECs!$E$31:$L$40,8,FALSE)="",0,VLOOKUP(Summary!$AL71, RECs!$E$31:$L$40,8,FALSE)),0)*-Coefficients!$C$5 -> 0
F72: 2017 | G72: =IF(ISERR(AM$72/'New Inventory'!$K$636*2204.62),"",(AM$72/'New Inventory'!$K$636*2204.62)) ->  | H72: =IF(ISERR(AN$72/'New Inventory'!$K$636*2204.62),"",(AN$72/'New Inventory'!$K$636*2204.62)) ->  | I72: =IF(ISERR(AO$72/'New Inventory'!$K$636*2204.62),"",(AO$72/'New Inventory'!$K$636*2204.62)) ->  | J72: =IF(ISERR(AP$72/'New Inventory'!$K$636*2204.62),"",(AP$72/'New Inventory'!$K$636*2204.62)) ->  | K72: =IF(ISERR(AQ$72/'New Inventory'!$K$636*2204.62),"",(AQ$72/'New Inventory'!$K$636*2204.62)) ->  | L72: =IF(ISERR(AR$72/'New Inventory'!$K$636*2204.62),"",(AR$72/'New Inventory'!$K$636*2204.62)) ->  | M72: =IF(ISERR(AS$72/'New Inventory'!$K$636*2204.62),"",(AS$72/'New Inventory'!$K$636*2204.62)) ->  | N72: =IF(ISERR(AT$72/'New Inventory'!$K$636*2204.62),"",(AT$72/'New Inventory'!$K$636*2204.62)) ->  | O72: =IF(ISERR(AU$72/'New Inventory'!$K$636*2204.62),"",(AU$72/'New Inventory'!$K$636*2204.62)) ->  | P72: =IF(ISERR(AV$72/'New Inventory'!$K$636*2204.62),"",(AV$72/'New Inventory'!$K$636*2204.62)) ->  | Q72: =IF(ISERR(AW$72/'New Inventory'!$K$636*2204.62),"",(AW$72/'New Inventory'!$K$636*2204.62)) ->  | R72: =IF(ISERR(AX$72/'New Inventory'!$K$636*2204.62),"",(AX$72/'New Inventory'!$K$636*2204.62)) ->  | S72: =IF(('New Inventory'!$K$640)=0,"",('New Inventory'!$K$640)) ->  | T72: =IF(ISERR($AY72/'New Inventory'!$K$636*2204.62),"",($AY72/'New Inventory'!$K$636*2204.62)) ->  | Z72: 2017 | AA72: ='New Inventory'!$K$15 -> 10776.1188 | AB72: ='New Inventory'!$K$17 -> 5388.059401 | AE72: 2017 | AF72: 0 | AG72: 0 | AH72: 0 | AI72: =IF(ISERROR(AH72/'New Inventory'!K636*2204.5),"",(AH72/'New Inventory'!K636*2204.5)) ->  | AL72: 2017 | AM72: ='New Inventory'!$K601 -> 0 | AN72: ='New Inventory'!$K602 -> 0 | AO72: ='New Inventory'!$K603 -> 0 | AP72: ='New Inventory'!$K604 -> 0 | AQ72: ='New Inventory'!$K605 -> 0 | AR72: ='New Inventory'!$K606 -> 0 | AS72: ='New Inventory'!$K607 -> 0 | AT72: ='New Inventory'!$K608 -> 0 | AU72: ='New Inventory'!$K609 -> 0 | AV72: ='New Inventory'!$K610 -> 0 | AW72: ='New Inventory'!K623 -> 0 | AX72: ='New Inventory'!K632 -> 0 | AY72: =IFERROR(IF(VLOOKUP(Summary!$AL72, RECs!$E$31:$L$40,8,FALSE)="",0,VLOOKUP(Summary!$AL72, RECs!$E$31:$L$40,8,FALSE)),0)*-Coefficients!$C$5 -> 0
F73: 2018 | G73: =IF(ISERR(AM$73/'New Inventory'!$K$683*2204.62),"",(AM$73/'New Inventory'!$K$683*2204.62)) ->  | H73: =IF(ISERR(AN$73/'New Inventory'!$K$683*2204.62),"",(AN$73/'New Inventory'!$K$683*2204.62)) ->  | I73: =IF(ISERR(AO$73/'New Inventory'!$K$683*2204.62),"",(AO$73/'New Inventory'!$K$683*2204.62)) ->  | J73: =IF(ISERR(AP$73/'New Inventory'!$K$683*2204.62),"",(AP$73/'New Inventory'!$K$683*2204.62)) ->  | K73: =IF(ISERR(AQ$73/'New Inventory'!$K$683*2204.62),"",(AQ$73/'New Inventory'!$K$683*2204.62)) ->  | L73: =IF(ISERR(AR$73/'New Inventory'!$K$683*2204.62),"",(AR$73/'New Inventory'!$K$683*2204.62)) ->  | M73: =IF(ISERR(AS$73/'New Inventory'!$K$683*2204.62),"",(AS$73/'New Inventory'!$K$683*2204.62)) ->  | N73: =IF(ISERR(AT$73/'New Inventory'!$K$683*2204.62),"",(AT$73/'New Inventory'!$K$683*2204.62)) ->  | O73: =IF(ISERR(AU$73/'New Inventory'!$K$683*2204.62),"",(AU$73/'New Inventory'!$K$683*2204.62)) ->  | P73: =IF(ISERR(AV$73/'New Inventory'!$K$683*2204.62),"",(AV$73/'New Inventory'!$K$683*2204.62)) ->  | Q73: =IF(ISERR(AW$73/'New Inventory'!$K$683*2204.62),"",(AW$73/'New Inventory'!$K$683*2204.62)) ->  | R73: =IF(ISERR(AX$73/'New Inventory'!$K$683*2204.62),"",(AX$73/'New Inventory'!$K$683*2204.62)) ->  | S73: =IF(('New Inventory'!$K$687)=0,"",('New Inventory'!$K$687)) ->  | T73: =IF(ISERR($AY73/'New Inventory'!$K$683*2204.62),"",($AY73/'New Inventory'!$K$683*2204.62)) ->  | Z73: 2018 | AA73: ='New Inventory'!$K$15 -> 10776.1188 | AB73: ='New Inventory'!$K$17 -> 5388.059401 | AE73: 2018 | AF73: 0 | AG73: 0 | AH73: 0 | AI73: =IF(ISERROR(AH73/'New Inventory'!K683*2204.5),"",(AH73/'New Inventory'!K683*2204.5)) ->  | AL73: 2018 | AM73: ='New Inventory'!$K648 -> 0 | AN73: ='New Inventory'!$K649 -> 0 | AO73: ='New Inventory'!$K650 -> 0 | AP73: ='New Inventory'!$K651 -> 0 | AQ73: ='New Inventory'!$K652 -> 0 | AR73: ='New Inventory'!$K653 -> 0 | AS73: ='New Inventory'!$K654 -> 0 | AT73: ='New Inventory'!$K655 -> 0 | AU73: ='New Inventory'!$K656 -> 0 | AV73: ='New Inventory'!$K667 -> 0 | AW73: ='New Inventory'!K670 -> 0 | AX73: ='New Inventory'!K679 -> 0 | AY73: =IFERROR(IF(VLOOKUP(Summary!$AL73, RECs!$E$31:$L$40,8,FALSE)="",0,VLOOKUP(Summary!$AL73, RECs!$E$31:$L$40,8,FALSE)),0)*-Coefficients!$C$5 -> 0
F74: 2019 | G74: =IF(ISERR(AM$74/'New Inventory'!$K$730*2204.62),"",(AM$74/'New Inventory'!$K$730*2204.62)) ->  | H74: =IF(ISERR(AN$74/'New Inventory'!$K$730*2204.62),"",(AN$74/'New Inventory'!$K$730*2204.62)) ->  | I74: =IF(ISERR(AO$74/'New Inventory'!$K$730*2204.62),"",(AO$74/'New Inventory'!$K$730*2204.62)) ->  | J74: =IF(ISERR(AP$74/'New Inventory'!$K$730*2204.62),"",(AP$74/'New Inventory'!$K$730*2204.62)) ->  | K74: =IF(ISERR(AQ$74/'New Inventory'!$K$730*2204.62),"",(AQ$74/'New Inventory'!$K$730*2204.62)) ->  | L74: =IF(ISERR(AR$74/'New Inventory'!$K$730*2204.62),"",(AR$74/'New Inventory'!$K$730*2204.62)) ->  | M74: =IF(ISERR(AS$74/'New Inventory'!$K$730*2204.62),"",(AS$74/'New Inventory'!$K$730*2204.62)) ->  | N74: =IF(ISERR(AT$74/'New Inventory'!$K$730*2204.62),"",(AT$74/'New Inventory'!$K$730*2204.62)) ->  | O74: =IF(ISERR(AU$74/'New Inventory'!$K$730*2204.62),"",(AU$74/'New Inventory'!$K$730*2204.62)) ->  | P74: =IF(ISERR(AV$74/'New Inventory'!$K$730*2204.62),"",(AV$74/'New Inventory'!$K$730*2204.62)) ->  | Q74: =IF(ISERR(AW$74/'New Inventory'!$K$730*2204.62),"",(AW$74/'New Inventory'!$K$730*2204.62)) ->  | R74: =IF(ISERR(AX$74/'New Inventory'!$K$730*2204.62),"",(AX$74/'New Inventory'!$K$730*2204.62)) ->  | S74: =IF(('New Inventory'!$K$734)=0,"",('New Inventory'!$K$734)) ->  | T74: =IF(ISERR($AY74/'New Inventory'!$K$730*2204.62),"",($AY74/'New Inventory'!$K$730*2204.62)) ->  | Z74: 2019 | AA74: ='New Inventory'!$K$15 -> 10776.1188 | AB74: ='New Inventory'!$K$17 -> 5388.059401 | AE74: 2019 | AF74: 0 | AG74: 0 | AH74: 0 | AI74: =IF(ISERROR(AH74/'New Inventory'!K730*2204.5),"",(AH74/'New Inventory'!K730*2204.5)) ->  | AL74: 2019 | AM74: ='New Inventory'!$K695 -> 0 | AN74: ='New Inventory'!$K696 -> 0 | AO74: ='New Inventory'!$K697 -> 0 | AP74: ='New Inventory'!$K698 -> 0 | AQ74: ='New Inventory'!$K699 -> 0 | AR74: ='New Inventory'!$K700 -> 0 | AS74: ='New Inventory'!$K701 -> 0 | AT74: ='New Inventory'!$K702 -> 0 | AU74: ='New Inventory'!$K703 -> 0 | AV74: ='New Inventory'!$K704 -> 0 | AW74: ='New Inventory'!K717 -> 0 | AX74: ='New Inventory'!K726 -> 0 | AY74: =IFERROR(IF(VLOOKUP(Summary!$AL74, RECs!$E$31:$L$40,8,FALSE)="",0,VLOOKUP(Summary!$AL74, RECs!$E$31:$L$40,8,FALSE)),0)*-Coefficients!$C$5 -> 0
F75: 2020 | G75: =IF(ISERR(AM$75/'New Inventory'!$K$777*2204.62),"",(AM$75/'New Inventory'!$K$777*2204.62)) ->  | H75: =IF(ISERR(AN$75/'New Inventory'!$K$777*2204.62),"",(AN$75/'New Inventory'!$K$777*2204.62)) ->  | I75: =IF(ISERR(AO$75/'New Inventory'!$K$777*2204.62),"",(AO$75/'New Inventory'!$K$777*2204.62)) ->  | J75: =IF(ISERR(AP$75/'New Inventory'!$K$777*2204.62),"",(AP$75/'New Inventory'!$K$777*2204.62)) ->  | K75: =IF(ISERR(AQ$75/'New Inventory'!$K$777*2204.62),"",(AQ$75/'New Inventory'!$K$777*2204.62)) ->  | L75: =IF(ISERR(AR$75/'New Inventory'!$K$777*2204.62),"",(AR$75/'New Inventory'!$K$777*2204.62)) ->  | M75: =IF(ISERR(AS$75/'New Inventory'!$K$777*2204.62),"",(AS$75/'New Inventory'!$K$777*2204.62)) ->  | N75: =IF(ISERR(AT$75/'New Inventory'!$K$777*2204.62),"",(AT$75/'New Inventory'!$K$777*2204.62)) ->  | O75: =IF(ISERR(AU$75/'New Inventory'!$K$777*2204.62),"",(AU$75/'New Inventory'!$K$777*2204.62)) ->  | P75: =IF(ISERR(AV$75/'New Inventory'!$K$777*2204.62),"",(AV$75/'New Inventory'!$K$777*2204.62)) ->  | Q75: =IF(ISERR(AW$75/'New Inventory'!$K$777*2204.62),"",(AW$75/'New Inventory'!$K$777*2204.62)) ->  | R75: =IF(ISERR(AX$75/'New Inventory'!$K$777*2204.62),"",(AX$75/'New Inventory'!$K$777*2204.62)) ->  | S75: =IF(('New Inventory'!$K$781)=0,"",('New Inventory'!$K$781)) ->  | T75: =IF(ISERR($AY75/'New Inventory'!$K$777*2204.62),"",($AY75/'New Inventory'!$K$777*2204.62)) ->  | Z75: 2020 | AA75: ='New Inventory'!$K$15 -> 10776.1188 | AB75: ='New Inventory'!$K$17 -> 5388.059401 | AE75: 2020 | AF75: 0 | AG75: 0 | AH75: 0 | AI75: =IF(ISERROR(AH75/'New Inventory'!K777*2204.5),"",(AH75/'New Inventory'!K777*2204.5)) ->  | AL75: 2020 | AM75: ='New Inventory'!$K742 -> 0 | AN75: ='New Inventory'!$K744 -> 0 | AO75: ='New Inventory'!$K745 -> 0 | AP75: ='New Inventory'!$K746 -> 0 | AQ75: ='New Inventory'!$K747 -> 0 | AR75: ='New Inventory'!$K748 -> 0 | AS75: ='New Inventory'!$K749 -> 0 | AT75: ='New Inventory'!$K750 -> 0 | AU75: ='New Inventory'!$K751 -> 0 | AV75: ='New Inventory'!$K752 -> 0 | AW75: ='New Inventory'!K764 -> 0 | AX75: ='New Inventory'!K773 -> 0 | AY75: =IFERROR(IF(VLOOKUP(Summary!$AL75, RECs!$E$31:$L$40,8,FALSE)="",0,VLOOKUP(Summary!$AL75, RECs!$E$31:$L$40,8,FALSE)),0)*-Coefficients!$C$5 -> 0
F76: 2021 | T76: =IF(ISERR($AY76/'New Inventory'!$K$72*2204.62),"",($AY76/'New Inventory'!$K$72*2204.62)) ->  | Z76: 2021 | AA76: ='New Inventory'!$K$15 -> 10776.1188 | AB76: ='New Inventory'!$K$17 -> 5388.059401 | AE76: 2021 | AF76: 0 | AG76: 0 | AH76: 0 | AI76: =IF(ISERROR(AH76/'New Inventory'!K88*2204.5),"",(AH76/'New Inventory'!K88*2204.5)) ->  | AL76: 2021
F77: 2022 | T77: =IF(ISERR($AY77/'New Inventory'!$K$72*2204.62),"",($AY77/'New Inventory'!$K$72*2204.62)) ->  | Z77: 2022 | AA77: ='New Inventory'!$K$15 -> 10776.1188 | AB77: ='New Inventory'!$K$17 -> 5388.059401 | AE77: 2022 | AF77: 0 | AG77: 0 | AH77: 0 | AI77: =IF(ISERROR(AH77/'New Inventory'!K89*2204.5),"",(AH77/'New Inventory'!K89*2204.5)) ->  | AL77: 2022
F78: 2023 | T78: =IF(ISERR($AY78/'New Inventory'!$K$72*2204.62),"",($AY78/'New Inventory'!$K$72*2204.62)) ->  | Z78: 2023 | AA78: ='New Inventory'!$K$15 -> 10776.1188 | AB78: ='New Inventory'!$K$17 -> 5388.059401 | AE78: 2023 | AF78: 0 | AG78: 0 | AH78: 0 | AL78: 2023
AA80: ='New Inventory'!K17 -> 5388.059401 | AB80: ='New Inventory'!$K$17 -> 5388.059401 | AK80: ='New Inventory'!$K$17 -> 5388.059401 | AL80: ='New Inventory'!$K$17 -> 5388.059401 | AM80: ='New Inventory'!$K$17 -> 5388.059401 | AN80: ='New Inventory'!$K$17 -> 5388.059401 | AO80: ='New Inventory'!$K$17 -> 5388.059401 | AP80: ='New Inventory'!$K$17 -> 5388.059401 | AQ80: ='New Inventory'!$K$17 -> 5388.059401 | AS80: ='New Inventory'!$K$17 -> 5388.059401 | AV80: ='New Inventory'!$K$17 -> 5388.059401 | AZ80: ='New Inventory'!$K$17 -> 5388.059401 | BA80: ='New Inventory'!$K$17 -> 5388.059401 | BB80: ='New Inventory'!$K$17 -> 5388.059401
U81: Base Year | V81: ='New Inventory'!K7 -> 2007
AB82: =IF('New Inventory'!K11=30%,"30% Reduction Goal", IF('New Inventory'!K11=40%, "40% Reduction Goal", IF('New Inventory'!K11=50%, "50% Reduction Goal", ""))) -> 50% Reduction Goal
U83: Submission Year | V83: ='New Inventory'!$K$5 -> 2015
U85: =IF('New Inventory'!K9="Square Feet", "Base Year - Carbon Intensity (CO2e/SF)", "Base Year - Carbon Intensity (CO2e / FTE") -> Base Year - Carbon Intensity (CO2e / FTE | V85: =$V$11 -> 10776.1188
U87: =IF('New Inventory'!K9="Square Feet", "Submission Year - Carbon Intensity (CO2e/SF)", "Submission Year - Carbon Intensity (CO2e / FTE") -> Submission Year - Carbon Intensity (CO2e / FTE | V87: =VLOOKUP($V$83, F60:U75,16,FALSE ) -> 8004.742978
U89: % Change from Base Year | V89: =IFERROR(-(($V$85-$V$87)/$V$85),"") -> -0.2571775492

Sheet Summary of Inputs
B2: NYC Carbon Challenge - Commercial Offices
B4: Climate Action Plan Tool Kit
B10: Summary of Inputs
B11: Below is a summary of your basic information. Please use this information in your Climate Action Plan.
D13: Basic Information | I13: Base Year Inventory | N13: =IF(F23=2012, "2012 Inventory", IF(F23=2013, "2013 Inventory", IF(F23=2014, "2014 Inventory", IF(F23=2015, "2015 Inventory", IF(F23=2016, "2016 Inventory", IF(F23=2017, "2017 Inventory", IF(F23=2018, "2018 Inventory", IF(F23=2019, "2019 Inventory", IF(F23=2020, "2020 Inventory", IF(F23=2021, "2021 Inventory", IF(F23=2022, "2022 Inventory"))))))))))) -> 2015 Inventory
E15: Name | F15: ='New Inventory'!K3 -> City Hall | J15: =IF(F17="Square Feet", "Square Feet", "Average FTE") -> Average FTE | K15: =IF('Summary of Inputs'!F19=2005,'New Inventory'!K72,IF('Summary of Inputs'!F19=2006,'New Inventory'!K119,IF('Summary of Inputs'!F19=2007,'New Inventory'!K166,IF(F19=2008,'New Inventory'!K213,IF('Summary of Inputs'!F19=2009,'New Inventory'!K260,IF('Summary of Inputs'!F19=2010,'New Inventory'!K307,IF(F19=2011,'New Inventory'!K354,""))))))) -> 7500 | O15: =IF(F17="Square Feet", "Square Feet", "Average FTE") -> Average FTE | P15: =IF(F23=2012,'New Inventory'!K401,IF('Summary of Inputs'!F23=2013,'New Inventory'!K448,IF('Summary of Inputs'!F23=2014,'New Inventory'!K495,IF('Summary of Inputs'!F23=2015,'New Inventory'!K542,IF('Summary of Inputs'!F23=2016,'New Inventory'!K589,IF('Summary of Inputs'!F23=2017,'New Inventory'!K636,IF('Summary of Inputs'!F23=2018,'New Inventory'!K683,IF('Summary of Inputs'!F23=2019,'New Inventory'!K730,IF('Summary of Inputs'!F23=2020,'New Inventory'!K777,IF(F23=2021,#REF!,IF('Summary of Inputs'!F23=2022,#REF!,IF('Summary of Inputs'!F23=2023,#REF!, " ")))))))))))) -> 6600
E17: Normalization | F17: ='New Inventory'!K9 -> FTE | J17: Emissions | K17: =IFERROR((IF('Summary of Inputs'!F19=2005, 'New Inventory'!K70, IF('Summary of Inputs'!F19=2006,'New Inventory'!K117, IF('Summary of Inputs'!F19=2007, 'New Inventory'!K164, IF(F19=2008, 'New Inventory'!K211, IF('Summary of Inputs'!F19=2009, 'New Inventory'!K258, IF('Summary of Inputs'!F19=2010, 'New Inventory'!K305, IF(F19=2011,'New Inventory'!K352, " ")))))))),"") -> 36659.7831 | O17: Emissions | P17: =IF(F23=2012,'New Inventory'!K399,IF('Summary of Inputs'!F23=2013,'New Inventory'!K446,IF('Summary of Inputs'!F23=2014,'New Inventory'!K493,IF('Summary of Inputs'!F23=2015,'New Inventory'!K540,IF('Summary of Inputs'!F23=2016,'New Inventory'!K587,IF('Summary of Inputs'!F23=2017,'New Inventory'!K634,IF('Summary of Inputs'!F23=2018,'New Inventory'!K681,IF('Summary of Inputs'!F23=2019,'New Inventory'!K728,)))))))) -> 23963.90473
J18: (Metric Tons of CO2e) | O18: (Metric Tons of CO2e)
E19: Base Year | F19: ='New Inventory'!baseline_year -> 2007 | J19: Energy Use | K19: =IFERROR((IF('Summary of Inputs'!F19=2005, 'New Inventory'!J48, IF('Summary of Inputs'!F19=2006,'New Inventory'!J95, IF('Summary of Inputs'!F19=2007, 'New Inventory'!J142, IF(F19=2008, 'New Inventory'!J189, IF('Summary of Inputs'!F19=2009, 'New Inventory'!J236, IF('Summary of Inputs'!F19=2010, 'New Inventory'!J283, IF(F19=2011, 'New Inventory'!J330, "")))))))),"") -> 777041.7 | O19: Energy Use | P19: =IF(F23=2012,'New Inventory'!J377,IF('Summary of Inputs'!F23=2013,'New Inventory'!J424,IF('Summary of Inputs'!F23=2014,'New Inventory'!J471,IF('Summary of Inputs'!F23=2015,'New Inventory'!J518,IF('Summary of Inputs'!F23=2016,'New Inventory'!J565,IF('Summary of Inputs'!F23=2017,'New Inventory'!J612,IF('Summary of Inputs'!F23=2018,'New Inventory'!J659,IF('Summary of Inputs'!F23=2019,'New Inventory'!J706,IF('Summary of Inputs'!F23=2020,#REF!,IF(F23=2021,#REF!,IF('Summary of Inputs'!F23=2022,#REF!,IF('Summary of Inputs'!F23=2023,#REF!)))))))))))) -> 514794
J20: (MMBtu) | O20: (MMBtu)
E21: End Year | F21: =IF('New Inventory'!K11=50%, 2025,2023) -> 2025 | J21: Carbon Intensity | K21: =IFERROR(((K17/K15)*2204.6226),"") -> 10776.13151 | O21: Carbon Intensity | P21: =IFERROR((P17/P15)*2204.6226,"") -> 8004.752418
J22: =IF(F17="Square Feet", "(lbs CO2e / SF)", "(lbs CO2e / FTE)") -> (lbs CO2e / FTE) | O22: =IF(F17="Square Feet", "(lbs CO2e / SF)", "(lbs CO2e / FTE)") -> (lbs CO2e / FTE)
E23: Submission Year | F23: ='New Inventory'!K5 -> 2015 | J23: Energy Use Intensity | K23: =IFERROR(IF(F17="FTE",(K19*1000)/K15,(K19*1000)/K15),"") -> 103605.56 | O23: Energy Use Intensity | P23: =IFERROR(IF(F17="FTE",(P19*1000)/P15, (P19*1000)/P15),"") -> 77999.09091
J24: =IF(F17="Square Feet", "(Kbtu / SF)", "(KBtu / FTE)") -> (KBtu / FTE) | O24: =IF(F17="Square Feet", "(Kbtu / SF)", "(KBtu / FTE)") -> (KBtu / FTE)
E25: Challenge Goal | F25: ='New Inventory'!K11 -> 0.5 | J25: =IF(F25=30%,"30% Challenge Goal",IF(F25=40%,"40% Challenge Goal",IF(F25=50%,"50% Challenge Goal",""))) -> 50% Challenge Goal | K25: ='New Inventory'!K17 -> 5388.059401 | O25: Carbon Reduction | P25: =Summary!V89 -> -0.2571775492
J26: =IF(F17="Square Feet", "(lbs CO2e / SF)", "(lbs CO2e / FTE)") -> (lbs CO2e / FTE) | O26: % Change from Base Year
O27: Energy Use Reduction | P27: =Summary!V51 -> -0.2471534258
O28: % Change from Base Year

Sheet Table 1
B2: NYC Carbon Challenge - Commercial Offices
B4: Climate Action Plan Tool Kit
B10: Table 1: Energy Use and Emissions Reduction
B11: Please insert this table into your Executive Summary. The table should automatically populate with information
B12: from your Carbon Emissions Inventory.
D15: Carbon Intensity | E15: Energy Use Intensity | S15: Data Center
D16: =IF('Summary of Inputs'!_xlnm.Extract="Square Feet","lbs CO2e/SF","lbs CO2e/FTE") -> lbs CO2e/FTE | E16: =IF('Summary of Inputs'!_xlnm.Extract="Square Feet","Kbtu/SF","KBtu/FTE") -> KBtu/FTE
C17: ='New Inventory'!baseline_year&" (Base)" -> 2007 (Base) | D17: ='Summary of Inputs'!K21 -> 10776.13151 | E17: ='Summary of Inputs'!K23 -> 103605.56
C18: ='New Inventory'!K5&" (Current)" -> 2015 (Current) | D18: ='Summary of Inputs'!P21 -> 8004.752418 | E18: ='Summary of Inputs'!P23 -> 77999.09091 | S18: Hospital (General Medical and Surgical)
C19: Reduction | D19: =IFERROR(((D18-D17)/D17),"") -> -0.2571775492 | E19: =IFERROR(((E18-E17)/E17),"") -> -0.2471534258

Sheet Tables 2-3
B2: NYC Carbon Challenge - Commercial Offices
B4: Climate Action Plan Tool Kit
AA9: Owned
C10: Table 2: List of Properties | O10: Table 3: Property Subtotals | AA10: Leased
C11: Please fill out the data table below for EACH property covered under the Challenge and insert a copy in the "About [Company Name]" section | O11: Please fill out the data table below for EACH campus in your company
C12: of your Climate Action Plan. | O12: and insert a copy in the "About [Company Name]" section of your CAP.
C14: *Note: Please select a property type for each of your covered properties and select all applicable space types located within that property. | O14: Total Properties | P14: =COUNTIF(F22:F96, "Leased")+COUNTIF(F22:F96, "Owned") -> 0
C15: If the square footage of the property is made up of less than 50% of any one property type, please select "Mixed Use" as the property type | O15: Total Area | P15: =SUM(G22:G96) -> 0 | Z15: Property Types | AA15: Space Types
C16: and select all additional space types that apply. A full list of property and space types is included in the "Property Types" sheet. | O16: Total FTE | P16: =SUM(K22:K96) -> 0 | Z16: Bank Branch | AA16: Bank Branch
Z17: Convention Center | AA17: Conference Room
C18: *Note: If the property is leased space, please enter "N/A" for "Owned Floor Area." | Z18: Data Center | AA18: Convention Center
Z19: Financial Office | AA19: Data Center
D20: Property Name | E20: Address | F20: Owned vs. Leased | G20: Occupied Floor Area | I20: Owned Floor Area | K20: FTE | L20: Property Type (Primary Function) | M20: Space Types | Z20: Hotel | AA20: Enclosed Parking/Garage
Z21: Manufacturing/Industrial Plant | AA21: Exterior Parking
C22: 1 | H22: =IF('Tables 2-3'!F22="Leased", "RSF", IF(F22="Owned", "GSF", " ")) ->  | J22: =IF('Tables 2-3'!F22="Leased", " ", IF(F22="Owned", "GSF", " ")) ->  | Z22: Medical Office | AA22: Financial Office
C23: 2 | H23: =IF('Tables 2-3'!F23="Leased", "RSF", IF(F23="Owned", "GSF", " ")) ->  | J23: =IF('Tables 2-3'!F23="Leased", " ", IF(F23="Owned", "GSF", " ")) ->  | Z23: Mixed Use Property | AA23: Fitness Center/Gym
C24: 3 | H24: =IF('Tables 2-3'!F24="Leased", "RSF", IF(F24="Owned", "GSF", " ")) ->  | J24: =IF('Tables 2-3'!F24="Leased", " ", IF(F24="Owned", "GSF", " ")) ->  | Z24: Multifamily Housing | AA24: Hotel
C25: 4 | H25: =IF('Tables 2-3'!F25="Leased", "RSF", IF(F25="Owned", "GSF", " ")) ->  | J25: =IF('Tables 2-3'!F25="Leased", " ", IF(F25="Owned", "GSF", " ")) ->  | Z25: Museum | AA25: HVAC/Mechanical Rooms
C26: 5 | H26: =IF('Tables 2-3'!F26="Leased", "RSF", IF(F26="Owned", "GSF", " ")) ->  | J26: =IF('Tables 2-3'!F26="Leased", " ", IF(F26="Owned", "GSF", " ")) ->  | Z26: Office | AA26: Kitchen
C27: 6 | H27: =IF('Tables 2-3'!F27="Leased", "RSF", IF(F27="Owned", "GSF", " ")) ->  | J27: =IF('Tables 2-3'!F27="Leased", " ", IF(F27="Owned", "GSF", " ")) ->  | Z27: Other | AA27: Laboratory
C28: 7 | H28: =IF('Tables 2-3'!F28="Leased", "RSF", IF(F28="Owned", "GSF", " ")) ->  | J28: =IF('Tables 2-3'!F28="Leased", " ", IF(F28="Owned", "GSF", " ")) ->  | Z28: Parking/Garage | AA28: Medical Office
C29: 8 | H29: =IF('Tables 2-3'!F29="Leased", "RSF", IF(F29="Owned", "GSF", " ")) ->  | J29: =IF('Tables 2-3'!F29="Leased", " ", IF(F29="Owned", "GSF", " ")) ->  | Z29: Recreation | AA29: Multifamily Housing
C30: 9 | H30: =IF('Tables 2-3'!F30="Leased", "RSF", IF(F30="Owned", "GSF", " ")) ->  | J30: =IF('Tables 2-3'!F30="Leased", " ", IF(F30="Owned", "GSF", " ")) ->  | Z30: Residence Hall/Dorm | AA30: Museum
C31: 10 | H31: =IF('Tables 2-3'!F31="Leased", "RSF", IF(F31="Owned", "GSF", " ")) ->  | J31: =IF('Tables 2-3'!F31="Leased", " ", IF(F31="Owned", "GSF", " ")) ->  | Z31: Restaurant/Cafeteria | AA31: Office
C32: 11 | H32: =IF('Tables 2-3'!F32="Leased", "RSF", IF(F32="Owned", "GSF", " ")) ->  | J32: =IF('Tables 2-3'!F32="Leased", " ", IF(F32="Owned", "GSF", " ")) ->  | Z32: Single Family Home | AA32: Other
C33: 12 | H33: =IF('Tables 2-3'!F33="Leased", "RSF", IF(F33="Owned", "GSF", " ")) ->  | J33: =IF('Tables 2-3'!F33="Leased", " ", IF(F33="Owned", "GSF", " ")) ->  | Z33: Theater | AA33: Recreation
C34: 13 | H34: =IF('Tables 2-3'!F34="Leased", "RSF", IF(F34="Owned", "GSF", " ")) ->  | J34: =IF('Tables 2-3'!F34="Leased", " ", IF(F34="Owned", "GSF", " ")) ->  | Z34: Warehouse/Storage | AA34: Residence Hall/Dorm
C35: 14 | H35: =IF('Tables 2-3'!F35="Leased", "RSF", IF(F35="Owned", "GSF", " ")) ->  | J35: =IF('Tables 2-3'!F35="Leased", " ", IF(F35="Owned", "GSF", " ")) ->  | Z35: Worship Facility | AA35: Restaurant/Cafeteria
C36: 15 | H36: =IF('Tables 2-3'!F36="Leased", "RSF", IF(F36="Owned", "GSF", " ")) ->  | J36: =IF('Tables 2-3'!F36="Leased", " ", IF(F36="Owned", "GSF", " ")) ->  | AA36: Retail
C37: 16 | H37: =IF('Tables 2-3'!F37="Leased", "RSF", IF(F37="Owned", "GSF", " ")) ->  | J37: =IF('Tables 2-3'!F37="Leased", " ", IF(F37="Owned", "GSF", " ")) ->  | AA37: Server Room
C38: 17 | H38: =IF('Tables 2-3'!F38="Leased", "RSF", IF(F38="Owned", "GSF", " ")) ->  | J38: =IF('Tables 2-3'!F38="Leased", " ", IF(F38="Owned", "GSF", " ")) ->  | AA38: Swimming Pool
C39: 18 | H39: =IF('Tables 2-3'!F39="Leased", "RSF", IF(F39="Owned", "GSF", " ")) ->  | J39: =IF('Tables 2-3'!F39="Leased", " ", IF(F39="Owned", "GSF", " ")) ->  | AA39: Telecom Room
C40: 19 | H40: =IF('Tables 2-3'!F40="Leased", "RSF", IF(F40="Owned", "GSF", " ")) ->  | J40: =IF('Tables 2-3'!F40="Leased", " ", IF(F40="Owned", "GSF", " ")) ->  | AA40: Theater
C41: 20 | H41: =IF('Tables 2-3'!F41="Leased", "RSF", IF(F41="Owned", "GSF", " ")) ->  | J41: =IF('Tables 2-3'!F41="Leased", " ", IF(F41="Owned", "GSF", " ")) ->  | AA41: Trading Desks
C42: 21 | H42: =IF('Tables 2-3'!F42="Leased", "RSF", IF(F42="Owned", "GSF", " ")) ->  | J42: =IF('Tables 2-3'!F42="Leased", " ", IF(F42="Owned", "GSF", " ")) ->  | AA42: Warehouse/Storage
C43: 22 | H43: =IF('Tables 2-3'!F43="Leased", "RSF", IF(F43="Owned", "GSF", " ")) ->  | J43: =IF('Tables 2-3'!F43="Leased", " ", IF(F43="Owned", "GSF", " ")) ->  | AA43: Worship Facility
C44: 23 | H44: =IF('Tables 2-3'!F44="Leased", "RSF", IF(F44="Owned", "GSF", " ")) ->  | J44: =IF('Tables 2-3'!F44="Leased", " ", IF(F44="Owned", "GSF", " ")) -> 
C45: 24 | H45: =IF('Tables 2-3'!F45="Leased", "RSF", IF(F45="Owned", "GSF", " ")) ->  | J45: =IF('Tables 2-3'!F45="Leased", " ", IF(F45="Owned", "GSF", " ")) -> 
C46: 25 | H46: =IF('Tables 2-3'!F46="Leased", "RSF", IF(F46="Owned", "GSF", " ")) ->  | J46: =IF('Tables 2-3'!F46="Leased", " ", IF(F46="Owned", "GSF", " ")) -> 
C47: 26 | H47: =IF('Tables 2-3'!F47="Leased", "RSF", IF(F47="Owned", "GSF", " ")) ->  | J47: =IF('Tables 2-3'!F47="Leased", " ", IF(F47="Owned", "GSF", " ")) -> 
C48: 27 | H48: =IF('Tables 2-3'!F48="Leased", "RSF", IF(F48="Owned", "GSF", " ")) ->  | J48: =IF('Tables 2-3'!F48="Leased", " ", IF(F48="Owned", "GSF", " ")) -> 
C49: 28 | H49: =IF('Tables 2-3'!F49="Leased", "RSF", IF(F49="Owned", "GSF", " ")) ->  | J49: =IF('Tables 2-3'!F49="Leased", " ", IF(F49="Owned", "GSF", " ")) -> 
C50: 29 | H50: =IF('Tables 2-3'!F50="Leased", "RSF", IF(F50="Owned", "GSF", " ")) ->  | J50: =IF('Tables 2-3'!F50="Leased", " ", IF(F50="Owned", "GSF", " ")) -> 
C51: 30 | H51: =IF('Tables 2-3'!F51="Leased", "RSF", IF(F51="Owned", "GSF", " ")) ->  | J51: =IF('Tables 2-3'!F51="Leased", " ", IF(F51="Owned", "GSF", " ")) -> 
C52: 31 | H52: =IF('Tables 2-3'!F52="Leased", "RSF", IF(F52="Owned", "GSF", " ")) ->  | J52: =IF('Tables 2-3'!F52="Leased", " ", IF(F52="Owned", "GSF", " ")) -> 
C53: 32 | H53: =IF('Tables 2-3'!F53="Leased", "RSF", IF(F53="Owned", "GSF", " ")) ->  | J53: =IF('Tables 2-3'!F53="Leased", " ", IF(F53="Owned", "GSF", " ")) -> 
C54: 33 | H54: =IF('Tables 2-3'!F54="Leased", "RSF", IF(F54="Owned", "GSF", " ")) ->  | J54: =IF('Tables 2-3'!F54="Leased", " ", IF(F54="Owned", "GSF", " ")) -> 
C55: 34 | H55: =IF('Tables 2-3'!F55="Leased", "RSF", IF(F55="Owned", "GSF", " ")) ->  | J55: =IF('Tables 2-3'!F55="Leased", " ", IF(F55="Owned", "GSF", " ")) -> 
C56: 35 | H56: =IF('Tables 2-3'!F56="Leased", "RSF", IF(F56="Owned", "GSF", " ")) ->  | J56: =IF('Tables 2-3'!F56="Leased", " ", IF(F56="Owned", "GSF", " ")) -> 
C57: 36 | H57: =IF('Tables 2-3'!F57="Leased", "RSF", IF(F57="Owned", "GSF", " ")) ->  | J57: =IF('Tables 2-3'!F57="Leased", " ", IF(F57="Owned", "GSF", " ")) -> 
C58: 37 | H58: =IF('Tables 2-3'!F58="Leased", "RSF", IF(F58="Owned", "GSF", " ")) ->  | J58: =IF('Tables 2-3'!F58="Leased", " ", IF(F58="Owned", "GSF", " ")) -> 
C59: 38 | H59: =IF('Tables 2-3'!F59="Leased", "RSF", IF(F59="Owned", "GSF", " ")) ->  | J59: =IF('Tables 2-3'!F59="Leased", " ", IF(F59="Owned", "GSF", " ")) -> 
C60: 39 | H60: =IF('Tables 2-3'!F60="Leased", "RSF", IF(F60="Owned", "GSF", " ")) ->  | J60: =IF('Tables 2-3'!F60="Leased", " ", IF(F60="Owned", "GSF", " ")) -> 
C61: 40 | H61: =IF('Tables 2-3'!F61="Leased", "RSF", IF(F61="Owned", "GSF", " ")) ->  | J61: =IF('Tables 2-3'!F61="Leased", " ", IF(F61="Owned", "GSF", " ")) -> 
C62: 41 | H62: =IF('Tables 2-3'!F62="Leased", "RSF", IF(F62="Owned", "GSF", " ")) ->  | J62: =IF('Tables 2-3'!F62="Leased", " ", IF(F62="Owned", "GSF", " ")) -> 
C63: 42 | H63: =IF('Tables 2-3'!F63="Leased", "RSF", IF(F63="Owned", "GSF", " ")) ->  | J63: =IF('Tables 2-3'!F63="Leased", " ", IF(F63="Owned", "GSF", " ")) -> 
C64: 43 | H64: =IF('Tables 2-3'!F64="Leased", "RSF", IF(F64="Owned", "GSF", " ")) ->  | J64: =IF('Tables 2-3'!F64="Leased", " ", IF(F64="Owned", "GSF", " ")) -> 
C65: 44 | H65: =IF('Tables 2-3'!F65="Leased", "RSF", IF(F65="Owned", "GSF", " ")) ->  | J65: =IF('Tables 2-3'!F65="Leased", " ", IF(F65="Owned", "GSF", " ")) -> 
C66: 45 | H66: =IF('Tables 2-3'!F66="Leased", "RSF", IF(F66="Owned", "GSF", " ")) ->  | J66: =IF('Tables 2-3'!F66="Leased", " ", IF(F66="Owned", "GSF", " ")) -> 
C67: 46 | H67: =IF('Tables 2-3'!F67="Leased", "RSF", IF(F67="Owned", "GSF", " ")) ->  | J67: =IF('Tables 2-3'!F67="Leased", " ", IF(F67="Owned", "GSF", " ")) -> 
C68: 47 | H68: =IF('Tables 2-3'!F68="Leased", "RSF", IF(F68="Owned", "GSF", " ")) ->  | J68: =IF('Tables 2-3'!F68="Leased", " ", IF(F68="Owned", "GSF", " ")) -> 
C69: 48 | H69: =IF('Tables 2-3'!F69="Leased", "RSF", IF(F69="Owned", "GSF", " ")) ->  | J69: =IF('Tables 2-3'!F69="Leased", " ", IF(F69="Owned", "GSF", " ")) -> 
C70: 49 | H70: =IF('Tables 2-3'!F70="Leased", "RSF", IF(F70="Owned", "GSF", " ")) ->  | J70: =IF('Tables 2-3'!F70="Leased", " ", IF(F70="Owned", "GSF", " ")) -> 
C71: 50 | H71: =IF('Tables 2-3'!F71="Leased", "RSF", IF(F71="Owned", "GSF", " ")) ->  | J71: =IF('Tables 2-3'!F71="Leased", " ", IF(F71="Owned", "GSF", " ")) -> 
C72: 51 | H72: =IF('Tables 2-3'!F72="Leased", "RSF", IF(F72="Owned", "GSF", " ")) ->  | J72: =IF('Tables 2-3'!F72="Leased", " ", IF(F72="Owned", "GSF", " ")) -> 
C73: 52 | H73: =IF('Tables 2-3'!F73="Leased", "RSF", IF(F73="Owned", "GSF", " ")) ->  | J73: =IF('Tables 2-3'!F73="Leased", " ", IF(F73="Owned", "GSF", " ")) -> 
C74: 53 | H74: =IF('Tables 2-3'!F74="Leased", "RSF", IF(F74="Owned", "GSF", " ")) ->  | J74: =IF('Tables 2-3'!F74="Leased", " ", IF(F74="Owned", "GSF", " ")) -> 
C75: 54 | H75: =IF('Tables 2-3'!F75="Leased", "RSF", IF(F75="Owned", "GSF", " ")) ->  | J75: =IF('Tables 2-3'!F75="Leased", " ", IF(F75="Owned", "GSF", " ")) -> 
C76: 55 | H76: =IF('Tables 2-3'!F76="Leased", "RSF", IF(F76="Owned", "GSF", " ")) ->  | J76: =IF('Tables 2-3'!F76="Leased", " ", IF(F76="Owned", "GSF", " ")) -> 
C77: 56 | H77: =IF('Tables 2-3'!F77="Leased", "RSF", IF(F77="Owned", "GSF", " ")) ->  | J77: =IF('Tables 2-3'!F77="Leased", " ", IF(F77="Owned", "GSF", " ")) -> 
C78: 57 | H78: =IF('Tables 2-3'!F78="Leased", "RSF", IF(F78="Owned", "GSF", " ")) ->  | J78: =IF('Tables 2-3'!F78="Leased", " ", IF(F78="Owned", "GSF", " ")) -> 
C79: 58 | H79: =IF('Tables 2-3'!F79="Leased", "RSF", IF(F79="Owned", "GSF", " ")) ->  | J79: =IF('Tables 2-3'!F79="Leased", " ", IF(F79="Owned", "GSF", " ")) -> 
C80: 59 | H80: =IF('Tables 2-3'!F80="Leased", "RSF", IF(F80="Owned", "GSF", " ")) ->  | J80: =IF('Tables 2-3'!F80="Leased", " ", IF(F80="Owned", "GSF", " ")) -> 
C81: 60 | H81: =IF('Tables 2-3'!F81="Leased", "RSF", IF(F81="Owned", "GSF", " ")) ->  | J81: =IF('Tables 2-3'!F81="Leased", " ", IF(F81="Owned", "GSF", " ")) -> 
C82: 61 | H82: =IF('Tables 2-3'!F82="Leased", "RSF", IF(F82="Owned", "GSF", " ")) ->  | J82: =IF('Tables 2-3'!F82="Leased", " ", IF(F82="Owned", "GSF", " ")) -> 
C83: 62 | H83: =IF('Tables 2-3'!F83="Leased", "RSF", IF(F83="Owned", "GSF", " ")) ->  | J83: =IF('Tables 2-3'!F83="Leased", " ", IF(F83="Owned", "GSF", " ")) -> 
C84: 63 | H84: =IF('Tables 2-3'!F84="Leased", "RSF", IF(F84="Owned", "GSF", " ")) ->  | J84: =IF('Tables 2-3'!F84="Leased", " ", IF(F84="Owned", "GSF", " ")) -> 
C85: 64 | H85: =IF('Tables 2-3'!F85="Leased", "RSF", IF(F85="Owned", "GSF", " ")) ->  | J85: =IF('Tables 2-3'!F85="Leased", " ", IF(F85="Owned", "GSF", " ")) -> 
C86: 65 | H86: =IF('Tables 2-3'!F86="Leased", "RSF", IF(F86="Owned", "GSF", " ")) ->  | J86: =IF('Tables 2-3'!F86="Leased", " ", IF(F86="Owned", "GSF", " ")) -> 
C87: 66 | H87: =IF('Tables 2-3'!F87="Leased", "RSF", IF(F87="Owned", "GSF", " ")) ->  | J87: =IF('Tables 2-3'!F87="Leased", " ", IF(F87="Owned", "GSF", " ")) -> 
C88: 67 | H88: =IF('Tables 2-3'!F88="Leased", "RSF", IF(F88="Owned", "GSF", " ")) ->  | J88: =IF('Tables 2-3'!F88="Leased", " ", IF(F88="Owned", "GSF", " ")) -> 
C89: 68 | H89: =IF('Tables 2-3'!F89="Leased", "RSF", IF(F89="Owned", "GSF", " ")) ->  | J89: =IF('Tables 2-3'!F89="Leased", " ", IF(F89="Owned", "GSF", " ")) -> 
C90: 69 | H90: =IF('Tables 2-3'!F90="Leased", "RSF", IF(F90="Owned", "GSF", " ")) ->  | J90: =IF('Tables 2-3'!F90="Leased", " ", IF(F90="Owned", "GSF", " ")) -> 
C91: 70 | H91: =IF('Tables 2-3'!F91="Leased", "RSF", IF(F91="Owned", "GSF", " ")) ->  | J91: =IF('Tables 2-3'!F91="Leased", " ", IF(F91="Owned", "GSF", " ")) -> 
C92: 71 | H92: =IF('Tables 2-3'!F92="Leased", "RSF", IF(F92="Owned", "GSF", " ")) ->  | J92: =IF('Tables 2-3'!F92="Leased", " ", IF(F92="Owned", "GSF", " ")) -> 
C93: 72 | H93: =IF('Tables 2-3'!F93="Leased", "RSF", IF(F93="Owned", "GSF", " ")) ->  | J93: =IF('Tables 2-3'!F93="Leased", " ", IF(F93="Owned", "GSF", " ")) -> 
C94: 73 | H94: =IF('Tables 2-3'!F94="Leased", "RSF", IF(F94="Owned", "GSF", " ")) ->  | J94: =IF('Tables 2-3'!F94="Leased", " ", IF(F94="Owned", "GSF", " ")) -> 
C95: 74 | H95: =IF('Tables 2-3'!F95="Leased", "RSF", IF(F95="Owned", "GSF", " ")) ->  | J95: =IF('Tables 2-3'!F95="Leased", " ", IF(F95="Owned", "GSF", " ")) -> 
C96: 75 | H96: =IF('Tables 2-3'!F96="Leased", "RSF", IF(F96="Owned", "GSF", " ")) ->  | J96: =IF('Tables 2-3'!F96="Leased", " ", IF(F96="Owned", "GSF", " ")) -> 

Sheet Table 4
B2: NYC Carbon Challenge - Commercial Offices
B4: Climate Action Plan Tool Kit
C10: Table 4: Benchmarking Results
C11: OWNER-OCCUPIERS: Please fill out the table below with your NYC Local Law 84 benchmarking information for the most recent year and insert a copy
C12: in the "Benchmarking Information" section of your Climate Action Plan.
C14: COMMERCIAL TENANTS: It is optional (but strongly encouraged) to fill out the table below with Local Law 84 benchmarking information for the
C15: buildings where your company leases space. Please also include the rentable square footage and space types you have for each benchmarked
C16: building in the Notes section. All Local Law 84 benchmarking information is available online at www.nyc.gov/ll84.
C18: OPTIONAL: It is optional (but also encouraged) to include benchmarking information for your company's base year in the Challenge.
C20: Building Name | D20: Address | E20: BIN | F20: BBL | G20: Site EUI (kBtu/ft2) | H20: Source EUI (kBtu/ft2) | I20: ENERGY STAR Score | J20: Reported Gross SF | K20: LL87 Compliance Year | L20: Notes
K21: =IF(RIGHT(F21,1)="0", 2020, IF(RIGHT(F21,1)="1",2021, IF(RIGHT(F21,1)="2",2022, IF(RIGHT(F21,1)="3",2013, IF(RIGHT(F21,1)="4",2014, IF(RIGHT(F21,1)="5",2015, IF(RIGHT(F21,1)="6",2016, IF(RIGHT(F21,1)="7",2017, IF(RIGHT(F21,1)="8",2018, IF(RIGHT(F21,1)="9",2019, "-")))))))))) -> -
K22: =IF(RIGHT(F22,1)="0", 2020, IF(RIGHT(F22,1)="1",2021, IF(RIGHT(F22,1)="2",2022, IF(RIGHT(F22,1)="3",2013, IF(RIGHT(F22,1)="4",2014, IF(RIGHT(F22,1)="5",2015, IF(RIGHT(F22,1)="6",2016, IF(RIGHT(F22,1)="7",2017, IF(RIGHT(F22,1)="8",2018, IF(RIGHT(F22,1)="9",2019, "-")))))))))) -> -
K23: -
K24: -
K25: -
K26: -
K27: -
K28: -
K29: -
K30: -
K31: -
K32: -
K33: -
K34: -
K35: -
K36: -
K37: -
K38: -
K39: -
K40: -
K41: -
K42: -
K43: -
K44: -
K45: -
K46: -
K47: -
K48: -
K49: -
K50: -
K51: -
K52: -
K53: -
K54: -
K55: -
K56: -
K57: -
K58: -
K59: -
K60: -
K61: -
K62: -
K63: -
K64: -
K65: -
K66: -
K67: -
K68: -
K69: -
K70: -
K71: -
K72: -
K73: -
K74: -
K75: -
K76: -
K77: -
K78: -
K79: -
K80: -

Sheet Tables 5-7
E2: NYC Carbon Challenge - Commercial Offices
E3: Climate Action Plan Tool Kit
G11: Table 5: Metrics | K11: Table 6: Emissions in Base Year and Submission Year
G12: Please insert this table in the Carbon Emissions Inventory section of your CAP | K12: Please insert this table in the Carbon Emissions Inventory
K13: section of your CAP.
G15: ='[2]New Inventory'!K3&"'s Metrics and Goal" -> City Hall Inc.'s Metrics and Goal | L15: =TEXT('New Inventory'!baseline_year,"####") -> 2007 | M15: =TEXT(submission_year,"####") -> 2015 | N15: Change
G16: Participant Type | H16: ='New Inventory'!F24 -> Owner-Occupier | K16: Total Emissions (Mg CO2e) | L16: ='Summary of Inputs'!$K$17 -> 36659.7831 | M16: ='Summary of Inputs'!$P$17 -> 23963.90473 | N16: =IFERROR(((M16-L16)/L16),"") -> -0.3463162433 | R16: Data Center
G17: Normalization Factor | H17: ='New Inventory'!K9 -> FTE | K17: =IF('Summary of Inputs'!_xlnm.Extract="Square Feet", "Square Feet", "Average FTE") -> Average FTE | L17: ='Summary of Inputs'!$K$15 -> 7500 | M17: ='Summary of Inputs'!$P$15 -> 6600 | N17: =IFERROR(((M17-L17)/L17),"") -> -0.12
G18: Covered Area | H18: ='New Inventory'!F26 -> New York City | K18: ="Carbon Intensity "&IF('Summary of Inputs'!_xlnm.Extract="Square Feet","(lbs CO2e/SF)","(lbs CO2e/FTE)") -> Carbon Intensity (lbs CO2e/FTE) | L18: ='Summary of Inputs'!$K$21 -> 10776.13151 | M18: ='Summary of Inputs'!$P$21 -> 8004.752418 | N18: =IFERROR(((M18-L18)/L18),"") -> -0.2571775492 | R18: Hospital (General Medical and Surgical)
G19: Base Year | H19: ='New Inventory'!K7 -> 2007 | R19: Inpatient Healthcare
G20: Challenge Goal | H20: ='New Inventory'!K11 -> 0.5
G21: Base Year Carbon Intensity | H21: ='New Inventory'!K15 -> 10776.1188 | I21: =IF('Summary of Inputs'!_xlnm.Extract="Square Feet","(lbs CO2e/SF)","(lbs CO2e/FTE)") -> (lbs CO2e/FTE)
G22: End Year Carbon Intensity | H22: ='New Inventory'!K17 -> 5388.059401 | I22: =IF('Summary of Inputs'!_xlnm.Extract="Square Feet","(lbs CO2e/SF)","(lbs CO2e/FTE)") -> (lbs CO2e/FTE) | K22: Table 7: Energy Use in Base Year and Submission Year
K23: Please insert this table in the Carbon Emissions Inventory
K24: section of your CAP.
L26: =TEXT('New Inventory'!baseline_year,"####") -> 2007 | M26: =TEXT(submission_year,"####") -> 2015 | N26: Change
K27: Total Energy Use (MMBtu) | L27: ='Summary of Inputs'!$K$19 -> 777041.7 | M27: ='Summary of Inputs'!$P$19 -> 514794 | N27: =IFERROR(((M27-L27)/L27),"") -> -0.3374950147
K28: =IF('Summary of Inputs'!_xlnm.Extract="Square Feet", "Square Feet", "Average FTE") -> Average FTE | L28: ='Summary of Inputs'!$K$15 -> 7500 | M28: ='Summary of Inputs'!$P$15 -> 6600 | N28: =IFERROR(((M28-L28)/L28),"") -> -0.12
K29: ="Energy Use Intensity"&IF('Summary of Inputs'!_xlnm.Extract="Square Feet", " (MMbtu/SF)", " (KBtu/FTE)") -> Energy Use Intensity (KBtu/FTE) | L29: ='Summary of Inputs'!$K$23 -> 103605.56 | M29: ='Summary of Inputs'!$P$23 -> 77999.09091 | N29: =IFERROR(((M29-L29)/L29),"") -> -0.2471534258

Sheet Graphs 1-3
D9: NYC Carbon Challenge - Commercial Offices | AE9: Name | AF9: ='New Inventory'!K3 -> City Hall
D10: Carbon Emissions Inventory
AE11: Submission Year | AF11: ='New Inventory'!$K$5 -> 2015

Sheet Table 8 and Graphs 4-5
B2: NYC Carbon Challenge - Commercial Offices
B4: Climate Action Plan Tool Kit
B10: Table 8 (OPTIONAL) | I10: Graphs 4 and 5 (OPTIONAL)
B11: Please enter the names of your properties and property-level carbon emissions and intensity for your base | I11: Please fill out the chart to the left and insert Graphs 1 and 2 below into the "Carbon Emissions Inventory" section
B12: year and current year into the chart below to generate graphs of your carbon emissions and carbon intensity | I12: of your Climate Action Plan.
B13: by property.
I14: *Note: If you have more than ten properties, you will need to edit the selected data for the graphs below.
I15: Increase the legend size to see additional entries. | Z15: f
B16: Property | C16: ="Base Year "&TEXT('New Inventory'!K7,"(####)") -> Base Year (2007) | E16: ="Submission Year "&TEXT(submission_year,"(####)") -> Submission Year (2015)
C17: Carbon Emissions (Mg CO2e) | D17: =IF('Summary of Inputs'!_xlnm.Extract="Square Feet", "Carbon Intensity (lbs CO2e/SF)", "Carbon Intensity (lbs CO2e/FTE)") -> Carbon Intensity (lbs CO2e/FTE) | E17: Carbon Emissions (Mg CO2e) | F17: =IF('Summary of Inputs'!_xlnm.Extract="Square Feet", "Carbon Intensity (lbs CO2e/SF)", "Carbon Intensity (lbs CO2e/FTE)") -> Carbon Intensity (lbs CO2e/FTE)
B18: City Hall Building | C18: 500 | D18: 6000 | E18: 490 | F18: 5900
B19: Manhattan Municipal Building | C19: 2000 | D19: 5500 | E19: 1900 | F19: 5400
B20: 250 Broadway Building | C20: 1500 | D20: 4000 | E20: 1400 | F20: 4000
B21: 253 Broadway Building | C21: 1150 | D21: 7000 | E21: 1200 | F21: 6800
B22: Flushing Building | C22: 1000 | D22: 8000 | E22: 900 | F22: 7700
I33: *Note: If you have more than five properties, you will need to edit the selected data for the graphs below.
I34: Increase the legend size to see additional entries.

Sheet Tables 9-10
B2: NYC Carbon Challenge - Commercial Offices
B4: Climate Action Plan Tool Kit
P5: Annual Savings Calculator
P6: Peak Rate (Avg $ per unit energy)
P7: Off-Peak Rate (Avg $ per unit energy)
C8: Tables 8 and 9 | P8: Peak Use Reduction (unit energy per year)
C9: Please fill out the Completed Project Information and estimated Energy Savings in Table 9 below. Tables 9 and 10 will populate automatically as data is added. You may use the Savings Calculator to the right to calculate the Dollars Saved Annual for each measure. | P9: Off-Peak Use Reduction (unit energy per year)
P10: Savings | R10: =($R$6*$R$8)+($R$7*$R$9) -> 0
C11: *Note: If an ECM will result in the increase of a fuel source, please report this as negative energy savings. | P11: When using this calculator, please copy
C12: *Note: Please minimize rows F-K by unprotecting sheet and using the "[-]" above row L before copying to your CAP. | P12: "Values only" so that the formula does not
P13: copy to the spreadsheet below.
C14: Table 8: Completed Projects and Strategies | S14: Table 9: Total Savings
S15: Option 1: This table will automatically populate based on Table 9.
C16: Completed Project Information | G16: Energy Savings (Please hide before pasting in CAP) | M16: Energy Savings | N16: Cost Savings | Q16: GHG Reductions
C17: Energy Conservation Measure (ECM) Category | D17: Measure Name | E17: Project Description | F17: LL87 Identified Project? | G17: Electric (kWh/yr) | H17: Natural Gas (Therms/yr) | I17: #2 Oil (Gal/yr) | J17: #4 Oil (Gal/yr) | K17: #6 Oil (Gal/yr) | L17: Steam (Mlbs) | M17: Est. Electricity and Fuel Savings (MMBTU/yr) | N17: Dollars Saved Annually ($/yr) | O17: Installation Cost ($) | P17: Simple Payback (Years) | Q17: Est. Carbon Reduction (Mg CO2e/yr) | S17: Total Energy Savings (MMBTU/yr) | T17: Total Dollars Saved Annually ($/yr) | U17: Total Cost of ECMs ($) | V17: Simple Payback (Years) | W17: Est. Carbon Reduction (Mg CO2e/yr) | X17: ="Reduction in Carbon Intensity "&'Summary of Inputs'!O22 -> Reduction in Carbon Intensity (lbs CO2e / FTE)
M18: =IF((G18*Coefficients!$B$5)+(H18*Coefficients!$D$5)+(I18*Coefficients!$F$5)+(J18*Coefficients!$H$5)+(K18*Coefficients!$J$5)+(L18*Coefficients!$N$5)=0,"",(G18*Coefficients!$B$5)+(H18*Coefficients!$D$5)+(I18*Coefficients!$F$5)+(J18*Coefficients!$H$5)+(K18*Coefficients!$J$5)+(L18*Coefficients!$N$5)) ->  | P18: =IFERROR(O18/N18,"") ->  | Q18: =IF((G18*Coefficients!$C$5)+(H18*Coefficients!$E$5)+(I18*Coefficients!$G$5)+(J18*Coefficients!$I$5)+(K18*Coefficients!$K$5)+(L18*Coefficients!$O$5)=0,"",(G18*Coefficients!$C$5)+(H18*Coefficients!$E$5)+(I18*Coefficients!$G$5)+(J18*Coefficients!$I$5)+(K18*Coefficients!$K$5)+(L18*Coefficients!$O$5)) ->  | S18: =SUM(M18:M91) -> 0 | T18: =SUM(N18:N91) -> 0 | U18: =SUM(O18:O91) -> 0 | V18: =IFERROR(U18/T18,"") ->  | W18: =SUM(Q18:Q91) -> 0 | X18: =IFERROR((W18*2205)/'Summary of Inputs'!P15,"") -> 0
M19: =IF((G19*Coefficients!$B$5)+(H19*Coefficients!$D$5)+(I19*Coefficients!$F$5)+(J19*Coefficients!$H$5)+(K19*Coefficients!$J$5)+(L19*Coefficients!$N$5)=0,"",(G19*Coefficients!$B$5)+(H19*Coefficients!$D$5)+(I19*Coefficients!$F$5)+(J19*Coefficients!$H$5)+(K19*Coefficients!$J$5)+(L19*Coefficients!$N$5)) ->  | P19: =IFERROR(O19/N19,"") ->  | Q19: =IF((G19*Coefficients!$C$5)+(H19*Coefficients!$E$5)+(I19*Coefficients!$G$5)+(J19*Coefficients!$I$5)+(K19*Coefficients!$K$5)+(L19*Coefficients!$O$5)=0,"",(G19*Coefficients!$C$5)+(H19*Coefficients!$E$5)+(I19*Coefficients!$G$5)+(J19*Coefficients!$I$5)+(K19*Coefficients!$K$5)+(L19*Coefficients!$O$5)) -> 
M20: =IF((G20*Coefficients!$B$5)+(H20*Coefficients!$D$5)+(I20*Coefficients!$F$5)+(J20*Coefficients!$H$5)+(K20*Coefficients!$J$5)+(L20*Coefficients!$N$5)=0,"",(G20*Coefficients!$B$5)+(H20*Coefficients!$D$5)+(I20*Coefficients!$F$5)+(J20*Coefficients!$H$5)+(K20*Coefficients!$J$5)+(L20*Coefficients!$N$5)) ->  | Q20: =IF((G20*Coefficients!$C$5)+(H20*Coefficients!$E$5)+(I20*Coefficients!$G$5)+(J20*Coefficients!$I$5)+(K20*Coefficients!$K$5)+(L20*Coefficients!$O$5)=0,"",(G20*Coefficients!$C$5)+(H20*Coefficients!$E$5)+(I20*Coefficients!$G$5)+(J20*Coefficients!$I$5)+(K20*Coefficients!$K$5)+(L20*Coefficients!$O$5)) -> 
M21: =IF((G21*Coefficients!$B$5)+(H21*Coefficients!$D$5)+(I21*Coefficients!$F$5)+(J21*Coefficients!$H$5)+(K21*Coefficients!$J$5)+(L21*Coefficients!$N$5)=0,"",(G21*Coefficients!$B$5)+(H21*Coefficients!$D$5)+(I21*Coefficients!$F$5)+(J21*Coefficients!$H$5)+(K21*Coefficients!$J$5)+(L21*Coefficients!$N$5)) ->  | Q21: =IF((G21*Coefficients!$C$5)+(H21*Coefficients!$E$5)+(I21*Coefficients!$G$5)+(J21*Coefficients!$I$5)+(K21*Coefficients!$K$5)+(L21*Coefficients!$O$5)=0,"",(G21*Coefficients!$C$5)+(H21*Coefficients!$E$5)+(I21*Coefficients!$G$5)+(J21*Coefficients!$I$5)+(K21*Coefficients!$K$5)+(L21*Coefficients!$O$5)) ->  | S21: Option 2: If you have calculated your own total energy reductions that takes into account the interaction
M22: =IF((G22*Coefficients!$B$5)+(H22*Coefficients!$D$5)+(I22*Coefficients!$F$5)+(J22*Coefficients!$H$5)+(K22*Coefficients!$J$5)+(L22*Coefficients!$N$5)=0,"",(G22*Coefficients!$B$5)+(H22*Coefficients!$D$5)+(I22*Coefficients!$F$5)+(J22*Coefficients!$H$5)+(K22*Coefficients!$J$5)+(L22*Coefficients!$N$5)) ->  | Q22: =IF((G22*Coefficients!$C$5)+(H22*Coefficients!$E$5)+(I22*Coefficients!$G$5)+(J22*Coefficients!$I$5)+(K22*Coefficients!$K$5)+(L22*Coefficients!$O$5)=0,"",(G22*Coefficients!$C$5)+(H22*Coefficients!$E$5)+(I22*Coefficients!$G$5)+(J22*Coefficients!$I$5)+(K22*Coefficients!$K$5)+(L22*Coefficients!$O$5)) ->  | S22: of your completed ECMs, you may fill out the chart below on your own.
M23: =IF((G23*Coefficients!$B$5)+(H23*Coefficients!$D$5)+(I23*Coefficients!$F$5)+(J23*Coefficients!$H$5)+(K23*Coefficients!$J$5)+(L23*Coefficients!$N$5)=0,"",(G23*Coefficients!$B$5)+(H23*Coefficients!$D$5)+(I23*Coefficients!$F$5)+(J23*Coefficients!$H$5)+(K23*Coefficients!$J$5)+(L23*Coefficients!$N$5)) ->  | Q23: =IF((G23*Coefficients!$C$5)+(H23*Coefficients!$E$5)+(I23*Coefficients!$G$5)+(J23*Coefficients!$I$5)+(K23*Coefficients!$K$5)+(L23*Coefficients!$O$5)=0,"",(G23*Coefficients!$C$5)+(H23*Coefficients!$E$5)+(I23*Coefficients!$G$5)+(J23*Coefficients!$I$5)+(K23*Coefficients!$K$5)+(L23*Coefficients!$O$5)) -> 
M24: =IF((G24*Coefficients!$B$5)+(H24*Coefficients!$D$5)+(I24*Coefficients!$F$5)+(J24*Coefficients!$H$5)+(K24*Coefficients!$J$5)+(L24*Coefficients!$N$5)=0,"",(G24*Coefficients!$B$5)+(H24*Coefficients!$D$5)+(I24*Coefficients!$F$5)+(J24*Coefficients!$H$5)+(K24*Coefficients!$J$5)+(L24*Coefficients!$N$5)) ->  | Q24: =IF((G24*Coefficients!$C$5)+(H24*Coefficients!$E$5)+(I24*Coefficients!$G$5)+(J24*Coefficients!$I$5)+(K24*Coefficients!$K$5)+(L24*Coefficients!$O$5)=0,"",(G24*Coefficients!$C$5)+(H24*Coefficients!$E$5)+(I24*Coefficients!$G$5)+(J24*Coefficients!$I$5)+(K24*Coefficients!$K$5)+(L24*Coefficients!$O$5)) ->  | S24: Total Energy Savings (MMBTU/yr) | T24: Total Dollars Saved Annually ($/yr) | U24: Total Cost of ECMs ($) | V24: Simple Payback (Years) | W24: Est. Carbon Reduction (Mg CO2e/yr) | X24: ="Reduction in Carbon Intensity "&'Summary of Inputs'!O22 -> Reduction in Carbon Intensity (lbs CO2e / FTE)
M25: =IF((G25*Coefficients!$B$5)+(H25*Coefficients!$D$5)+(I25*Coefficients!$F$5)+(J25*Coefficients!$H$5)+(K25*Coefficients!$J$5)+(L25*Coefficients!$N$5)=0,"",(G25*Coefficients!$B$5)+(H25*Coefficients!$D$5)+(I25*Coefficients!$F$5)+(J25*Coefficients!$H$5)+(K25*Coefficients!$J$5)+(L25*Coefficients!$N$5)) ->  | Q25: =IF((G25*Coefficients!$C$5)+(H25*Coefficients!$E$5)+(I25*Coefficients!$G$5)+(J25*Coefficients!$I$5)+(K25*Coefficients!$K$5)+(L25*Coefficients!$O$5)=0,"",(G25*Coefficients!$C$5)+(H25*Coefficients!$E$5)+(I25*Coefficients!$G$5)+(J25*Coefficients!$I$5)+(K25*Coefficients!$K$5)+(L25*Coefficients!$O$5)) -> 
M26: =IF((G26*Coefficients!$B$5)+(H26*Coefficients!$D$5)+(I26*Coefficients!$F$5)+(J26*Coefficients!$H$5)+(K26*Coefficients!$J$5)+(L26*Coefficients!$N$5)=0,"",(G26*Coefficients!$B$5)+(H26*Coefficients!$D$5)+(I26*Coefficients!$F$5)+(J26*Coefficients!$H$5)+(K26*Coefficients!$J$5)+(L26*Coefficients!$N$5)) ->  | Q26: =IF((G26*Coefficients!$C$5)+(H26*Coefficients!$E$5)+(I26*Coefficients!$G$5)+(J26*Coefficients!$I$5)+(K26*Coefficients!$K$5)+(L26*Coefficients!$O$5)=0,"",(G26*Coefficients!$C$5)+(H26*Coefficients!$E$5)+(I26*Coefficients!$G$5)+(J26*Coefficients!$I$5)+(K26*Coefficients!$K$5)+(L26*Coefficients!$O$5)) -> 
M27: =IF((G27*Coefficients!$B$5)+(H27*Coefficients!$D$5)+(I27*Coefficients!$F$5)+(J27*Coefficients!$H$5)+(K27*Coefficients!$J$5)+(L27*Coefficients!$N$5)=0,"",(G27*Coefficients!$B$5)+(H27*Coefficients!$D$5)+(I27*Coefficients!$F$5)+(J27*Coefficients!$H$5)+(K27*Coefficients!$J$5)+(L27*Coefficients!$N$5)) ->  | Q27: =IF((G27*Coefficients!$C$5)+(H27*Coefficients!$E$5)+(I27*Coefficients!$G$5)+(J27*Coefficients!$I$5)+(K27*Coefficients!$K$5)+(L27*Coefficients!$O$5)=0,"",(G27*Coefficients!$C$5)+(H27*Coefficients!$E$5)+(I27*Coefficients!$G$5)+(J27*Coefficients!$I$5)+(K27*Coefficients!$K$5)+(L27*Coefficients!$O$5)) -> 
M28: =IF((G28*Coefficients!$B$5)+(H28*Coefficients!$D$5)+(I28*Coefficients!$F$5)+(J28*Coefficients!$H$5)+(K28*Coefficients!$J$5)+(L28*Coefficients!$N$5)=0,"",(G28*Coefficients!$B$5)+(H28*Coefficients!$D$5)+(I28*Coefficients!$F$5)+(J28*Coefficients!$H$5)+(K28*Coefficients!$J$5)+(L28*Coefficients!$N$5)) ->  | Q28: =IF((G28*Coefficients!$C$5)+(H28*Coefficients!$E$5)+(I28*Coefficients!$G$5)+(J28*Coefficients!$I$5)+(K28*Coefficients!$K$5)+(L28*Coefficients!$O$5)=0,"",(G28*Coefficients!$C$5)+(H28*Coefficients!$E$5)+(I28*Coefficients!$G$5)+(J28*Coefficients!$I$5)+(K28*Coefficients!$K$5)+(L28*Coefficients!$O$5)) -> 
M29: =IF((G29*Coefficients!$B$5)+(H29*Coefficients!$D$5)+(I29*Coefficients!$F$5)+(J29*Coefficients!$H$5)+(K29*Coefficients!$J$5)+(L29*Coefficients!$N$5)=0,"",(G29*Coefficients!$B$5)+(H29*Coefficients!$D$5)+(I29*Coefficients!$F$5)+(J29*Coefficients!$H$5)+(K29*Coefficients!$J$5)+(L29*Coefficients!$N$5)) ->  | Q29: =IF((G29*Coefficients!$C$5)+(H29*Coefficients!$E$5)+(I29*Coefficients!$G$5)+(J29*Coefficients!$I$5)+(K29*Coefficients!$K$5)+(L29*Coefficients!$O$5)=0,"",(G29*Coefficients!$C$5)+(H29*Coefficients!$E$5)+(I29*Coefficients!$G$5)+(J29*Coefficients!$I$5)+(K29*Coefficients!$K$5)+(L29*Coefficients!$O$5)) -> 
M30: =IF((G30*Coefficients!$B$5)+(H30*Coefficients!$D$5)+(I30*Coefficients!$F$5)+(J30*Coefficients!$H$5)+(K30*Coefficients!$J$5)+(L30*Coefficients!$N$5)=0,"",(G30*Coefficients!$B$5)+(H30*Coefficients!$D$5)+(I30*Coefficients!$F$5)+(J30*Coefficients!$H$5)+(K30*Coefficients!$J$5)+(L30*Coefficients!$N$5)) ->  | Q30: =IF((G30*Coefficients!$C$5)+(H30*Coefficients!$E$5)+(I30*Coefficients!$G$5)+(J30*Coefficients!$I$5)+(K30*Coefficients!$K$5)+(L30*Coefficients!$O$5)=0,"",(G30*Coefficients!$C$5)+(H30*Coefficients!$E$5)+(I30*Coefficients!$G$5)+(J30*Coefficients!$I$5)+(K30*Coefficients!$K$5)+(L30*Coefficients!$O$5)) -> 
M31: =IF((G31*Coefficients!$B$5)+(H31*Coefficients!$D$5)+(I31*Coefficients!$F$5)+(J31*Coefficients!$H$5)+(K31*Coefficients!$J$5)+(L31*Coefficients!$N$5)=0,"",(G31*Coefficients!$B$5)+(H31*Coefficients!$D$5)+(I31*Coefficients!$F$5)+(J31*Coefficients!$H$5)+(K31*Coefficients!$J$5)+(L31*Coefficients!$N$5)) ->  | Q31: =IF((G31*Coefficients!$C$5)+(H31*Coefficients!$E$5)+(I31*Coefficients!$G$5)+(J31*Coefficients!$I$5)+(K31*Coefficients!$K$5)+(L31*Coefficients!$O$5)=0,"",(G31*Coefficients!$C$5)+(H31*Coefficients!$E$5)+(I31*Coefficients!$G$5)+(J31*Coefficients!$I$5)+(K31*Coefficients!$K$5)+(L31*Coefficients!$O$5)) -> 
M32: =IF((G32*Coefficients!$B$5)+(H32*Coefficients!$D$5)+(I32*Coefficients!$F$5)+(J32*Coefficients!$H$5)+(K32*Coefficients!$J$5)+(L32*Coefficients!$N$5)=0,"",(G32*Coefficients!$B$5)+(H32*Coefficients!$D$5)+(I32*Coefficients!$F$5)+(J32*Coefficients!$H$5)+(K32*Coefficients!$J$5)+(L32*Coefficients!$N$5)) ->  | Q32: =IF((G32*Coefficients!$C$5)+(H32*Coefficients!$E$5)+(I32*Coefficients!$G$5)+(J32*Coefficients!$I$5)+(K32*Coefficients!$K$5)+(L32*Coefficients!$O$5)=0,"",(G32*Coefficients!$C$5)+(H32*Coefficients!$E$5)+(I32*Coefficients!$G$5)+(J32*Coefficients!$I$5)+(K32*Coefficients!$K$5)+(L32*Coefficients!$O$5)) -> 
M33: =IF((G33*Coefficients!$B$5)+(H33*Coefficients!$D$5)+(I33*Coefficients!$F$5)+(J33*Coefficients!$H$5)+(K33*Coefficients!$J$5)+(L33*Coefficients!$N$5)=0,"",(G33*Coefficients!$B$5)+(H33*Coefficients!$D$5)+(I33*Coefficients!$F$5)+(J33*Coefficients!$H$5)+(K33*Coefficients!$J$5)+(L33*Coefficients!$N$5)) ->  | Q33: =IF((G33*Coefficients!$C$5)+(H33*Coefficients!$E$5)+(I33*Coefficients!$G$5)+(J33*Coefficients!$I$5)+(K33*Coefficients!$K$5)+(L33*Coefficients!$O$5)=0,"",(G33*Coefficients!$C$5)+(H33*Coefficients!$E$5)+(I33*Coefficients!$G$5)+(J33*Coefficients!$I$5)+(K33*Coefficients!$K$5)+(L33*Coefficients!$O$5)) -> 
M34: =IF((G34*Coefficients!$B$5)+(H34*Coefficients!$D$5)+(I34*Coefficients!$F$5)+(J34*Coefficients!$H$5)+(K34*Coefficients!$J$5)+(L34*Coefficients!$N$5)=0,"",(G34*Coefficients!$B$5)+(H34*Coefficients!$D$5)+(I34*Coefficients!$F$5)+(J34*Coefficients!$H$5)+(K34*Coefficients!$J$5)+(L34*Coefficients!$N$5)) ->  | Q34: =IF((G34*Coefficients!$C$5)+(H34*Coefficients!$E$5)+(I34*Coefficients!$G$5)+(J34*Coefficients!$I$5)+(K34*Coefficients!$K$5)+(L34*Coefficients!$O$5)=0,"",(G34*Coefficients!$C$5)+(H34*Coefficients!$E$5)+(I34*Coefficients!$G$5)+(J34*Coefficients!$I$5)+(K34*Coefficients!$K$5)+(L34*Coefficients!$O$5)) -> 
M35: =IF((G35*Coefficients!$B$5)+(H35*Coefficients!$D$5)+(I35*Coefficients!$F$5)+(J35*Coefficients!$H$5)+(K35*Coefficients!$J$5)+(L35*Coefficients!$N$5)=0,"",(G35*Coefficients!$B$5)+(H35*Coefficients!$D$5)+(I35*Coefficients!$F$5)+(J35*Coefficients!$H$5)+(K35*Coefficients!$J$5)+(L35*Coefficients!$N$5)) ->  | Q35: =IF((G35*Coefficients!$C$5)+(H35*Coefficients!$E$5)+(I35*Coefficients!$G$5)+(J35*Coefficients!$I$5)+(K35*Coefficients!$K$5)+(L35*Coefficients!$O$5)=0,"",(G35*Coefficients!$C$5)+(H35*Coefficients!$E$5)+(I35*Coefficients!$G$5)+(J35*Coefficients!$I$5)+(K35*Coefficients!$K$5)+(L35*Coefficients!$O$5)) -> 
M36: =IF((G36*Coefficients!$B$5)+(H36*Coefficients!$D$5)+(I36*Coefficients!$F$5)+(J36*Coefficients!$H$5)+(K36*Coefficients!$J$5)+(L36*Coefficients!$N$5)=0,"",(G36*Coefficients!$B$5)+(H36*Coefficients!$D$5)+(I36*Coefficients!$F$5)+(J36*Coefficients!$H$5)+(K36*Coefficients!$J$5)+(L36*Coefficients!$N$5)) ->  | Q36: =IF((G36*Coefficients!$C$5)+(H36*Coefficients!$E$5)+(I36*Coefficients!$G$5)+(J36*Coefficients!$I$5)+(K36*Coefficients!$K$5)+(L36*Coefficients!$O$5)=0,"",(G36*Coefficients!$C$5)+(H36*Coefficients!$E$5)+(I36*Coefficients!$G$5)+(J36*Coefficients!$I$5)+(K36*Coefficients!$K$5)+(L36*Coefficients!$O$5)) -> 
M37: =IF((G37*Coefficients!$B$5)+(H37*Coefficients!$D$5)+(I37*Coefficients!$F$5)+(J37*Coefficients!$H$5)+(K37*Coefficients!$J$5)+(L37*Coefficients!$N$5)=0,"",(G37*Coefficients!$B$5)+(H37*Coefficients!$D$5)+(I37*Coefficients!$F$5)+(J37*Coefficients!$H$5)+(K37*Coefficients!$J$5)+(L37*Coefficients!$N$5)) ->  | Q37: =IF((G37*Coefficients!$C$5)+(H37*Coefficients!$E$5)+(I37*Coefficients!$G$5)+(J37*Coefficients!$I$5)+(K37*Coefficients!$K$5)+(L37*Coefficients!$O$5)=0,"",(G37*Coefficients!$C$5)+(H37*Coefficients!$E$5)+(I37*Coefficients!$G$5)+(J37*Coefficients!$I$5)+(K37*Coefficients!$K$5)+(L37*Coefficients!$O$5)) -> 
M38: =IF((G38*Coefficients!$B$5)+(H38*Coefficients!$D$5)+(I38*Coefficients!$F$5)+(J38*Coefficients!$H$5)+(K38*Coefficients!$J$5)+(L38*Coefficients!$N$5)=0,"",(G38*Coefficients!$B$5)+(H38*Coefficients!$D$5)+(I38*Coefficients!$F$5)+(J38*Coefficients!$H$5)+(K38*Coefficients!$J$5)+(L38*Coefficients!$N$5)) ->  | Q38: =IF((G38*Coefficients!$C$5)+(H38*Coefficients!$E$5)+(I38*Coefficients!$G$5)+(J38*Coefficients!$I$5)+(K38*Coefficients!$K$5)+(L38*Coefficients!$O$5)=0,"",(G38*Coefficients!$C$5)+(H38*Coefficients!$E$5)+(I38*Coefficients!$G$5)+(J38*Coefficients!$I$5)+(K38*Coefficients!$K$5)+(L38*Coefficients!$O$5)) -> 
M39: =IF((G39*Coefficients!$B$5)+(H39*Coefficients!$D$5)+(I39*Coefficients!$F$5)+(J39*Coefficients!$H$5)+(K39*Coefficients!$J$5)+(L39*Coefficients!$N$5)=0,"",(G39*Coefficients!$B$5)+(H39*Coefficients!$D$5)+(I39*Coefficients!$F$5)+(J39*Coefficients!$H$5)+(K39*Coefficients!$J$5)+(L39*Coefficients!$N$5)) ->  | Q39: =IF((G39*Coefficients!$C$5)+(H39*Coefficients!$E$5)+(I39*Coefficients!$G$5)+(J39*Coefficients!$I$5)+(K39*Coefficients!$K$5)+(L39*Coefficients!$O$5)=0,"",(G39*Coefficients!$C$5)+(H39*Coefficients!$E$5)+(I39*Coefficients!$G$5)+(J39*Coefficients!$I$5)+(K39*Coefficients!$K$5)+(L39*Coefficients!$O$5)) -> 
M40: =IF((G40*Coefficients!$B$5)+(H40*Coefficients!$D$5)+(I40*Coefficients!$F$5)+(J40*Coefficients!$H$5)+(K40*Coefficients!$J$5)+(L40*Coefficients!$N$5)=0,"",(G40*Coefficients!$B$5)+(H40*Coefficients!$D$5)+(I40*Coefficients!$F$5)+(J40*Coefficients!$H$5)+(K40*Coefficients!$J$5)+(L40*Coefficients!$N$5)) ->  | Q40: =IF((G40*Coefficients!$C$5)+(H40*Coefficients!$E$5)+(I40*Coefficients!$G$5)+(J40*Coefficients!$I$5)+(K40*Coefficients!$K$5)+(L40*Coefficients!$O$5)=0,"",(G40*Coefficients!$C$5)+(H40*Coefficients!$E$5)+(I40*Coefficients!$G$5)+(J40*Coefficients!$I$5)+(K40*Coefficients!$K$5)+(L40*Coefficients!$O$5)) -> 
M41: =IF((G41*Coefficients!$B$5)+(H41*Coefficients!$D$5)+(I41*Coefficients!$F$5)+(J41*Coefficients!$H$5)+(K41*Coefficients!$J$5)+(L41*Coefficients!$N$5)=0,"",(G41*Coefficients!$B$5)+(H41*Coefficients!$D$5)+(I41*Coefficients!$F$5)+(J41*Coefficients!$H$5)+(K41*Coefficients!$J$5)+(L41*Coefficients!$N$5)) ->  | Q41: =IF((G41*Coefficients!$C$5)+(H41*Coefficients!$E$5)+(I41*Coefficients!$G$5)+(J41*Coefficients!$I$5)+(K41*Coefficients!$K$5)+(L41*Coefficients!$O$5)=0,"",(G41*Coefficients!$C$5)+(H41*Coefficients!$E$5)+(I41*Coefficients!$G$5)+(J41*Coefficients!$I$5)+(K41*Coefficients!$K$5)+(L41*Coefficients!$O$5)) -> 
M42: =IF((G42*Coefficients!$B$5)+(H42*Coefficients!$D$5)+(I42*Coefficients!$F$5)+(J42*Coefficients!$H$5)+(K42*Coefficients!$J$5)+(L42*Coefficients!$N$5)=0,"",(G42*Coefficients!$B$5)+(H42*Coefficients!$D$5)+(I42*Coefficients!$F$5)+(J42*Coefficients!$H$5)+(K42*Coefficients!$J$5)+(L42*Coefficients!$N$5)) ->  | Q42: =IF((G42*Coefficients!$C$5)+(H42*Coefficients!$E$5)+(I42*Coefficients!$G$5)+(J42*Coefficients!$I$5)+(K42*Coefficients!$K$5)+(L42*Coefficients!$O$5)=0,"",(G42*Coefficients!$C$5)+(H42*Coefficients!$E$5)+(I42*Coefficients!$G$5)+(J42*Coefficients!$I$5)+(K42*Coefficients!$K$5)+(L42*Coefficients!$O$5)) -> 
M43: =IF((G43*Coefficients!$B$5)+(H43*Coefficients!$D$5)+(I43*Coefficients!$F$5)+(J43*Coefficients!$H$5)+(K43*Coefficients!$J$5)+(L43*Coefficients!$N$5)=0,"",(G43*Coefficients!$B$5)+(H43*Coefficients!$D$5)+(I43*Coefficients!$F$5)+(J43*Coefficients!$H$5)+(K43*Coefficients!$J$5)+(L43*Coefficients!$N$5)) ->  | Q43: =IF((G43*Coefficients!$C$5)+(H43*Coefficients!$E$5)+(I43*Coefficients!$G$5)+(J43*Coefficients!$I$5)+(K43*Coefficients!$K$5)+(L43*Coefficients!$O$5)=0,"",(G43*Coefficients!$C$5)+(H43*Coefficients!$E$5)+(I43*Coefficients!$G$5)+(J43*Coefficients!$I$5)+(K43*Coefficients!$K$5)+(L43*Coefficients!$O$5)) -> 
M44: =IF((G44*Coefficients!$B$5)+(H44*Coefficients!$D$5)+(I44*Coefficients!$F$5)+(J44*Coefficients!$H$5)+(K44*Coefficients!$J$5)+(L44*Coefficients!$N$5)=0,"",(G44*Coefficients!$B$5)+(H44*Coefficients!$D$5)+(I44*Coefficients!$F$5)+(J44*Coefficients!$H$5)+(K44*Coefficients!$J$5)+(L44*Coefficients!$N$5)) ->  | Q44: =IF((G44*Coefficients!$C$5)+(H44*Coefficients!$E$5)+(I44*Coefficients!$G$5)+(J44*Coefficients!$I$5)+(K44*Coefficients!$K$5)+(L44*Coefficients!$O$5)=0,"",(G44*Coefficients!$C$5)+(H44*Coefficients!$E$5)+(I44*Coefficients!$G$5)+(J44*Coefficients!$I$5)+(K44*Coefficients!$K$5)+(L44*Coefficients!$O$5)) -> 
M45: =IF((G45*Coefficients!$B$5)+(H45*Coefficients!$D$5)+(I45*Coefficients!$F$5)+(J45*Coefficients!$H$5)+(K45*Coefficients!$J$5)+(L45*Coefficients!$N$5)=0,"",(G45*Coefficients!$B$5)+(H45*Coefficients!$D$5)+(I45*Coefficients!$F$5)+(J45*Coefficients!$H$5)+(K45*Coefficients!$J$5)+(L45*Coefficients!$N$5)) ->  | Q45: =IF((G45*Coefficients!$C$5)+(H45*Coefficients!$E$5)+(I45*Coefficients!$G$5)+(J45*Coefficients!$I$5)+(K45*Coefficients!$K$5)+(L45*Coefficients!$O$5)=0,"",(G45*Coefficients!$C$5)+(H45*Coefficients!$E$5)+(I45*Coefficients!$G$5)+(J45*Coefficients!$I$5)+(K45*Coefficients!$K$5)+(L45*Coefficients!$O$5)) -> 
M46: =IF((G46*Coefficients!$B$5)+(H46*Coefficients!$D$5)+(I46*Coefficients!$F$5)+(J46*Coefficients!$H$5)+(K46*Coefficients!$J$5)+(L46*Coefficients!$N$5)=0,"",(G46*Coefficients!$B$5)+(H46*Coefficients!$D$5)+(I46*Coefficients!$F$5)+(J46*Coefficients!$H$5)+(K46*Coefficients!$J$5)+(L46*Coefficients!$N$5)) ->  | Q46: =IF((G46*Coefficients!$C$5)+(H46*Coefficients!$E$5)+(I46*Coefficients!$G$5)+(J46*Coefficients!$I$5)+(K46*Coefficients!$K$5)+(L46*Coefficients!$O$5)=0,"",(G46*Coefficients!$C$5)+(H46*Coefficients!$E$5)+(I46*Coefficients!$G$5)+(J46*Coefficients!$I$5)+(K46*Coefficients!$K$5)+(L46*Coefficients!$O$5)) -> 
M47: =IF((G47*Coefficients!$B$5)+(H47*Coefficients!$D$5)+(I47*Coefficients!$F$5)+(J47*Coefficients!$H$5)+(K47*Coefficients!$J$5)+(L47*Coefficients!$N$5)=0,"",(G47*Coefficients!$B$5)+(H47*Coefficients!$D$5)+(I47*Coefficients!$F$5)+(J47*Coefficients!$H$5)+(K47*Coefficients!$J$5)+(L47*Coefficients!$N$5)) ->  | Q47: =IF((G47*Coefficients!$C$5)+(H47*Coefficients!$E$5)+(I47*Coefficients!$G$5)+(J47*Coefficients!$I$5)+(K47*Coefficients!$K$5)+(L47*Coefficients!$O$5)=0,"",(G47*Coefficients!$C$5)+(H47*Coefficients!$E$5)+(I47*Coefficients!$G$5)+(J47*Coefficients!$I$5)+(K47*Coefficients!$K$5)+(L47*Coefficients!$O$5)) -> 
M48: =IF((G48*Coefficients!$B$5)+(H48*Coefficients!$D$5)+(I48*Coefficients!$F$5)+(J48*Coefficients!$H$5)+(K48*Coefficients!$J$5)+(L48*Coefficients!$N$5)=0,"",(G48*Coefficients!$B$5)+(H48*Coefficients!$D$5)+(I48*Coefficients!$F$5)+(J48*Coefficients!$H$5)+(K48*Coefficients!$J$5)+(L48*Coefficients!$N$5)) ->  | Q48: =IF((G48*Coefficients!$C$5)+(H48*Coefficients!$E$5)+(I48*Coefficients!$G$5)+(J48*Coefficients!$I$5)+(K48*Coefficients!$K$5)+(L48*Coefficients!$O$5)=0,"",(G48*Coefficients!$C$5)+(H48*Coefficients!$E$5)+(I48*Coefficients!$G$5)+(J48*Coefficients!$I$5)+(K48*Coefficients!$K$5)+(L48*Coefficients!$O$5)) -> 
M49: =IF((G49*Coefficients!$B$5)+(H49*Coefficients!$D$5)+(I49*Coefficients!$F$5)+(J49*Coefficients!$H$5)+(K49*Coefficients!$J$5)+(L49*Coefficients!$N$5)=0,"",(G49*Coefficients!$B$5)+(H49*Coefficients!$D$5)+(I49*Coefficients!$F$5)+(J49*Coefficients!$H$5)+(K49*Coefficients!$J$5)+(L49*Coefficients!$N$5)) ->  | Q49: =IF((G49*Coefficients!$C$5)+(H49*Coefficients!$E$5)+(I49*Coefficients!$G$5)+(J49*Coefficients!$I$5)+(K49*Coefficients!$K$5)+(L49*Coefficients!$O$5)=0,"",(G49*Coefficients!$C$5)+(H49*Coefficients!$E$5)+(I49*Coefficients!$G$5)+(J49*Coefficients!$I$5)+(K49*Coefficients!$K$5)+(L49*Coefficients!$O$5)) -> 
M50: =IF((G50*Coefficients!$B$5)+(H50*Coefficients!$D$5)+(I50*Coefficients!$F$5)+(J50*Coefficients!$H$5)+(K50*Coefficients!$J$5)+(L50*Coefficients!$N$5)=0,"",(G50*Coefficients!$B$5)+(H50*Coefficients!$D$5)+(I50*Coefficients!$F$5)+(J50*Coefficients!$H$5)+(K50*Coefficients!$J$5)+(L50*Coefficients!$N$5)) ->  | Q50: =IF((G50*Coefficients!$C$5)+(H50*Coefficients!$E$5)+(I50*Coefficients!$G$5)+(J50*Coefficients!$I$5)+(K50*Coefficients!$K$5)+(L50*Coefficients!$O$5)=0,"",(G50*Coefficients!$C$5)+(H50*Coefficients!$E$5)+(I50*Coefficients!$G$5)+(J50*Coefficients!$I$5)+(K50*Coefficients!$K$5)+(L50*Coefficients!$O$5)) -> 
M51: =IF((G51*Coefficients!$B$5)+(H51*Coefficients!$D$5)+(I51*Coefficients!$F$5)+(J51*Coefficients!$H$5)+(K51*Coefficients!$J$5)+(L51*Coefficients!$N$5)=0,"",(G51*Coefficients!$B$5)+(H51*Coefficients!$D$5)+(I51*Coefficients!$F$5)+(J51*Coefficients!$H$5)+(K51*Coefficients!$J$5)+(L51*Coefficients!$N$5)) ->  | Q51: =IF((G51*Coefficients!$C$5)+(H51*Coefficients!$E$5)+(I51*Coefficients!$G$5)+(J51*Coefficients!$I$5)+(K51*Coefficients!$K$5)+(L51*Coefficients!$O$5)=0,"",(G51*Coefficients!$C$5)+(H51*Coefficients!$E$5)+(I51*Coefficients!$G$5)+(J51*Coefficients!$I$5)+(K51*Coefficients!$K$5)+(L51*Coefficients!$O$5)) -> 
M52: =IF((G52*Coefficients!$B$5)+(H52*Coefficients!$D$5)+(I52*Coefficients!$F$5)+(J52*Coefficients!$H$5)+(K52*Coefficients!$J$5)+(L52*Coefficients!$N$5)=0,"",(G52*Coefficients!$B$5)+(H52*Coefficients!$D$5)+(I52*Coefficients!$F$5)+(J52*Coefficients!$H$5)+(K52*Coefficients!$J$5)+(L52*Coefficients!$N$5)) ->  | Q52: =IF((G52*Coefficients!$C$5)+(H52*Coefficients!$E$5)+(I52*Coefficients!$G$5)+(J52*Coefficients!$I$5)+(K52*Coefficients!$K$5)+(L52*Coefficients!$O$5)=0,"",(G52*Coefficients!$C$5)+(H52*Coefficients!$E$5)+(I52*Coefficients!$G$5)+(J52*Coefficients!$I$5)+(K52*Coefficients!$K$5)+(L52*Coefficients!$O$5)) -> 
M53: =IF((G53*Coefficients!$B$5)+(H53*Coefficients!$D$5)+(I53*Coefficients!$F$5)+(J53*Coefficients!$H$5)+(K53*Coefficients!$J$5)+(L53*Coefficients!$N$5)=0,"",(G53*Coefficients!$B$5)+(H53*Coefficients!$D$5)+(I53*Coefficients!$F$5)+(J53*Coefficients!$H$5)+(K53*Coefficients!$J$5)+(L53*Coefficients!$N$5)) ->  | Q53: =IF((G53*Coefficients!$C$5)+(H53*Coefficients!$E$5)+(I53*Coefficients!$G$5)+(J53*Coefficients!$I$5)+(K53*Coefficients!$K$5)+(L53*Coefficients!$O$5)=0,"",(G53*Coefficients!$C$5)+(H53*Coefficients!$E$5)+(I53*Coefficients!$G$5)+(J53*Coefficients!$I$5)+(K53*Coefficients!$K$5)+(L53*Coefficients!$O$5)) -> 
M54: =IF((G54*Coefficients!$B$5)+(H54*Coefficients!$D$5)+(I54*Coefficients!$F$5)+(J54*Coefficients!$H$5)+(K54*Coefficients!$J$5)+(L54*Coefficients!$N$5)=0,"",(G54*Coefficients!$B$5)+(H54*Coefficients!$D$5)+(I54*Coefficients!$F$5)+(J54*Coefficients!$H$5)+(K54*Coefficients!$J$5)+(L54*Coefficients!$N$5)) ->  | Q54: =IF((G54*Coefficients!$C$5)+(H54*Coefficients!$E$5)+(I54*Coefficients!$G$5)+(J54*Coefficients!$I$5)+(K54*Coefficients!$K$5)+(L54*Coefficients!$O$5)=0,"",(G54*Coefficients!$C$5)+(H54*Coefficients!$E$5)+(I54*Coefficients!$G$5)+(J54*Coefficients!$I$5)+(K54*Coefficients!$K$5)+(L54*Coefficients!$O$5)) -> 
M55: =IF((G55*Coefficients!$B$5)+(H55*Coefficients!$D$5)+(I55*Coefficients!$F$5)+(J55*Coefficients!$H$5)+(K55*Coefficients!$J$5)+(L55*Coefficients!$N$5)=0,"",(G55*Coefficients!$B$5)+(H55*Coefficients!$D$5)+(I55*Coefficients!$F$5)+(J55*Coefficients!$H$5)+(K55*Coefficients!$J$5)+(L55*Coefficients!$N$5)) ->  | Q55: =IF((G55*Coefficients!$C$5)+(H55*Coefficients!$E$5)+(I55*Coefficients!$G$5)+(J55*Coefficients!$I$5)+(K55*Coefficients!$K$5)+(L55*Coefficients!$O$5)=0,"",(G55*Coefficients!$C$5)+(H55*Coefficients!$E$5)+(I55*Coefficients!$G$5)+(J55*Coefficients!$I$5)+(K55*Coefficients!$K$5)+(L55*Coefficients!$O$5)) -> 
M56: =IF((G56*Coefficients!$B$5)+(H56*Coefficients!$D$5)+(I56*Coefficients!$F$5)+(J56*Coefficients!$H$5)+(K56*Coefficients!$J$5)+(L56*Coefficients!$N$5)=0,"",(G56*Coefficients!$B$5)+(H56*Coefficients!$D$5)+(I56*Coefficients!$F$5)+(J56*Coefficients!$H$5)+(K56*Coefficients!$J$5)+(L56*Coefficients!$N$5)) ->  | Q56: =IF((G56*Coefficients!$C$5)+(H56*Coefficients!$E$5)+(I56*Coefficients!$G$5)+(J56*Coefficients!$I$5)+(K56*Coefficients!$K$5)+(L56*Coefficients!$O$5)=0,"",(G56*Coefficients!$C$5)+(H56*Coefficients!$E$5)+(I56*Coefficients!$G$5)+(J56*Coefficients!$I$5)+(K56*Coefficients!$K$5)+(L56*Coefficients!$O$5)) -> 
M57: =IF((G57*Coefficients!$B$5)+(H57*Coefficients!$D$5)+(I57*Coefficients!$F$5)+(J57*Coefficients!$H$5)+(K57*Coefficients!$J$5)+(L57*Coefficients!$N$5)=0,"",(G57*Coefficients!$B$5)+(H57*Coefficients!$D$5)+(I57*Coefficients!$F$5)+(J57*Coefficients!$H$5)+(K57*Coefficients!$J$5)+(L57*Coefficients!$N$5)) ->  | Q57: =IF((G57*Coefficients!$C$5)+(H57*Coefficients!$E$5)+(I57*Coefficients!$G$5)+(J57*Coefficients!$I$5)+(K57*Coefficients!$K$5)+(L57*Coefficients!$O$5)=0,"",(G57*Coefficients!$C$5)+(H57*Coefficients!$E$5)+(I57*Coefficients!$G$5)+(J57*Coefficients!$I$5)+(K57*Coefficients!$K$5)+(L57*Coefficients!$O$5)) -> 
M58: =IF((G58*Coefficients!$B$5)+(H58*Coefficients!$D$5)+(I58*Coefficients!$F$5)+(J58*Coefficients!$H$5)+(K58*Coefficients!$J$5)+(L58*Coefficients!$N$5)=0,"",(G58*Coefficients!$B$5)+(H58*Coefficients!$D$5)+(I58*Coefficients!$F$5)+(J58*Coefficients!$H$5)+(K58*Coefficients!$J$5)+(L58*Coefficients!$N$5)) ->  | Q58: =IF((G58*Coefficients!$C$5)+(H58*Coefficients!$E$5)+(I58*Coefficients!$G$5)+(J58*Coefficients!$I$5)+(K58*Coefficients!$K$5)+(L58*Coefficients!$O$5)=0,"",(G58*Coefficients!$C$5)+(H58*Coefficients!$E$5)+(I58*Coefficients!$G$5)+(J58*Coefficients!$I$5)+(K58*Coefficients!$K$5)+(L58*Coefficients!$O$5)) -> 
M59: =IF((G59*Coefficients!$B$5)+(H59*Coefficients!$D$5)+(I59*Coefficients!$F$5)+(J59*Coefficients!$H$5)+(K59*Coefficients!$J$5)+(L59*Coefficients!$N$5)=0,"",(G59*Coefficients!$B$5)+(H59*Coefficients!$D$5)+(I59*Coefficients!$F$5)+(J59*Coefficients!$H$5)+(K59*Coefficients!$J$5)+(L59*Coefficients!$N$5)) ->  | Q59: =IF((G59*Coefficients!$C$5)+(H59*Coefficients!$E$5)+(I59*Coefficients!$G$5)+(J59*Coefficients!$I$5)+(K59*Coefficients!$K$5)+(L59*Coefficients!$O$5)=0,"",(G59*Coefficients!$C$5)+(H59*Coefficients!$E$5)+(I59*Coefficients!$G$5)+(J59*Coefficients!$I$5)+(K59*Coefficients!$K$5)+(L59*Coefficients!$O$5)) -> 
M60: =IF((G60*Coefficients!$B$5)+(H60*Coefficients!$D$5)+(I60*Coefficients!$F$5)+(J60*Coefficients!$H$5)+(K60*Coefficients!$J$5)+(L60*Coefficients!$N$5)=0,"",(G60*Coefficients!$B$5)+(H60*Coefficients!$D$5)+(I60*Coefficients!$F$5)+(J60*Coefficients!$H$5)+(K60*Coefficients!$J$5)+(L60*Coefficients!$N$5)) ->  | Q60: =IF((G60*Coefficients!$C$5)+(H60*Coefficients!$E$5)+(I60*Coefficients!$G$5)+(J60*Coefficients!$I$5)+(K60*Coefficients!$K$5)+(L60*Coefficients!$O$5)=0,"",(G60*Coefficients!$C$5)+(H60*Coefficients!$E$5)+(I60*Coefficients!$G$5)+(J60*Coefficients!$I$5)+(K60*Coefficients!$K$5)+(L60*Coefficients!$O$5)) -> 
M61: =IF((G61*Coefficients!$B$5)+(H61*Coefficients!$D$5)+(I61*Coefficients!$F$5)+(J61*Coefficients!$H$5)+(K61*Coefficients!$J$5)+(L61*Coefficients!$N$5)=0,"",(G61*Coefficients!$B$5)+(H61*Coefficients!$D$5)+(I61*Coefficients!$F$5)+(J61*Coefficients!$H$5)+(K61*Coefficients!$J$5)+(L61*Coefficients!$N$5)) ->  | Q61: =IF((G61*Coefficients!$C$5)+(H61*Coefficients!$E$5)+(I61*Coefficients!$G$5)+(J61*Coefficients!$I$5)+(K61*Coefficients!$K$5)+(L61*Coefficients!$O$5)=0,"",(G61*Coefficients!$C$5)+(H61*Coefficients!$E$5)+(I61*Coefficients!$G$5)+(J61*Coefficients!$I$5)+(K61*Coefficients!$K$5)+(L61*Coefficients!$O$5)) -> 
M62: =IF((G62*Coefficients!$B$5)+(H62*Coefficients!$D$5)+(I62*Coefficients!$F$5)+(J62*Coefficients!$H$5)+(K62*Coefficients!$J$5)+(L62*Coefficients!$N$5)=0,"",(G62*Coefficients!$B$5)+(H62*Coefficients!$D$5)+(I62*Coefficients!$F$5)+(J62*Coefficients!$H$5)+(K62*Coefficients!$J$5)+(L62*Coefficients!$N$5)) ->  | Q62: =IF((G62*Coefficients!$C$5)+(H62*Coefficients!$E$5)+(I62*Coefficients!$G$5)+(J62*Coefficients!$I$5)+(K62*Coefficients!$K$5)+(L62*Coefficients!$O$5)=0,"",(G62*Coefficients!$C$5)+(H62*Coefficients!$E$5)+(I62*Coefficients!$G$5)+(J62*Coefficients!$I$5)+(K62*Coefficients!$K$5)+(L62*Coefficients!$O$5)) -> 
M63: =IF((G63*Coefficients!$B$5)+(H63*Coefficients!$D$5)+(I63*Coefficients!$F$5)+(J63*Coefficients!$H$5)+(K63*Coefficients!$J$5)+(L63*Coefficients!$N$5)=0,"",(G63*Coefficients!$B$5)+(H63*Coefficients!$D$5)+(I63*Coefficients!$F$5)+(J63*Coefficients!$H$5)+(K63*Coefficients!$J$5)+(L63*Coefficients!$N$5)) ->  | Q63: =IF((G63*Coefficients!$C$5)+(H63*Coefficients!$E$5)+(I63*Coefficients!$G$5)+(J63*Coefficients!$I$5)+(K63*Coefficients!$K$5)+(L63*Coefficients!$O$5)=0,"",(G63*Coefficients!$C$5)+(H63*Coefficients!$E$5)+(I63*Coefficients!$G$5)+(J63*Coefficients!$I$5)+(K63*Coefficients!$K$5)+(L63*Coefficients!$O$5)) -> 
M64: =IF((G64*Coefficients!$B$5)+(H64*Coefficients!$D$5)+(I64*Coefficients!$F$5)+(J64*Coefficients!$H$5)+(K64*Coefficients!$J$5)+(L64*Coefficients!$N$5)=0,"",(G64*Coefficients!$B$5)+(H64*Coefficients!$D$5)+(I64*Coefficients!$F$5)+(J64*Coefficients!$H$5)+(K64*Coefficients!$J$5)+(L64*Coefficients!$N$5)) ->  | Q64: =IF((G64*Coefficients!$C$5)+(H64*Coefficients!$E$5)+(I64*Coefficients!$G$5)+(J64*Coefficients!$I$5)+(K64*Coefficients!$K$5)+(L64*Coefficients!$O$5)=0,"",(G64*Coefficients!$C$5)+(H64*Coefficients!$E$5)+(I64*Coefficients!$G$5)+(J64*Coefficients!$I$5)+(K64*Coefficients!$K$5)+(L64*Coefficients!$O$5)) -> 
M65: =IF((G65*Coefficients!$B$5)+(H65*Coefficients!$D$5)+(I65*Coefficients!$F$5)+(J65*Coefficients!$H$5)+(K65*Coefficients!$J$5)+(L65*Coefficients!$N$5)=0,"",(G65*Coefficients!$B$5)+(H65*Coefficients!$D$5)+(I65*Coefficients!$F$5)+(J65*Coefficients!$H$5)+(K65*Coefficients!$J$5)+(L65*Coefficients!$N$5)) ->  | Q65: =IF((G65*Coefficients!$C$5)+(H65*Coefficients!$E$5)+(I65*Coefficients!$G$5)+(J65*Coefficients!$I$5)+(K65*Coefficients!$K$5)+(L65*Coefficients!$O$5)=0,"",(G65*Coefficients!$C$5)+(H65*Coefficients!$E$5)+(I65*Coefficients!$G$5)+(J65*Coefficients!$I$5)+(K65*Coefficients!$K$5)+(L65*Coefficients!$O$5)) -> 
M66: =IF((G66*Coefficients!$B$5)+(H66*Coefficients!$D$5)+(I66*Coefficients!$F$5)+(J66*Coefficients!$H$5)+(K66*Coefficients!$J$5)+(L66*Coefficients!$N$5)=0,"",(G66*Coefficients!$B$5)+(H66*Coefficients!$D$5)+(I66*Coefficients!$F$5)+(J66*Coefficients!$H$5)+(K66*Coefficients!$J$5)+(L66*Coefficients!$N$5)) ->  | Q66: =IF((G66*Coefficients!$C$5)+(H66*Coefficients!$E$5)+(I66*Coefficients!$G$5)+(J66*Coefficients!$I$5)+(K66*Coefficients!$K$5)+(L66*Coefficients!$O$5)=0,"",(G66*Coefficients!$C$5)+(H66*Coefficients!$E$5)+(I66*Coefficients!$G$5)+(J66*Coefficients!$I$5)+(K66*Coefficients!$K$5)+(L66*Coefficients!$O$5)) -> 
M67: =IF((G67*Coefficients!$B$5)+(H67*Coefficients!$D$5)+(I67*Coefficients!$F$5)+(J67*Coefficients!$H$5)+(K67*Coefficients!$J$5)+(L67*Coefficients!$N$5)=0,"",(G67*Coefficients!$B$5)+(H67*Coefficients!$D$5)+(I67*Coefficients!$F$5)+(J67*Coefficients!$H$5)+(K67*Coefficients!$J$5)+(L67*Coefficients!$N$5)) ->  | Q67: =IF((G67*Coefficients!$C$5)+(H67*Coefficients!$E$5)+(I67*Coefficients!$G$5)+(J67*Coefficients!$I$5)+(K67*Coefficients!$K$5)+(L67*Coefficients!$O$5)=0,"",(G67*Coefficients!$C$5)+(H67*Coefficients!$E$5)+(I67*Coefficients!$G$5)+(J67*Coefficients!$I$5)+(K67*Coefficients!$K$5)+(L67*Coefficients!$O$5)) -> 
M68: =IF((G68*Coefficients!$B$5)+(H68*Coefficients!$D$5)+(I68*Coefficients!$F$5)+(J68*Coefficients!$H$5)+(K68*Coefficients!$J$5)+(L68*Coefficients!$N$5)=0,"",(G68*Coefficients!$B$5)+(H68*Coefficients!$D$5)+(I68*Coefficients!$F$5)+(J68*Coefficients!$H$5)+(K68*Coefficients!$J$5)+(L68*Coefficients!$N$5)) ->  | Q68: =IF((G68*Coefficients!$C$5)+(H68*Coefficients!$E$5)+(I68*Coefficients!$G$5)+(J68*Coefficients!$I$5)+(K68*Coefficients!$K$5)+(L68*Coefficients!$O$5)=0,"",(G68*Coefficients!$C$5)+(H68*Coefficients!$E$5)+(I68*Coefficients!$G$5)+(J68*Coefficients!$I$5)+(K68*Coefficients!$K$5)+(L68*Coefficients!$O$5)) -> 
M69: =IF((G69*Coefficients!$B$5)+(H69*Coefficients!$D$5)+(I69*Coefficients!$F$5)+(J69*Coefficients!$H$5)+(K69*Coefficients!$J$5)+(L69*Coefficients!$N$5)=0,"",(G69*Coefficients!$B$5)+(H69*Coefficients!$D$5)+(I69*Coefficients!$F$5)+(J69*Coefficients!$H$5)+(K69*Coefficients!$J$5)+(L69*Coefficients!$N$5)) ->  | Q69: =IF((G69*Coefficients!$C$5)+(H69*Coefficients!$E$5)+(I69*Coefficients!$G$5)+(J69*Coefficients!$I$5)+(K69*Coefficients!$K$5)+(L69*Coefficients!$O$5)=0,"",(G69*Coefficients!$C$5)+(H69*Coefficients!$E$5)+(I69*Coefficients!$G$5)+(J69*Coefficients!$I$5)+(K69*Coefficients!$K$5)+(L69*Coefficients!$O$5)) -> 
M70: =IF((G70*Coefficients!$B$5)+(H70*Coefficients!$D$5)+(I70*Coefficients!$F$5)+(J70*Coefficients!$H$5)+(K70*Coefficients!$J$5)+(L70*Coefficients!$N$5)=0,"",(G70*Coefficients!$B$5)+(H70*Coefficients!$D$5)+(I70*Coefficients!$F$5)+(J70*Coefficients!$H$5)+(K70*Coefficients!$J$5)+(L70*Coefficients!$N$5)) ->  | Q70: =IF((G70*Coefficients!$C$5)+(H70*Coefficients!$E$5)+(I70*Coefficients!$G$5)+(J70*Coefficients!$I$5)+(K70*Coefficients!$K$5)+(L70*Coefficients!$O$5)=0,"",(G70*Coefficients!$C$5)+(H70*Coefficients!$E$5)+(I70*Coefficients!$G$5)+(J70*Coefficients!$I$5)+(K70*Coefficients!$K$5)+(L70*Coefficients!$O$5)) -> 
M71: =IF((G71*Coefficients!$B$5)+(H71*Coefficients!$D$5)+(I71*Coefficients!$F$5)+(J71*Coefficients!$H$5)+(K71*Coefficients!$J$5)+(L71*Coefficients!$N$5)=0,"",(G71*Coefficients!$B$5)+(H71*Coefficients!$D$5)+(I71*Coefficients!$F$5)+(J71*Coefficients!$H$5)+(K71*Coefficients!$J$5)+(L71*Coefficients!$N$5)) ->  | Q71: =IF((G71*Coefficients!$C$5)+(H71*Coefficients!$E$5)+(I71*Coefficients!$G$5)+(J71*Coefficients!$I$5)+(K71*Coefficients!$K$5)+(L71*Coefficients!$O$5)=0,"",(G71*Coefficients!$C$5)+(H71*Coefficients!$E$5)+(I71*Coefficients!$G$5)+(J71*Coefficients!$I$5)+(K71*Coefficients!$K$5)+(L71*Coefficients!$O$5)) -> 
M72: =IF((G72*Coefficients!$B$5)+(H72*Coefficients!$D$5)+(I72*Coefficients!$F$5)+(J72*Coefficients!$H$5)+(K72*Coefficients!$J$5)+(L72*Coefficients!$N$5)=0,"",(G72*Coefficients!$B$5)+(H72*Coefficients!$D$5)+(I72*Coefficients!$F$5)+(J72*Coefficients!$H$5)+(K72*Coefficients!$J$5)+(L72*Coefficients!$N$5)) ->  | Q72: =IF((G72*Coefficients!$C$5)+(H72*Coefficients!$E$5)+(I72*Coefficients!$G$5)+(J72*Coefficients!$I$5)+(K72*Coefficients!$K$5)+(L72*Coefficients!$O$5)=0,"",(G72*Coefficients!$C$5)+(H72*Coefficients!$E$5)+(I72*Coefficients!$G$5)+(J72*Coefficients!$I$5)+(K72*Coefficients!$K$5)+(L72*Coefficients!$O$5)) -> 
M73: =IF((G73*Coefficients!$B$5)+(H73*Coefficients!$D$5)+(I73*Coefficients!$F$5)+(J73*Coefficients!$H$5)+(K73*Coefficients!$J$5)+(L73*Coefficients!$N$5)=0,"",(G73*Coefficients!$B$5)+(H73*Coefficients!$D$5)+(I73*Coefficients!$F$5)+(J73*Coefficients!$H$5)+(K73*Coefficients!$J$5)+(L73*Coefficients!$N$5)) ->  | Q73: =IF((G73*Coefficients!$C$5)+(H73*Coefficients!$E$5)+(I73*Coefficients!$G$5)+(J73*Coefficients!$I$5)+(K73*Coefficients!$K$5)+(L73*Coefficients!$O$5)=0,"",(G73*Coefficients!$C$5)+(H73*Coefficients!$E$5)+(I73*Coefficients!$G$5)+(J73*Coefficients!$I$5)+(K73*Coefficients!$K$5)+(L73*Coefficients!$O$5)) -> 
M74: =IF((G74*Coefficients!$B$5)+(H74*Coefficients!$D$5)+(I74*Coefficients!$F$5)+(J74*Coefficients!$H$5)+(K74*Coefficients!$J$5)+(L74*Coefficients!$N$5)=0,"",(G74*Coefficients!$B$5)+(H74*Coefficients!$D$5)+(I74*Coefficients!$F$5)+(J74*Coefficients!$H$5)+(K74*Coefficients!$J$5)+(L74*Coefficients!$N$5)) ->  | Q74: =IF((G74*Coefficients!$C$5)+(H74*Coefficients!$E$5)+(I74*Coefficients!$G$5)+(J74*Coefficients!$I$5)+(K74*Coefficients!$K$5)+(L74*Coefficients!$O$5)=0,"",(G74*Coefficients!$C$5)+(H74*Coefficients!$E$5)+(I74*Coefficients!$G$5)+(J74*Coefficients!$I$5)+(K74*Coefficients!$K$5)+(L74*Coefficients!$O$5)) -> 
M75: =IF((G75*Coefficients!$B$5)+(H75*Coefficients!$D$5)+(I75*Coefficients!$F$5)+(J75*Coefficients!$H$5)+(K75*Coefficients!$J$5)+(L75*Coefficients!$N$5)=0,"",(G75*Coefficients!$B$5)+(H75*Coefficients!$D$5)+(I75*Coefficients!$F$5)+(J75*Coefficients!$H$5)+(K75*Coefficients!$J$5)+(L75*Coefficients!$N$5)) ->  | Q75: =IF((G75*Coefficients!$C$5)+(H75*Coefficients!$E$5)+(I75*Coefficients!$G$5)+(J75*Coefficients!$I$5)+(K75*Coefficients!$K$5)+(L75*Coefficients!$O$5)=0,"",(G75*Coefficients!$C$5)+(H75*Coefficients!$E$5)+(I75*Coefficients!$G$5)+(J75*Coefficients!$I$5)+(K75*Coefficients!$K$5)+(L75*Coefficients!$O$5)) -> 
M76: =IF((G76*Coefficients!$B$5)+(H76*Coefficients!$D$5)+(I76*Coefficients!$F$5)+(J76*Coefficients!$H$5)+(K76*Coefficients!$J$5)+(L76*Coefficients!$N$5)=0,"",(G76*Coefficients!$B$5)+(H76*Coefficients!$D$5)+(I76*Coefficients!$F$5)+(J76*Coefficients!$H$5)+(K76*Coefficients!$J$5)+(L76*Coefficients!$N$5)) ->  | Q76: =IF((G76*Coefficients!$C$5)+(H76*Coefficients!$E$5)+(I76*Coefficients!$G$5)+(J76*Coefficients!$I$5)+(K76*Coefficients!$K$5)+(L76*Coefficients!$O$5)=0,"",(G76*Coefficients!$C$5)+(H76*Coefficients!$E$5)+(I76*Coefficients!$G$5)+(J76*Coefficients!$I$5)+(K76*Coefficients!$K$5)+(L76*Coefficients!$O$5)) -> 
M77: =IF((G77*Coefficients!$B$5)+(H77*Coefficients!$D$5)+(I77*Coefficients!$F$5)+(J77*Coefficients!$H$5)+(K77*Coefficients!$J$5)+(L77*Coefficients!$N$5)=0,"",(G77*Coefficients!$B$5)+(H77*Coefficients!$D$5)+(I77*Coefficients!$F$5)+(J77*Coefficients!$H$5)+(K77*Coefficients!$J$5)+(L77*Coefficients!$N$5)) ->  | Q77: =IF((G77*Coefficients!$C$5)+(H77*Coefficients!$E$5)+(I77*Coefficients!$G$5)+(J77*Coefficients!$I$5)+(K77*Coefficients!$K$5)+(L77*Coefficients!$O$5)=0,"",(G77*Coefficients!$C$5)+(H77*Coefficients!$E$5)+(I77*Coefficients!$G$5)+(J77*Coefficients!$I$5)+(K77*Coefficients!$K$5)+(L77*Coefficients!$O$5)) -> 
M78: =IF((G78*Coefficients!$B$5)+(H78*Coefficients!$D$5)+(I78*Coefficients!$F$5)+(J78*Coefficients!$H$5)+(K78*Coefficients!$J$5)+(L78*Coefficients!$N$5)=0,"",(G78*Coefficients!$B$5)+(H78*Coefficients!$D$5)+(I78*Coefficients!$F$5)+(J78*Coefficients!$H$5)+(K78*Coefficients!$J$5)+(L78*Coefficients!$N$5)) ->  | Q78: =IF((G78*Coefficients!$C$5)+(H78*Coefficients!$E$5)+(I78*Coefficients!$G$5)+(J78*Coefficients!$I$5)+(K78*Coefficients!$K$5)+(L78*Coefficients!$O$5)=0,"",(G78*Coefficients!$C$5)+(H78*Coefficients!$E$5)+(I78*Coefficients!$G$5)+(J78*Coefficients!$I$5)+(K78*Coefficients!$K$5)+(L78*Coefficients!$O$5)) -> 
M79: =IF((G79*Coefficients!$B$5)+(H79*Coefficients!$D$5)+(I79*Coefficients!$F$5)+(J79*Coefficients!$H$5)+(K79*Coefficients!$J$5)+(L79*Coefficients!$N$5)=0,"",(G79*Coefficients!$B$5)+(H79*Coefficients!$D$5)+(I79*Coefficients!$F$5)+(J79*Coefficients!$H$5)+(K79*Coefficients!$J$5)+(L79*Coefficients!$N$5)) ->  | Q79: =IF((G79*Coefficients!$C$5)+(H79*Coefficients!$E$5)+(I79*Coefficients!$G$5)+(J79*Coefficients!$I$5)+(K79*Coefficients!$K$5)+(L79*Coefficients!$O$5)=0,"",(G79*Coefficients!$C$5)+(H79*Coefficients!$E$5)+(I79*Coefficients!$G$5)+(J79*Coefficients!$I$5)+(K79*Coefficients!$K$5)+(L79*Coefficients!$O$5)) -> 
M80: =IF((G80*Coefficients!$B$5)+(H80*Coefficients!$D$5)+(I80*Coefficients!$F$5)+(J80*Coefficients!$H$5)+(K80*Coefficients!$J$5)+(L80*Coefficients!$N$5)=0,"",(G80*Coefficients!$B$5)+(H80*Coefficients!$D$5)+(I80*Coefficients!$F$5)+(J80*Coefficients!$H$5)+(K80*Coefficients!$J$5)+(L80*Coefficients!$N$5)) ->  | Q80: =IF((G80*Coefficients!$C$5)+(H80*Coefficients!$E$5)+(I80*Coefficients!$G$5)+(J80*Coefficients!$I$5)+(K80*Coefficients!$K$5)+(L80*Coefficients!$O$5)=0,"",(G80*Coefficients!$C$5)+(H80*Coefficients!$E$5)+(I80*Coefficients!$G$5)+(J80*Coefficients!$I$5)+(K80*Coefficients!$K$5)+(L80*Coefficients!$O$5)) -> 
M81: =IF((G81*Coefficients!$B$5)+(H81*Coefficients!$D$5)+(I81*Coefficients!$F$5)+(J81*Coefficients!$H$5)+(K81*Coefficients!$J$5)+(L81*Coefficients!$N$5)=0,"",(G81*Coefficients!$B$5)+(H81*Coefficients!$D$5)+(I81*Coefficients!$F$5)+(J81*Coefficients!$H$5)+(K81*Coefficients!$J$5)+(L81*Coefficients!$N$5)) ->  | Q81: =IF((G81*Coefficients!$C$5)+(H81*Coefficients!$E$5)+(I81*Coefficients!$G$5)+(J81*Coefficients!$I$5)+(K81*Coefficients!$K$5)+(L81*Coefficients!$O$5)=0,"",(G81*Coefficients!$C$5)+(H81*Coefficients!$E$5)+(I81*Coefficients!$G$5)+(J81*Coefficients!$I$5)+(K81*Coefficients!$K$5)+(L81*Coefficients!$O$5)) -> 
M82: =IF((G82*Coefficients!$B$5)+(H82*Coefficients!$D$5)+(I82*Coefficients!$F$5)+(J82*Coefficients!$H$5)+(K82*Coefficients!$J$5)+(L82*Coefficients!$N$5)=0,"",(G82*Coefficients!$B$5)+(H82*Coefficients!$D$5)+(I82*Coefficients!$F$5)+(J82*Coefficients!$H$5)+(K82*Coefficients!$J$5)+(L82*Coefficients!$N$5)) ->  | Q82: =IF((G82*Coefficients!$C$5)+(H82*Coefficients!$E$5)+(I82*Coefficients!$G$5)+(J82*Coefficients!$I$5)+(K82*Coefficients!$K$5)+(L82*Coefficients!$O$5)=0,"",(G82*Coefficients!$C$5)+(H82*Coefficients!$E$5)+(I82*Coefficients!$G$5)+(J82*Coefficients!$I$5)+(K82*Coefficients!$K$5)+(L82*Coefficients!$O$5)) -> 
M83: =IF((G83*Coefficients!$B$5)+(H83*Coefficients!$D$5)+(I83*Coefficients!$F$5)+(J83*Coefficients!$H$5)+(K83*Coefficients!$J$5)+(L83*Coefficients!$N$5)=0,"",(G83*Coefficients!$B$5)+(H83*Coefficients!$D$5)+(I83*Coefficients!$F$5)+(J83*Coefficients!$H$5)+(K83*Coefficients!$J$5)+(L83*Coefficients!$N$5)) ->  | P83: =IFERROR(O83/N83,"") ->  | Q83: =IF((G83*Coefficients!$C$5)+(H83*Coefficients!$E$5)+(I83*Coefficients!$G$5)+(J83*Coefficients!$I$5)+(K83*Coefficients!$K$5)+(L83*Coefficients!$O$5)=0,"",(G83*Coefficients!$C$5)+(H83*Coefficients!$E$5)+(I83*Coefficients!$G$5)+(J83*Coefficients!$I$5)+(K83*Coefficients!$K$5)+(L83*Coefficients!$O$5)) -> 
M84: =IF((G84*Coefficients!$B$5)+(H84*Coefficients!$D$5)+(I84*Coefficients!$F$5)+(J84*Coefficients!$H$5)+(K84*Coefficients!$J$5)+(L84*Coefficients!$N$5)=0,"",(G84*Coefficients!$B$5)+(H84*Coefficients!$D$5)+(I84*Coefficients!$F$5)+(J84*Coefficients!$H$5)+(K84*Coefficients!$J$5)+(L84*Coefficients!$N$5)) ->  | Q84: =IF((G84*Coefficients!$C$5)+(H84*Coefficients!$E$5)+(I84*Coefficients!$G$5)+(J84*Coefficients!$I$5)+(K84*Coefficients!$K$5)+(L84*Coefficients!$O$5)=0,"",(G84*Coefficients!$C$5)+(H84*Coefficients!$E$5)+(I84*Coefficients!$G$5)+(J84*Coefficients!$I$5)+(K84*Coefficients!$K$5)+(L84*Coefficients!$O$5)) -> 
M85: =IF((G85*Coefficients!$B$5)+(H85*Coefficients!$D$5)+(I85*Coefficients!$F$5)+(J85*Coefficients!$H$5)+(K85*Coefficients!$J$5)+(L85*Coefficients!$N$5)=0,"",(G85*Coefficients!$B$5)+(H85*Coefficients!$D$5)+(I85*Coefficients!$F$5)+(J85*Coefficients!$H$5)+(K85*Coefficients!$J$5)+(L85*Coefficients!$N$5)) ->  | Q85: =IF((G85*Coefficients!$C$5)+(H85*Coefficients!$E$5)+(I85*Coefficients!$G$5)+(J85*Coefficients!$I$5)+(K85*Coefficients!$K$5)+(L85*Coefficients!$O$5)=0,"",(G85*Coefficients!$C$5)+(H85*Coefficients!$E$5)+(I85*Coefficients!$G$5)+(J85*Coefficients!$I$5)+(K85*Coefficients!$K$5)+(L85*Coefficients!$O$5)) -> 
M86: =IF((G86*Coefficients!$B$5)+(H86*Coefficients!$D$5)+(I86*Coefficients!$F$5)+(J86*Coefficients!$H$5)+(K86*Coefficients!$J$5)+(L86*Coefficients!$N$5)=0,"",(G86*Coefficients!$B$5)+(H86*Coefficients!$D$5)+(I86*Coefficients!$F$5)+(J86*Coefficients!$H$5)+(K86*Coefficients!$J$5)+(L86*Coefficients!$N$5)) ->  | Q86: =IF((G86*Coefficients!$C$5)+(H86*Coefficients!$E$5)+(I86*Coefficients!$G$5)+(J86*Coefficients!$I$5)+(K86*Coefficients!$K$5)+(L86*Coefficients!$O$5)=0,"",(G86*Coefficients!$C$5)+(H86*Coefficients!$E$5)+(I86*Coefficients!$G$5)+(J86*Coefficients!$I$5)+(K86*Coefficients!$K$5)+(L86*Coefficients!$O$5)) -> 
M87: =IF((G87*Coefficients!$B$5)+(H87*Coefficients!$D$5)+(I87*Coefficients!$F$5)+(J87*Coefficients!$H$5)+(K87*Coefficients!$J$5)+(L87*Coefficients!$N$5)=0,"",(G87*Coefficients!$B$5)+(H87*Coefficients!$D$5)+(I87*Coefficients!$F$5)+(J87*Coefficients!$H$5)+(K87*Coefficients!$J$5)+(L87*Coefficients!$N$5)) ->  | Q87: =IF((G87*Coefficients!$C$5)+(H87*Coefficients!$E$5)+(I87*Coefficients!$G$5)+(J87*Coefficients!$I$5)+(K87*Coefficients!$K$5)+(L87*Coefficients!$O$5)=0,"",(G87*Coefficients!$C$5)+(H87*Coefficients!$E$5)+(I87*Coefficients!$G$5)+(J87*Coefficients!$I$5)+(K87*Coefficients!$K$5)+(L87*Coefficients!$O$5)) -> 
M88: =IF((G88*Coefficients!$B$5)+(H88*Coefficients!$D$5)+(I88*Coefficients!$F$5)+(J88*Coefficients!$H$5)+(K88*Coefficients!$J$5)+(L88*Coefficients!$N$5)=0,"",(G88*Coefficients!$B$5)+(H88*Coefficients!$D$5)+(I88*Coefficients!$F$5)+(J88*Coefficients!$H$5)+(K88*Coefficients!$J$5)+(L88*Coefficients!$N$5)) ->  | Q88: =IF((G88*Coefficients!$C$5)+(H88*Coefficients!$E$5)+(I88*Coefficients!$G$5)+(J88*Coefficients!$I$5)+(K88*Coefficients!$K$5)+(L88*Coefficients!$O$5)=0,"",(G88*Coefficients!$C$5)+(H88*Coefficients!$E$5)+(I88*Coefficients!$G$5)+(J88*Coefficients!$I$5)+(K88*Coefficients!$K$5)+(L88*Coefficients!$O$5)) -> 
M89: =IF((G89*Coefficients!$B$5)+(H89*Coefficients!$D$5)+(I89*Coefficients!$F$5)+(J89*Coefficients!$H$5)+(K89*Coefficients!$J$5)+(L89*Coefficients!$N$5)=0,"",(G89*Coefficients!$B$5)+(H89*Coefficients!$D$5)+(I89*Coefficients!$F$5)+(J89*Coefficients!$H$5)+(K89*Coefficients!$J$5)+(L89*Coefficients!$N$5)) ->  | Q89: =IF((G89*Coefficients!$C$5)+(H89*Coefficients!$E$5)+(I89*Coefficients!$G$5)+(J89*Coefficients!$I$5)+(K89*Coefficients!$K$5)+(L89*Coefficients!$O$5)=0,"",(G89*Coefficients!$C$5)+(H89*Coefficients!$E$5)+(I89*Coefficients!$G$5)+(J89*Coefficients!$I$5)+(K89*Coefficients!$K$5)+(L89*Coefficients!$O$5)) -> 
M90: =IF((G90*Coefficients!$B$5)+(H90*Coefficients!$D$5)+(I90*Coefficients!$F$5)+(J90*Coefficients!$H$5)+(K90*Coefficients!$J$5)+(L90*Coefficients!$N$5)=0,"",(G90*Coefficients!$B$5)+(H90*Coefficients!$D$5)+(I90*Coefficients!$F$5)+(J90*Coefficients!$H$5)+(K90*Coefficients!$J$5)+(L90*Coefficients!$N$5)) ->  | Q90: =IF((G90*Coefficients!$C$5)+(H90*Coefficients!$E$5)+(I90*Coefficients!$G$5)+(J90*Coefficients!$I$5)+(K90*Coefficients!$K$5)+(L90*Coefficients!$O$5)=0,"",(G90*Coefficients!$C$5)+(H90*Coefficients!$E$5)+(I90*Coefficients!$G$5)+(J90*Coefficients!$I$5)+(K90*Coefficients!$K$5)+(L90*Coefficients!$O$5)) -> 
M91: =IF((G91*Coefficients!$B$5)+(H91*Coefficients!$D$5)+(I91*Coefficients!$F$5)+(J91*Coefficients!$H$5)+(K91*Coefficients!$J$5)+(L91*Coefficients!$N$5)=0,"",(G91*Coefficients!$B$5)+(H91*Coefficients!$D$5)+(I91*Coefficients!$F$5)+(J91*Coefficients!$H$5)+(K91*Coefficients!$J$5)+(L91*Coefficients!$N$5)) ->  | Q91: =IF((G91*Coefficients!$C$5)+(H91*Coefficients!$E$5)+(I91*Coefficients!$G$5)+(J91*Coefficients!$I$5)+(K91*Coefficients!$K$5)+(L91*Coefficients!$O$5)=0,"",(G91*Coefficients!$C$5)+(H91*Coefficients!$E$5)+(I91*Coefficients!$G$5)+(J91*Coefficients!$I$5)+(K91*Coefficients!$K$5)+(L91*Coefficients!$O$5)) -> 

Sheet Tables 11-12
B2: NYC Carbon Challenge - Commercial Offices
B4: Climate Action Plan Tool Kit
P5: Annual Savings Calculator
P6: Peak Rate (Avg $ per unit energy)
P7: Off-Peak Rate (Avg $ per unit energy)
C8: Tables 11 and 12 | P8: Peak Use Reduction (unit energy per year)
C9: Please fill out the Planned Project Information and estimated Energy Savings in Table 11 below. Tables 11 and 12 will populate automatically as data is added. You may use the Savings Calculator to the right to calculate the Dollars Saved Annually for each measure. | P9: Off-Peak Use Reduction (unit energy per year)
C10: Projected impact of ECMs listed in this table will automatically populate fields in the Wedge Chart. | P10: Savings | R10: =($R$6*$R$8)+($R$7*$R$9) -> 0
C11: *Note: If an ECM will result in the increase of a fuel source, please report this as negative energy savings. | P11: Note: When using this calculator, please
C12: *Note: Please minimize rows F-K by unprotecting sheet and using the "[-]" above row L before copying to your CAP. | P12: copy "Values only" so that the formula does
P13: not copy to the spreadsheet below.
C14: Table 10: Planned Projects and Strategies | S14: Table 11: Total Savings
S15: Option 1: This table will automatically populate based on Table 11.
C16: Planned Project Information | G16: Energy Savings (Please hide before pasting in CAP) | M16: Energy Savings | N16: Cost Savings | Q16: GHG Reductions
C17: Energy Conservation Measure (ECM) Category | D17: Measure Name | E17: Project Description | F17: LL87 Identified Project? | G17: Electric (kWh/yr) | H17: Natural Gas (Therms/yr) | I17: #2 Oil (Gal/yr) | J17: #4 Oil (Gal/yr) | K17: #6 Oil (Gal/yr) | L17: Steam (Mlbs) | M17: Est. Electricity and Fuel Savings (MMBTU/yr) | N17: Dollars Saved Annually ($/yr) | O17: Installation Cost ($) | P17: Simple Payback (Years) | Q17: Est. Carbon Reduction (Mg CO2e/yr) | S17: Total Energy Savings (MMBTU/yr) | T17: Total Dollars Saved Annually ($/yr) | U17: Total Cost of ECMs ($) | V17: Simple Payback (Years) | W17: Est. Carbon Reduction (Mg CO2e/yr) | X17: ="Reduction in Carbon Intensity* "&'Summary of Inputs'!O22 -> Reduction in Carbon Intensity* (lbs CO2e / FTE)
C18: Envelope | D18: Other | E18: New Windows & Walls | G18: 4000000 | L18: 15000 | M18: =IF((G18*Coefficients!$B$5)+(H18*Coefficients!$D$5)+(I18*Coefficients!$F$5)+(J18*Coefficients!$H$5)+(K18*Coefficients!$J$5)+(L18*Coefficients!$N$5)=0,"",(G18*Coefficients!$B$5)+(H18*Coefficients!$D$5)+(I18*Coefficients!$F$5)+(J18*Coefficients!$H$5)+(K18*Coefficients!$J$5)+(L18*Coefficients!$N$5)) -> 58136.25 | P18: =IFERROR(O18/N18,"") ->  | Q18: =IF((G18*Coefficients!$C$5)+(H18*Coefficients!$E$5)+(I18*Coefficients!$G$5)+(J18*Coefficients!$I$5)+(K18*Coefficients!$K$5)+(L18*Coefficients!$O$5)=0,"",(G18*Coefficients!$C$5)+(H18*Coefficients!$E$5)+(I18*Coefficients!$G$5)+(J18*Coefficients!$I$5)+(K18*Coefficients!$K$5)+(L18*Coefficients!$O$5)) -> 2990.258168 | S18: =SUM(M18:M91) -> 181635.2441 | T18: =SUM(N18:N91) -> 0 | U18: =SUM(O18:O91) -> 0 | V18: =IFERROR(U18/T18,"") ->  | W18: =SUM(Q18:Q91) -> 9491.170827 | X18: =IFERROR((W18*2205)/'Summary of Inputs'!P15,"") -> 3170.91389
C19: Lighting | D19: Upgrade Fan/Air Handlers | E19: Low Pressure Drop Air Hadlers | F19: Yes | G19: 1000000 | M19: =IF((G19*Coefficients!$B$5)+(H19*Coefficients!$D$5)+(I19*Coefficients!$F$5)+(J19*Coefficients!$H$5)+(K19*Coefficients!$J$5)+(L19*Coefficients!$N$5)=0,"",(G19*Coefficients!$B$5)+(H19*Coefficients!$D$5)+(I19*Coefficients!$F$5)+(J19*Coefficients!$H$5)+(K19*Coefficients!$J$5)+(L19*Coefficients!$N$5)) -> 9546 | P19: =IFERROR(O19/N19,"") ->  | Q19: =IF((G19*Coefficients!$C$5)+(H19*Coefficients!$E$5)+(I19*Coefficients!$G$5)+(J19*Coefficients!$I$5)+(K19*Coefficients!$K$5)+(L19*Coefficients!$O$5)=0,"",(G19*Coefficients!$C$5)+(H19*Coefficients!$E$5)+(I19*Coefficients!$G$5)+(J19*Coefficients!$I$5)+(K19*Coefficients!$K$5)+(L19*Coefficients!$O$5)) -> 422.7035007 | S19: *Note: Assumes 2012 FTE/SF. Including est. reduction in carbon intensity in the CAP is OPTIONAL.
C20: Cooling_System | D20: Free Night Cooling | E20: Thermal Ice Storage | F20: Yes | G20: -200000 | L20: -174 | M20: =IF((G20*Coefficients!$B$5)+(H20*Coefficients!$D$5)+(I20*Coefficients!$F$5)+(J20*Coefficients!$H$5)+(K20*Coefficients!$J$5)+(L20*Coefficients!$N$5)=0,"",(G20*Coefficients!$B$5)+(H20*Coefficients!$D$5)+(I20*Coefficients!$F$5)+(J20*Coefficients!$H$5)+(K20*Coefficients!$J$5)+(L20*Coefficients!$N$5)) -> -2140.6461 | Q20: =IF((G20*Coefficients!$C$5)+(H20*Coefficients!$E$5)+(I20*Coefficients!$G$5)+(J20*Coefficients!$I$5)+(K20*Coefficients!$K$5)+(L20*Coefficients!$O$5)=0,"",(G20*Coefficients!$C$5)+(H20*Coefficients!$E$5)+(I20*Coefficients!$G$5)+(J20*Coefficients!$I$5)+(K20*Coefficients!$K$5)+(L20*Coefficients!$O$5)) -> -99.61425246
C21: Ventilation | D21: Install Demand Control Ventilation | E21: Demand Control Ventilation with VOC Sensor | F21: Yes | G21: 1500000 | L21: 4000 | M21: =IF((G21*Coefficients!$B$5)+(H21*Coefficients!$D$5)+(I21*Coefficients!$F$5)+(J21*Coefficients!$H$5)+(K21*Coefficients!$J$5)+(L21*Coefficients!$N$5)=0,"",(G21*Coefficients!$B$5)+(H21*Coefficients!$D$5)+(I21*Coefficients!$F$5)+(J21*Coefficients!$H$5)+(K21*Coefficients!$J$5)+(L21*Coefficients!$N$5)) -> 19639.6 | Q21: =IF((G21*Coefficients!$C$5)+(H21*Coefficients!$E$5)+(I21*Coefficients!$G$5)+(J21*Coefficients!$I$5)+(K21*Coefficients!$K$5)+(L21*Coefficients!$O$5)=0,"",(G21*Coefficients!$C$5)+(H21*Coefficients!$E$5)+(I21*Coefficients!$G$5)+(J21*Coefficients!$I$5)+(K21*Coefficients!$K$5)+(L21*Coefficients!$O$5)) -> 980.5736951
C22: Heating_System | D22: Other | E22: Replace Radiators with Hot Water Fan Powered Boxes | F22: Yes | G22: 1500000 | L22: 30000 | M22: =IF((G22*Coefficients!$B$5)+(H22*Coefficients!$D$5)+(I22*Coefficients!$F$5)+(J22*Coefficients!$H$5)+(K22*Coefficients!$J$5)+(L22*Coefficients!$N$5)=0,"",(G22*Coefficients!$B$5)+(H22*Coefficients!$D$5)+(I22*Coefficients!$F$5)+(J22*Coefficients!$H$5)+(K22*Coefficients!$J$5)+(L22*Coefficients!$N$5)) -> 54223.5 | Q22: =IF((G22*Coefficients!$C$5)+(H22*Coefficients!$E$5)+(I22*Coefficients!$G$5)+(J22*Coefficients!$I$5)+(K22*Coefficients!$K$5)+(L22*Coefficients!$O$5)=0,"",(G22*Coefficients!$C$5)+(H22*Coefficients!$E$5)+(I22*Coefficients!$G$5)+(J22*Coefficients!$I$5)+(K22*Coefficients!$K$5)+(L22*Coefficients!$O$5)) -> 3232.943581 | S22: Option 2: If you have calculated your own total energy reductions that takes into account the interaction
C23: Cooling_System | D23: Replace Chiller | E23: Replace Steam Chillers with Electric Chillers | G23: 2000000 | L23: 401 | M23: =IF((G23*Coefficients!$B$5)+(H23*Coefficients!$D$5)+(I23*Coefficients!$F$5)+(J23*Coefficients!$H$5)+(K23*Coefficients!$J$5)+(L23*Coefficients!$N$5)=0,"",(G23*Coefficients!$B$5)+(H23*Coefficients!$D$5)+(I23*Coefficients!$F$5)+(J23*Coefficients!$H$5)+(K23*Coefficients!$J$5)+(L23*Coefficients!$N$5)) -> 19625.39015 | Q23: =IF((G23*Coefficients!$C$5)+(H23*Coefficients!$E$5)+(I23*Coefficients!$G$5)+(J23*Coefficients!$I$5)+(K23*Coefficients!$K$5)+(L23*Coefficients!$O$5)=0,"",(G23*Coefficients!$C$5)+(H23*Coefficients!$E$5)+(I23*Coefficients!$G$5)+(J23*Coefficients!$I$5)+(K23*Coefficients!$K$5)+(L23*Coefficients!$O$5)) -> 880.1454754 | S23: of your planned ECMs, you may fill out the chart below on your own.
C24: Lighting | D24: Other | E24: Lighting replacement | G24: 800000 | L24: 3000 | M24: =IF((G24*Coefficients!$B$5)+(H24*Coefficients!$D$5)+(I24*Coefficients!$F$5)+(J24*Coefficients!$H$5)+(K24*Coefficients!$J$5)+(L24*Coefficients!$N$5)=0,"",(G24*Coefficients!$B$5)+(H24*Coefficients!$D$5)+(I24*Coefficients!$F$5)+(J24*Coefficients!$H$5)+(K24*Coefficients!$J$5)+(L24*Coefficients!$N$5)) -> 11627.25 | Q24: =IF((G24*Coefficients!$C$5)+(H24*Coefficients!$E$5)+(I24*Coefficients!$G$5)+(J24*Coefficients!$I$5)+(K24*Coefficients!$K$5)+(L24*Coefficients!$O$5)=0,"",(G24*Coefficients!$C$5)+(H24*Coefficients!$E$5)+(I24*Coefficients!$G$5)+(J24*Coefficients!$I$5)+(K24*Coefficients!$K$5)+(L24*Coefficients!$O$5)) -> 598.0516336
C25: Lighting | D25: Install Occupancy/Vacancy Sensors | E25: Buildout of New Space | G25: 800000 | L25: 0 | M25: =IF((G25*Coefficients!$B$5)+(H25*Coefficients!$D$5)+(I25*Coefficients!$F$5)+(J25*Coefficients!$H$5)+(K25*Coefficients!$J$5)+(L25*Coefficients!$N$5)=0,"",(G25*Coefficients!$B$5)+(H25*Coefficients!$D$5)+(I25*Coefficients!$F$5)+(J25*Coefficients!$H$5)+(K25*Coefficients!$J$5)+(L25*Coefficients!$N$5)) -> 7636.8 | Q25: =IF((G25*Coefficients!$C$5)+(H25*Coefficients!$E$5)+(I25*Coefficients!$G$5)+(J25*Coefficients!$I$5)+(K25*Coefficients!$K$5)+(L25*Coefficients!$O$5)=0,"",(G25*Coefficients!$C$5)+(H25*Coefficients!$E$5)+(I25*Coefficients!$G$5)+(J25*Coefficients!$I$5)+(K25*Coefficients!$K$5)+(L25*Coefficients!$O$5)) -> 338.1628006 | S25: Total Energy Savings (MMBTU/yr) | T25: Total Dollars Saved Annually ($/yr) | U25: Total Cost of ECMs ($) | V25: Simple Payback (Years) | W25: Est. Carbon Reduction (Mg CO2e/yr) | X25: ="Reduction in Carbon Intensity* "&'Summary of Inputs'!O22 -> Reduction in Carbon Intensity* (lbs CO2e / FTE)
C26: Lighting | D26: Other | E26: Daylighting Controls | G26: 350000 | L26: 0 | M26: =IF((G26*Coefficients!$B$5)+(H26*Coefficients!$D$5)+(I26*Coefficients!$F$5)+(J26*Coefficients!$H$5)+(K26*Coefficients!$J$5)+(L26*Coefficients!$N$5)=0,"",(G26*Coefficients!$B$5)+(H26*Coefficients!$D$5)+(I26*Coefficients!$F$5)+(J26*Coefficients!$H$5)+(K26*Coefficients!$J$5)+(L26*Coefficients!$N$5)) -> 3341.1 | Q26: =IF((G26*Coefficients!$C$5)+(H26*Coefficients!$E$5)+(I26*Coefficients!$G$5)+(J26*Coefficients!$I$5)+(K26*Coefficients!$K$5)+(L26*Coefficients!$O$5)=0,"",(G26*Coefficients!$C$5)+(H26*Coefficients!$E$5)+(I26*Coefficients!$G$5)+(J26*Coefficients!$I$5)+(K26*Coefficients!$K$5)+(L26*Coefficients!$O$5)) -> 147.9462252
M27: =IF((G27*Coefficients!$B$5)+(H27*Coefficients!$D$5)+(I27*Coefficients!$F$5)+(J27*Coefficients!$H$5)+(K27*Coefficients!$J$5)+(L27*Coefficients!$N$5)=0,"",(G27*Coefficients!$B$5)+(H27*Coefficients!$D$5)+(I27*Coefficients!$F$5)+(J27*Coefficients!$H$5)+(K27*Coefficients!$J$5)+(L27*Coefficients!$N$5)) ->  | Q27: =IF((G27*Coefficients!$C$5)+(H27*Coefficients!$E$5)+(I27*Coefficients!$G$5)+(J27*Coefficients!$I$5)+(K27*Coefficients!$K$5)+(L27*Coefficients!$O$5)=0,"",(G27*Coefficients!$C$5)+(H27*Coefficients!$E$5)+(I27*Coefficients!$G$5)+(J27*Coefficients!$I$5)+(K27*Coefficients!$K$5)+(L27*Coefficients!$O$5)) -> 
M28: =IF((G28*Coefficients!$B$5)+(H28*Coefficients!$D$5)+(I28*Coefficients!$F$5)+(J28*Coefficients!$H$5)+(K28*Coefficients!$J$5)+(L28*Coefficients!$N$5)=0,"",(G28*Coefficients!$B$5)+(H28*Coefficients!$D$5)+(I28*Coefficients!$F$5)+(J28*Coefficients!$H$5)+(K28*Coefficients!$J$5)+(L28*Coefficients!$N$5)) ->  | Q28: =IF((G28*Coefficients!$C$5)+(H28*Coefficients!$E$5)+(I28*Coefficients!$G$5)+(J28*Coefficients!$I$5)+(K28*Coefficients!$K$5)+(L28*Coefficients!$O$5)=0,"",(G28*Coefficients!$C$5)+(H28*Coefficients!$E$5)+(I28*Coefficients!$G$5)+(J28*Coefficients!$I$5)+(K28*Coefficients!$K$5)+(L28*Coefficients!$O$5)) -> 
M29: =IF((G29*Coefficients!$B$5)+(H29*Coefficients!$D$5)+(I29*Coefficients!$F$5)+(J29*Coefficients!$H$5)+(K29*Coefficients!$J$5)+(L29*Coefficients!$N$5)=0,"",(G29*Coefficients!$B$5)+(H29*Coefficients!$D$5)+(I29*Coefficients!$F$5)+(J29*Coefficients!$H$5)+(K29*Coefficients!$J$5)+(L29*Coefficients!$N$5)) ->  | Q29: =IF((G29*Coefficients!$C$5)+(H29*Coefficients!$E$5)+(I29*Coefficients!$G$5)+(J29*Coefficients!$I$5)+(K29*Coefficients!$K$5)+(L29*Coefficients!$O$5)=0,"",(G29*Coefficients!$C$5)+(H29*Coefficients!$E$5)+(I29*Coefficients!$G$5)+(J29*Coefficients!$I$5)+(K29*Coefficients!$K$5)+(L29*Coefficients!$O$5)) ->  | S29: *Note: Including the est. reduction in carbon intensity in the CAP is OPTIONAL.
M30: =IF((G30*Coefficients!$B$5)+(H30*Coefficients!$D$5)+(I30*Coefficients!$F$5)+(J30*Coefficients!$H$5)+(K30*Coefficients!$J$5)+(L30*Coefficients!$N$5)=0,"",(G30*Coefficients!$B$5)+(H30*Coefficients!$D$5)+(I30*Coefficients!$F$5)+(J30*Coefficients!$H$5)+(K30*Coefficients!$J$5)+(L30*Coefficients!$N$5)) ->  | Q30: =IF((G30*Coefficients!$C$5)+(H30*Coefficients!$E$5)+(I30*Coefficients!$G$5)+(J30*Coefficients!$I$5)+(K30*Coefficients!$K$5)+(L30*Coefficients!$O$5)=0,"",(G30*Coefficients!$C$5)+(H30*Coefficients!$E$5)+(I30*Coefficients!$G$5)+(J30*Coefficients!$I$5)+(K30*Coefficients!$K$5)+(L30*Coefficients!$O$5)) -> 
M31: =IF((G31*Coefficients!$B$5)+(H31*Coefficients!$D$5)+(I31*Coefficients!$F$5)+(J31*Coefficients!$H$5)+(K31*Coefficients!$J$5)+(L31*Coefficients!$N$5)=0,"",(G31*Coefficients!$B$5)+(H31*Coefficients!$D$5)+(I31*Coefficients!$F$5)+(J31*Coefficients!$H$5)+(K31*Coefficients!$J$5)+(L31*Coefficients!$N$5)) ->  | Q31: =IF((G31*Coefficients!$C$5)+(H31*Coefficients!$E$5)+(I31*Coefficients!$G$5)+(J31*Coefficients!$I$5)+(K31*Coefficients!$K$5)+(L31*Coefficients!$O$5)=0,"",(G31*Coefficients!$C$5)+(H31*Coefficients!$E$5)+(I31*Coefficients!$G$5)+(J31*Coefficients!$I$5)+(K31*Coefficients!$K$5)+(L31*Coefficients!$O$5)) -> 
M32: =IF((G32*Coefficients!$B$5)+(H32*Coefficients!$D$5)+(I32*Coefficients!$F$5)+(J32*Coefficients!$H$5)+(K32*Coefficients!$J$5)+(L32*Coefficients!$N$5)=0,"",(G32*Coefficients!$B$5)+(H32*Coefficients!$D$5)+(I32*Coefficients!$F$5)+(J32*Coefficients!$H$5)+(K32*Coefficients!$J$5)+(L32*Coefficients!$N$5)) ->  | Q32: =IF((G32*Coefficients!$C$5)+(H32*Coefficients!$E$5)+(I32*Coefficients!$G$5)+(J32*Coefficients!$I$5)+(K32*Coefficients!$K$5)+(L32*Coefficients!$O$5)=0,"",(G32*Coefficients!$C$5)+(H32*Coefficients!$E$5)+(I32*Coefficients!$G$5)+(J32*Coefficients!$I$5)+(K32*Coefficients!$K$5)+(L32*Coefficients!$O$5)) -> 
M33: =IF((G33*Coefficients!$B$5)+(H33*Coefficients!$D$5)+(I33*Coefficients!$F$5)+(J33*Coefficients!$H$5)+(K33*Coefficients!$J$5)+(L33*Coefficients!$N$5)=0,"",(G33*Coefficients!$B$5)+(H33*Coefficients!$D$5)+(I33*Coefficients!$F$5)+(J33*Coefficients!$H$5)+(K33*Coefficients!$J$5)+(L33*Coefficients!$N$5)) ->  | Q33: =IF((G33*Coefficients!$C$5)+(H33*Coefficients!$E$5)+(I33*Coefficients!$G$5)+(J33*Coefficients!$I$5)+(K33*Coefficients!$K$5)+(L33*Coefficients!$O$5)=0,"",(G33*Coefficients!$C$5)+(H33*Coefficients!$E$5)+(I33*Coefficients!$G$5)+(J33*Coefficients!$I$5)+(K33*Coefficients!$K$5)+(L33*Coefficients!$O$5)) -> 
M34: =IF((G34*Coefficients!$B$5)+(H34*Coefficients!$D$5)+(I34*Coefficients!$F$5)+(J34*Coefficients!$H$5)+(K34*Coefficients!$J$5)+(L34*Coefficients!$N$5)=0,"",(G34*Coefficients!$B$5)+(H34*Coefficients!$D$5)+(I34*Coefficients!$F$5)+(J34*Coefficients!$H$5)+(K34*Coefficients!$J$5)+(L34*Coefficients!$N$5)) ->  | Q34: =IF((G34*Coefficients!$C$5)+(H34*Coefficients!$E$5)+(I34*Coefficients!$G$5)+(J34*Coefficients!$I$5)+(K34*Coefficients!$K$5)+(L34*Coefficients!$O$5)=0,"",(G34*Coefficients!$C$5)+(H34*Coefficients!$E$5)+(I34*Coefficients!$G$5)+(J34*Coefficients!$I$5)+(K34*Coefficients!$K$5)+(L34*Coefficients!$O$5)) -> 
M35: =IF((G35*Coefficients!$B$5)+(H35*Coefficients!$D$5)+(I35*Coefficients!$F$5)+(J35*Coefficients!$H$5)+(K35*Coefficients!$J$5)+(L35*Coefficients!$N$5)=0,"",(G35*Coefficients!$B$5)+(H35*Coefficients!$D$5)+(I35*Coefficients!$F$5)+(J35*Coefficients!$H$5)+(K35*Coefficients!$J$5)+(L35*Coefficients!$N$5)) ->  | Q35: =IF((G35*Coefficients!$C$5)+(H35*Coefficients!$E$5)+(I35*Coefficients!$G$5)+(J35*Coefficients!$I$5)+(K35*Coefficients!$K$5)+(L35*Coefficients!$O$5)=0,"",(G35*Coefficients!$C$5)+(H35*Coefficients!$E$5)+(I35*Coefficients!$G$5)+(J35*Coefficients!$I$5)+(K35*Coefficients!$K$5)+(L35*Coefficients!$O$5)) -> 
M36: =IF((G36*Coefficients!$B$5)+(H36*Coefficients!$D$5)+(I36*Coefficients!$F$5)+(J36*Coefficients!$H$5)+(K36*Coefficients!$J$5)+(L36*Coefficients!$N$5)=0,"",(G36*Coefficients!$B$5)+(H36*Coefficients!$D$5)+(I36*Coefficients!$F$5)+(J36*Coefficients!$H$5)+(K36*Coefficients!$J$5)+(L36*Coefficients!$N$5)) ->  | Q36: =IF((G36*Coefficients!$C$5)+(H36*Coefficients!$E$5)+(I36*Coefficients!$G$5)+(J36*Coefficients!$I$5)+(K36*Coefficients!$K$5)+(L36*Coefficients!$O$5)=0,"",(G36*Coefficients!$C$5)+(H36*Coefficients!$E$5)+(I36*Coefficients!$G$5)+(J36*Coefficients!$I$5)+(K36*Coefficients!$K$5)+(L36*Coefficients!$O$5)) -> 
M37: =IF((G37*Coefficients!$B$5)+(H37*Coefficients!$D$5)+(I37*Coefficients!$F$5)+(J37*Coefficients!$H$5)+(K37*Coefficients!$J$5)+(L37*Coefficients!$N$5)=0,"",(G37*Coefficients!$B$5)+(H37*Coefficients!$D$5)+(I37*Coefficients!$F$5)+(J37*Coefficients!$H$5)+(K37*Coefficients!$J$5)+(L37*Coefficients!$N$5)) ->  | Q37: =IF((G37*Coefficients!$C$5)+(H37*Coefficients!$E$5)+(I37*Coefficients!$G$5)+(J37*Coefficients!$I$5)+(K37*Coefficients!$K$5)+(L37*Coefficients!$O$5)=0,"",(G37*Coefficients!$C$5)+(H37*Coefficients!$E$5)+(I37*Coefficients!$G$5)+(J37*Coefficients!$I$5)+(K37*Coefficients!$K$5)+(L37*Coefficients!$O$5)) -> 
M38: =IF((G38*Coefficients!$B$5)+(H38*Coefficients!$D$5)+(I38*Coefficients!$F$5)+(J38*Coefficients!$H$5)+(K38*Coefficients!$J$5)+(L38*Coefficients!$N$5)=0,"",(G38*Coefficients!$B$5)+(H38*Coefficients!$D$5)+(I38*Coefficients!$F$5)+(J38*Coefficients!$H$5)+(K38*Coefficients!$J$5)+(L38*Coefficients!$N$5)) ->  | Q38: =IF((G38*Coefficients!$C$5)+(H38*Coefficients!$E$5)+(I38*Coefficients!$G$5)+(J38*Coefficients!$I$5)+(K38*Coefficients!$K$5)+(L38*Coefficients!$O$5)=0,"",(G38*Coefficients!$C$5)+(H38*Coefficients!$E$5)+(I38*Coefficients!$G$5)+(J38*Coefficients!$I$5)+(K38*Coefficients!$K$5)+(L38*Coefficients!$O$5)) -> 
M39: =IF((G39*Coefficients!$B$5)+(H39*Coefficients!$D$5)+(I39*Coefficients!$F$5)+(J39*Coefficients!$H$5)+(K39*Coefficients!$J$5)+(L39*Coefficients!$N$5)=0,"",(G39*Coefficients!$B$5)+(H39*Coefficients!$D$5)+(I39*Coefficients!$F$5)+(J39*Coefficients!$H$5)+(K39*Coefficients!$J$5)+(L39*Coefficients!$N$5)) ->  | Q39: =IF((G39*Coefficients!$C$5)+(H39*Coefficients!$E$5)+(I39*Coefficients!$G$5)+(J39*Coefficients!$I$5)+(K39*Coefficients!$K$5)+(L39*Coefficients!$O$5)=0,"",(G39*Coefficients!$C$5)+(H39*Coefficients!$E$5)+(I39*Coefficients!$G$5)+(J39*Coefficients!$I$5)+(K39*Coefficients!$K$5)+(L39*Coefficients!$O$5)) -> 
M40: =IF((G40*Coefficients!$B$5)+(H40*Coefficients!$D$5)+(I40*Coefficients!$F$5)+(J40*Coefficients!$H$5)+(K40*Coefficients!$J$5)+(L40*Coefficients!$N$5)=0,"",(G40*Coefficients!$B$5)+(H40*Coefficients!$D$5)+(I40*Coefficients!$F$5)+(J40*Coefficients!$H$5)+(K40*Coefficients!$J$5)+(L40*Coefficients!$N$5)) ->  | Q40: =IF((G40*Coefficients!$C$5)+(H40*Coefficients!$E$5)+(I40*Coefficients!$G$5)+(J40*Coefficients!$I$5)+(K40*Coefficients!$K$5)+(L40*Coefficients!$O$5)=0,"",(G40*Coefficients!$C$5)+(H40*Coefficients!$E$5)+(I40*Coefficients!$G$5)+(J40*Coefficients!$I$5)+(K40*Coefficients!$K$5)+(L40*Coefficients!$O$5)) -> 
M41: =IF((G41*Coefficients!$B$5)+(H41*Coefficients!$D$5)+(I41*Coefficients!$F$5)+(J41*Coefficients!$H$5)+(K41*Coefficients!$J$5)+(L41*Coefficients!$N$5)=0,"",(G41*Coefficients!$B$5)+(H41*Coefficients!$D$5)+(I41*Coefficients!$F$5)+(J41*Coefficients!$H$5)+(K41*Coefficients!$J$5)+(L41*Coefficients!$N$5)) ->  | Q41: =IF((G41*Coefficients!$C$5)+(H41*Coefficients!$E$5)+(I41*Coefficients!$G$5)+(J41*Coefficients!$I$5)+(K41*Coefficients!$K$5)+(L41*Coefficients!$O$5)=0,"",(G41*Coefficients!$C$5)+(H41*Coefficients!$E$5)+(I41*Coefficients!$G$5)+(J41*Coefficients!$I$5)+(K41*Coefficients!$K$5)+(L41*Coefficients!$O$5)) -> 
M42: =IF((G42*Coefficients!$B$5)+(H42*Coefficients!$D$5)+(I42*Coefficients!$F$5)+(J42*Coefficients!$H$5)+(K42*Coefficients!$J$5)+(L42*Coefficients!$N$5)=0,"",(G42*Coefficients!$B$5)+(H42*Coefficients!$D$5)+(I42*Coefficients!$F$5)+(J42*Coefficients!$H$5)+(K42*Coefficients!$J$5)+(L42*Coefficients!$N$5)) ->  | Q42: =IF((G42*Coefficients!$C$5)+(H42*Coefficients!$E$5)+(I42*Coefficients!$G$5)+(J42*Coefficients!$I$5)+(K42*Coefficients!$K$5)+(L42*Coefficients!$O$5)=0,"",(G42*Coefficients!$C$5)+(H42*Coefficients!$E$5)+(I42*Coefficients!$G$5)+(J42*Coefficients!$I$5)+(K42*Coefficients!$K$5)+(L42*Coefficients!$O$5)) -> 
M43: =IF((G43*Coefficients!$B$5)+(H43*Coefficients!$D$5)+(I43*Coefficients!$F$5)+(J43*Coefficients!$H$5)+(K43*Coefficients!$J$5)+(L43*Coefficients!$N$5)=0,"",(G43*Coefficients!$B$5)+(H43*Coefficients!$D$5)+(I43*Coefficients!$F$5)+(J43*Coefficients!$H$5)+(K43*Coefficients!$J$5)+(L43*Coefficients!$N$5)) ->  | Q43: =IF((G43*Coefficients!$C$5)+(H43*Coefficients!$E$5)+(I43*Coefficients!$G$5)+(J43*Coefficients!$I$5)+(K43*Coefficients!$K$5)+(L43*Coefficients!$O$5)=0,"",(G43*Coefficients!$C$5)+(H43*Coefficients!$E$5)+(I43*Coefficients!$G$5)+(J43*Coefficients!$I$5)+(K43*Coefficients!$K$5)+(L43*Coefficients!$O$5)) -> 
M44: =IF((G44*Coefficients!$B$5)+(H44*Coefficients!$D$5)+(I44*Coefficients!$F$5)+(J44*Coefficients!$H$5)+(K44*Coefficients!$J$5)+(L44*Coefficients!$N$5)=0,"",(G44*Coefficients!$B$5)+(H44*Coefficients!$D$5)+(I44*Coefficients!$F$5)+(J44*Coefficients!$H$5)+(K44*Coefficients!$J$5)+(L44*Coefficients!$N$5)) ->  | Q44: =IF((G44*Coefficients!$C$5)+(H44*Coefficients!$E$5)+(I44*Coefficients!$G$5)+(J44*Coefficients!$I$5)+(K44*Coefficients!$K$5)+(L44*Coefficients!$O$5)=0,"",(G44*Coefficients!$C$5)+(H44*Coefficients!$E$5)+(I44*Coefficients!$G$5)+(J44*Coefficients!$I$5)+(K44*Coefficients!$K$5)+(L44*Coefficients!$O$5)) -> 
M45: =IF((G45*Coefficients!$B$5)+(H45*Coefficients!$D$5)+(I45*Coefficients!$F$5)+(J45*Coefficients!$H$5)+(K45*Coefficients!$J$5)+(L45*Coefficients!$N$5)=0,"",(G45*Coefficients!$B$5)+(H45*Coefficients!$D$5)+(I45*Coefficients!$F$5)+(J45*Coefficients!$H$5)+(K45*Coefficients!$J$5)+(L45*Coefficients!$N$5)) ->  | Q45: =IF((G45*Coefficients!$C$5)+(H45*Coefficients!$E$5)+(I45*Coefficients!$G$5)+(J45*Coefficients!$I$5)+(K45*Coefficients!$K$5)+(L45*Coefficients!$O$5)=0,"",(G45*Coefficients!$C$5)+(H45*Coefficients!$E$5)+(I45*Coefficients!$G$5)+(J45*Coefficients!$I$5)+(K45*Coefficients!$K$5)+(L45*Coefficients!$O$5)) -> 
M46: =IF((G46*Coefficients!$B$5)+(H46*Coefficients!$D$5)+(I46*Coefficients!$F$5)+(J46*Coefficients!$H$5)+(K46*Coefficients!$J$5)+(L46*Coefficients!$N$5)=0,"",(G46*Coefficients!$B$5)+(H46*Coefficients!$D$5)+(I46*Coefficients!$F$5)+(J46*Coefficients!$H$5)+(K46*Coefficients!$J$5)+(L46*Coefficients!$N$5)) ->  | Q46: =IF((G46*Coefficients!$C$5)+(H46*Coefficients!$E$5)+(I46*Coefficients!$G$5)+(J46*Coefficients!$I$5)+(K46*Coefficients!$K$5)+(L46*Coefficients!$O$5)=0,"",(G46*Coefficients!$C$5)+(H46*Coefficients!$E$5)+(I46*Coefficients!$G$5)+(J46*Coefficients!$I$5)+(K46*Coefficients!$K$5)+(L46*Coefficients!$O$5)) -> 
M47: =IF((G47*Coefficients!$B$5)+(H47*Coefficients!$D$5)+(I47*Coefficients!$F$5)+(J47*Coefficients!$H$5)+(K47*Coefficients!$J$5)+(L47*Coefficients!$N$5)=0,"",(G47*Coefficients!$B$5)+(H47*Coefficients!$D$5)+(I47*Coefficients!$F$5)+(J47*Coefficients!$H$5)+(K47*Coefficients!$J$5)+(L47*Coefficients!$N$5)) ->  | Q47: =IF((G47*Coefficients!$C$5)+(H47*Coefficients!$E$5)+(I47*Coefficients!$G$5)+(J47*Coefficients!$I$5)+(K47*Coefficients!$K$5)+(L47*Coefficients!$O$5)=0,"",(G47*Coefficients!$C$5)+(H47*Coefficients!$E$5)+(I47*Coefficients!$G$5)+(J47*Coefficients!$I$5)+(K47*Coefficients!$K$5)+(L47*Coefficients!$O$5)) -> 
M48: =IF((G48*Coefficients!$B$5)+(H48*Coefficients!$D$5)+(I48*Coefficients!$F$5)+(J48*Coefficients!$H$5)+(K48*Coefficients!$J$5)+(L48*Coefficients!$N$5)=0,"",(G48*Coefficients!$B$5)+(H48*Coefficients!$D$5)+(I48*Coefficients!$F$5)+(J48*Coefficients!$H$5)+(K48*Coefficients!$J$5)+(L48*Coefficients!$N$5)) ->  | Q48: =IF((G48*Coefficients!$C$5)+(H48*Coefficients!$E$5)+(I48*Coefficients!$G$5)+(J48*Coefficients!$I$5)+(K48*Coefficients!$K$5)+(L48*Coefficients!$O$5)=0,"",(G48*Coefficients!$C$5)+(H48*Coefficients!$E$5)+(I48*Coefficients!$G$5)+(J48*Coefficients!$I$5)+(K48*Coefficients!$K$5)+(L48*Coefficients!$O$5)) -> 
M49: =IF((G49*Coefficients!$B$5)+(H49*Coefficients!$D$5)+(I49*Coefficients!$F$5)+(J49*Coefficients!$H$5)+(K49*Coefficients!$J$5)+(L49*Coefficients!$N$5)=0,"",(G49*Coefficients!$B$5)+(H49*Coefficients!$D$5)+(I49*Coefficients!$F$5)+(J49*Coefficients!$H$5)+(K49*Coefficients!$J$5)+(L49*Coefficients!$N$5)) ->  | Q49: =IF((G49*Coefficients!$C$5)+(H49*Coefficients!$E$5)+(I49*Coefficients!$G$5)+(J49*Coefficients!$I$5)+(K49*Coefficients!$K$5)+(L49*Coefficients!$O$5)=0,"",(G49*Coefficients!$C$5)+(H49*Coefficients!$E$5)+(I49*Coefficients!$G$5)+(J49*Coefficients!$I$5)+(K49*Coefficients!$K$5)+(L49*Coefficients!$O$5)) -> 
M50: =IF((G50*Coefficients!$B$5)+(H50*Coefficients!$D$5)+(I50*Coefficients!$F$5)+(J50*Coefficients!$H$5)+(K50*Coefficients!$J$5)+(L50*Coefficients!$N$5)=0,"",(G50*Coefficients!$B$5)+(H50*Coefficients!$D$5)+(I50*Coefficients!$F$5)+(J50*Coefficients!$H$5)+(K50*Coefficients!$J$5)+(L50*Coefficients!$N$5)) ->  | Q50: =IF((G50*Coefficients!$C$5)+(H50*Coefficients!$E$5)+(I50*Coefficients!$G$5)+(J50*Coefficients!$I$5)+(K50*Coefficients!$K$5)+(L50*Coefficients!$O$5)=0,"",(G50*Coefficients!$C$5)+(H50*Coefficients!$E$5)+(I50*Coefficients!$G$5)+(J50*Coefficients!$I$5)+(K50*Coefficients!$K$5)+(L50*Coefficients!$O$5)) -> 
M51: =IF((G51*Coefficients!$B$5)+(H51*Coefficients!$D$5)+(I51*Coefficients!$F$5)+(J51*Coefficients!$H$5)+(K51*Coefficients!$J$5)+(L51*Coefficients!$N$5)=0,"",(G51*Coefficients!$B$5)+(H51*Coefficients!$D$5)+(I51*Coefficients!$F$5)+(J51*Coefficients!$H$5)+(K51*Coefficients!$J$5)+(L51*Coefficients!$N$5)) ->  | Q51: =IF((G51*Coefficients!$C$5)+(H51*Coefficients!$E$5)+(I51*Coefficients!$G$5)+(J51*Coefficients!$I$5)+(K51*Coefficients!$K$5)+(L51*Coefficients!$O$5)=0,"",(G51*Coefficients!$C$5)+(H51*Coefficients!$E$5)+(I51*Coefficients!$G$5)+(J51*Coefficients!$I$5)+(K51*Coefficients!$K$5)+(L51*Coefficients!$O$5)) -> 
M52: =IF((G52*Coefficients!$B$5)+(H52*Coefficients!$D$5)+(I52*Coefficients!$F$5)+(J52*Coefficients!$H$5)+(K52*Coefficients!$J$5)+(L52*Coefficients!$N$5)=0,"",(G52*Coefficients!$B$5)+(H52*Coefficients!$D$5)+(I52*Coefficients!$F$5)+(J52*Coefficients!$H$5)+(K52*Coefficients!$J$5)+(L52*Coefficients!$N$5)) ->  | Q52: =IF((G52*Coefficients!$C$5)+(H52*Coefficients!$E$5)+(I52*Coefficients!$G$5)+(J52*Coefficients!$I$5)+(K52*Coefficients!$K$5)+(L52*Coefficients!$O$5)=0,"",(G52*Coefficients!$C$5)+(H52*Coefficients!$E$5)+(I52*Coefficients!$G$5)+(J52*Coefficients!$I$5)+(K52*Coefficients!$K$5)+(L52*Coefficients!$O$5)) -> 
M53: =IF((G53*Coefficients!$B$5)+(H53*Coefficients!$D$5)+(I53*Coefficients!$F$5)+(J53*Coefficients!$H$5)+(K53*Coefficients!$J$5)+(L53*Coefficients!$N$5)=0,"",(G53*Coefficients!$B$5)+(H53*Coefficients!$D$5)+(I53*Coefficients!$F$5)+(J53*Coefficients!$H$5)+(K53*Coefficients!$J$5)+(L53*Coefficients!$N$5)) ->  | Q53: =IF((G53*Coefficients!$C$5)+(H53*Coefficients!$E$5)+(I53*Coefficients!$G$5)+(J53*Coefficients!$I$5)+(K53*Coefficients!$K$5)+(L53*Coefficients!$O$5)=0,"",(G53*Coefficients!$C$5)+(H53*Coefficients!$E$5)+(I53*Coefficients!$G$5)+(J53*Coefficients!$I$5)+(K53*Coefficients!$K$5)+(L53*Coefficients!$O$5)) -> 
M54: =IF((G54*Coefficients!$B$5)+(H54*Coefficients!$D$5)+(I54*Coefficients!$F$5)+(J54*Coefficients!$H$5)+(K54*Coefficients!$J$5)+(L54*Coefficients!$N$5)=0,"",(G54*Coefficients!$B$5)+(H54*Coefficients!$D$5)+(I54*Coefficients!$F$5)+(J54*Coefficients!$H$5)+(K54*Coefficients!$J$5)+(L54*Coefficients!$N$5)) ->  | Q54: =IF((G54*Coefficients!$C$5)+(H54*Coefficients!$E$5)+(I54*Coefficients!$G$5)+(J54*Coefficients!$I$5)+(K54*Coefficients!$K$5)+(L54*Coefficients!$O$5)=0,"",(G54*Coefficients!$C$5)+(H54*Coefficients!$E$5)+(I54*Coefficients!$G$5)+(J54*Coefficients!$I$5)+(K54*Coefficients!$K$5)+(L54*Coefficients!$O$5)) -> 
M55: =IF((G55*Coefficients!$B$5)+(H55*Coefficients!$D$5)+(I55*Coefficients!$F$5)+(J55*Coefficients!$H$5)+(K55*Coefficients!$J$5)+(L55*Coefficients!$N$5)=0,"",(G55*Coefficients!$B$5)+(H55*Coefficients!$D$5)+(I55*Coefficients!$F$5)+(J55*Coefficients!$H$5)+(K55*Coefficients!$J$5)+(L55*Coefficients!$N$5)) ->  | Q55: =IF((G55*Coefficients!$C$5)+(H55*Coefficients!$E$5)+(I55*Coefficients!$G$5)+(J55*Coefficients!$I$5)+(K55*Coefficients!$K$5)+(L55*Coefficients!$O$5)=0,"",(G55*Coefficients!$C$5)+(H55*Coefficients!$E$5)+(I55*Coefficients!$G$5)+(J55*Coefficients!$I$5)+(K55*Coefficients!$K$5)+(L55*Coefficients!$O$5)) -> 
M56: =IF((G56*Coefficients!$B$5)+(H56*Coefficients!$D$5)+(I56*Coefficients!$F$5)+(J56*Coefficients!$H$5)+(K56*Coefficients!$J$5)+(L56*Coefficients!$N$5)=0,"",(G56*Coefficients!$B$5)+(H56*Coefficients!$D$5)+(I56*Coefficients!$F$5)+(J56*Coefficients!$H$5)+(K56*Coefficients!$J$5)+(L56*Coefficients!$N$5)) ->  | Q56: =IF((G56*Coefficients!$C$5)+(H56*Coefficients!$E$5)+(I56*Coefficients!$G$5)+(J56*Coefficients!$I$5)+(K56*Coefficients!$K$5)+(L56*Coefficients!$O$5)=0,"",(G56*Coefficients!$C$5)+(H56*Coefficients!$E$5)+(I56*Coefficients!$G$5)+(J56*Coefficients!$I$5)+(K56*Coefficients!$K$5)+(L56*Coefficients!$O$5)) -> 
M57: =IF((G57*Coefficients!$B$5)+(H57*Coefficients!$D$5)+(I57*Coefficients!$F$5)+(J57*Coefficients!$H$5)+(K57*Coefficients!$J$5)+(L57*Coefficients!$N$5)=0,"",(G57*Coefficients!$B$5)+(H57*Coefficients!$D$5)+(I57*Coefficients!$F$5)+(J57*Coefficients!$H$5)+(K57*Coefficients!$J$5)+(L57*Coefficients!$N$5)) ->  | Q57: =IF((G57*Coefficients!$C$5)+(H57*Coefficients!$E$5)+(I57*Coefficients!$G$5)+(J57*Coefficients!$I$5)+(K57*Coefficients!$K$5)+(L57*Coefficients!$O$5)=0,"",(G57*Coefficients!$C$5)+(H57*Coefficients!$E$5)+(I57*Coefficients!$G$5)+(J57*Coefficients!$I$5)+(K57*Coefficients!$K$5)+(L57*Coefficients!$O$5)) -> 
M58: =IF((G58*Coefficients!$B$5)+(H58*Coefficients!$D$5)+(I58*Coefficients!$F$5)+(J58*Coefficients!$H$5)+(K58*Coefficients!$J$5)+(L58*Coefficients!$N$5)=0,"",(G58*Coefficients!$B$5)+(H58*Coefficients!$D$5)+(I58*Coefficients!$F$5)+(J58*Coefficients!$H$5)+(K58*Coefficients!$J$5)+(L58*Coefficients!$N$5)) ->  | Q58: =IF((G58*Coefficients!$C$5)+(H58*Coefficients!$E$5)+(I58*Coefficients!$G$5)+(J58*Coefficients!$I$5)+(K58*Coefficients!$K$5)+(L58*Coefficients!$O$5)=0,"",(G58*Coefficients!$C$5)+(H58*Coefficients!$E$5)+(I58*Coefficients!$G$5)+(J58*Coefficients!$I$5)+(K58*Coefficients!$K$5)+(L58*Coefficients!$O$5)) -> 
M59: =IF((G59*Coefficients!$B$5)+(H59*Coefficients!$D$5)+(I59*Coefficients!$F$5)+(J59*Coefficients!$H$5)+(K59*Coefficients!$J$5)+(L59*Coefficients!$N$5)=0,"",(G59*Coefficients!$B$5)+(H59*Coefficients!$D$5)+(I59*Coefficients!$F$5)+(J59*Coefficients!$H$5)+(K59*Coefficients!$J$5)+(L59*Coefficients!$N$5)) ->  | Q59: =IF((G59*Coefficients!$C$5)+(H59*Coefficients!$E$5)+(I59*Coefficients!$G$5)+(J59*Coefficients!$I$5)+(K59*Coefficients!$K$5)+(L59*Coefficients!$O$5)=0,"",(G59*Coefficients!$C$5)+(H59*Coefficients!$E$5)+(I59*Coefficients!$G$5)+(J59*Coefficients!$I$5)+(K59*Coefficients!$K$5)+(L59*Coefficients!$O$5)) -> 
M60: =IF((G60*Coefficients!$B$5)+(H60*Coefficients!$D$5)+(I60*Coefficients!$F$5)+(J60*Coefficients!$H$5)+(K60*Coefficients!$J$5)+(L60*Coefficients!$N$5)=0,"",(G60*Coefficients!$B$5)+(H60*Coefficients!$D$5)+(I60*Coefficients!$F$5)+(J60*Coefficients!$H$5)+(K60*Coefficients!$J$5)+(L60*Coefficients!$N$5)) ->  | Q60: =IF((G60*Coefficients!$C$5)+(H60*Coefficients!$E$5)+(I60*Coefficients!$G$5)+(J60*Coefficients!$I$5)+(K60*Coefficients!$K$5)+(L60*Coefficients!$O$5)=0,"",(G60*Coefficients!$C$5)+(H60*Coefficients!$E$5)+(I60*Coefficients!$G$5)+(J60*Coefficients!$I$5)+(K60*Coefficients!$K$5)+(L60*Coefficients!$O$5)) -> 
M61: =IF((G61*Coefficients!$B$5)+(H61*Coefficients!$D$5)+(I61*Coefficients!$F$5)+(J61*Coefficients!$H$5)+(K61*Coefficients!$J$5)+(L61*Coefficients!$N$5)=0,"",(G61*Coefficients!$B$5)+(H61*Coefficients!$D$5)+(I61*Coefficients!$F$5)+(J61*Coefficients!$H$5)+(K61*Coefficients!$J$5)+(L61*Coefficients!$N$5)) ->  | Q61: =IF((G61*Coefficients!$C$5)+(H61*Coefficients!$E$5)+(I61*Coefficients!$G$5)+(J61*Coefficients!$I$5)+(K61*Coefficients!$K$5)+(L61*Coefficients!$O$5)=0,"",(G61*Coefficients!$C$5)+(H61*Coefficients!$E$5)+(I61*Coefficients!$G$5)+(J61*Coefficients!$I$5)+(K61*Coefficients!$K$5)+(L61*Coefficients!$O$5)) -> 
M62: =IF((G62*Coefficients!$B$5)+(H62*Coefficients!$D$5)+(I62*Coefficients!$F$5)+(J62*Coefficients!$H$5)+(K62*Coefficients!$J$5)+(L62*Coefficients!$N$5)=0,"",(G62*Coefficients!$B$5)+(H62*Coefficients!$D$5)+(I62*Coefficients!$F$5)+(J62*Coefficients!$H$5)+(K62*Coefficients!$J$5)+(L62*Coefficients!$N$5)) ->  | Q62: =IF((G62*Coefficients!$C$5)+(H62*Coefficients!$E$5)+(I62*Coefficients!$G$5)+(J62*Coefficients!$I$5)+(K62*Coefficients!$K$5)+(L62*Coefficients!$O$5)=0,"",(G62*Coefficients!$C$5)+(H62*Coefficients!$E$5)+(I62*Coefficients!$G$5)+(J62*Coefficients!$I$5)+(K62*Coefficients!$K$5)+(L62*Coefficients!$O$5)) -> 
M63: =IF((G63*Coefficients!$B$5)+(H63*Coefficients!$D$5)+(I63*Coefficients!$F$5)+(J63*Coefficients!$H$5)+(K63*Coefficients!$J$5)+(L63*Coefficients!$N$5)=0,"",(G63*Coefficients!$B$5)+(H63*Coefficients!$D$5)+(I63*Coefficients!$F$5)+(J63*Coefficients!$H$5)+(K63*Coefficients!$J$5)+(L63*Coefficients!$N$5)) ->  | Q63: =IF((G63*Coefficients!$C$5)+(H63*Coefficients!$E$5)+(I63*Coefficients!$G$5)+(J63*Coefficients!$I$5)+(K63*Coefficients!$K$5)+(L63*Coefficients!$O$5)=0,"",(G63*Coefficients!$C$5)+(H63*Coefficients!$E$5)+(I63*Coefficients!$G$5)+(J63*Coefficients!$I$5)+(K63*Coefficients!$K$5)+(L63*Coefficients!$O$5)) -> 
M64: =IF((G64*Coefficients!$B$5)+(H64*Coefficients!$D$5)+(I64*Coefficients!$F$5)+(J64*Coefficients!$H$5)+(K64*Coefficients!$J$5)+(L64*Coefficients!$N$5)=0,"",(G64*Coefficients!$B$5)+(H64*Coefficients!$D$5)+(I64*Coefficients!$F$5)+(J64*Coefficients!$H$5)+(K64*Coefficients!$J$5)+(L64*Coefficients!$N$5)) ->  | Q64: =IF((G64*Coefficients!$C$5)+(H64*Coefficients!$E$5)+(I64*Coefficients!$G$5)+(J64*Coefficients!$I$5)+(K64*Coefficients!$K$5)+(L64*Coefficients!$O$5)=0,"",(G64*Coefficients!$C$5)+(H64*Coefficients!$E$5)+(I64*Coefficients!$G$5)+(J64*Coefficients!$I$5)+(K64*Coefficients!$K$5)+(L64*Coefficients!$O$5)) -> 
M65: =IF((G65*Coefficients!$B$5)+(H65*Coefficients!$D$5)+(I65*Coefficients!$F$5)+(J65*Coefficients!$H$5)+(K65*Coefficients!$J$5)+(L65*Coefficients!$N$5)=0,"",(G65*Coefficients!$B$5)+(H65*Coefficients!$D$5)+(I65*Coefficients!$F$5)+(J65*Coefficients!$H$5)+(K65*Coefficients!$J$5)+(L65*Coefficients!$N$5)) ->  | Q65: =IF((G65*Coefficients!$C$5)+(H65*Coefficients!$E$5)+(I65*Coefficients!$G$5)+(J65*Coefficients!$I$5)+(K65*Coefficients!$K$5)+(L65*Coefficients!$O$5)=0,"",(G65*Coefficients!$C$5)+(H65*Coefficients!$E$5)+(I65*Coefficients!$G$5)+(J65*Coefficients!$I$5)+(K65*Coefficients!$K$5)+(L65*Coefficients!$O$5)) -> 
M66: =IF((G66*Coefficients!$B$5)+(H66*Coefficients!$D$5)+(I66*Coefficients!$F$5)+(J66*Coefficients!$H$5)+(K66*Coefficients!$J$5)+(L66*Coefficients!$N$5)=0,"",(G66*Coefficients!$B$5)+(H66*Coefficients!$D$5)+(I66*Coefficients!$F$5)+(J66*Coefficients!$H$5)+(K66*Coefficients!$J$5)+(L66*Coefficients!$N$5)) ->  | Q66: =IF((G66*Coefficients!$C$5)+(H66*Coefficients!$E$5)+(I66*Coefficients!$G$5)+(J66*Coefficients!$I$5)+(K66*Coefficients!$K$5)+(L66*Coefficients!$O$5)=0,"",(G66*Coefficients!$C$5)+(H66*Coefficients!$E$5)+(I66*Coefficients!$G$5)+(J66*Coefficients!$I$5)+(K66*Coefficients!$K$5)+(L66*Coefficients!$O$5)) -> 
M67: =IF((G67*Coefficients!$B$5)+(H67*Coefficients!$D$5)+(I67*Coefficients!$F$5)+(J67*Coefficients!$H$5)+(K67*Coefficients!$J$5)+(L67*Coefficients!$N$5)=0,"",(G67*Coefficients!$B$5)+(H67*Coefficients!$D$5)+(I67*Coefficients!$F$5)+(J67*Coefficients!$H$5)+(K67*Coefficients!$J$5)+(L67*Coefficients!$N$5)) ->  | Q67: =IF((G67*Coefficients!$C$5)+(H67*Coefficients!$E$5)+(I67*Coefficients!$G$5)+(J67*Coefficients!$I$5)+(K67*Coefficients!$K$5)+(L67*Coefficients!$O$5)=0,"",(G67*Coefficients!$C$5)+(H67*Coefficients!$E$5)+(I67*Coefficients!$G$5)+(J67*Coefficients!$I$5)+(K67*Coefficients!$K$5)+(L67*Coefficients!$O$5)) -> 
M68: =IF((G68*Coefficients!$B$5)+(H68*Coefficients!$D$5)+(I68*Coefficients!$F$5)+(J68*Coefficients!$H$5)+(K68*Coefficients!$J$5)+(L68*Coefficients!$N$5)=0,"",(G68*Coefficients!$B$5)+(H68*Coefficients!$D$5)+(I68*Coefficients!$F$5)+(J68*Coefficients!$H$5)+(K68*Coefficients!$J$5)+(L68*Coefficients!$N$5)) ->  | Q68: =IF((G68*Coefficients!$C$5)+(H68*Coefficients!$E$5)+(I68*Coefficients!$G$5)+(J68*Coefficients!$I$5)+(K68*Coefficients!$K$5)+(L68*Coefficients!$O$5)=0,"",(G68*Coefficients!$C$5)+(H68*Coefficients!$E$5)+(I68*Coefficients!$G$5)+(J68*Coefficients!$I$5)+(K68*Coefficients!$K$5)+(L68*Coefficients!$O$5)) -> 
M69: =IF((G69*Coefficients!$B$5)+(H69*Coefficients!$D$5)+(I69*Coefficients!$F$5)+(J69*Coefficients!$H$5)+(K69*Coefficients!$J$5)+(L69*Coefficients!$N$5)=0,"",(G69*Coefficients!$B$5)+(H69*Coefficients!$D$5)+(I69*Coefficients!$F$5)+(J69*Coefficients!$H$5)+(K69*Coefficients!$J$5)+(L69*Coefficients!$N$5)) ->  | Q69: =IF((G69*Coefficients!$C$5)+(H69*Coefficients!$E$5)+(I69*Coefficients!$G$5)+(J69*Coefficients!$I$5)+(K69*Coefficients!$K$5)+(L69*Coefficients!$O$5)=0,"",(G69*Coefficients!$C$5)+(H69*Coefficients!$E$5)+(I69*Coefficients!$G$5)+(J69*Coefficients!$I$5)+(K69*Coefficients!$K$5)+(L69*Coefficients!$O$5)) -> 
M70: =IF((G70*Coefficients!$B$5)+(H70*Coefficients!$D$5)+(I70*Coefficients!$F$5)+(J70*Coefficients!$H$5)+(K70*Coefficients!$J$5)+(L70*Coefficients!$N$5)=0,"",(G70*Coefficients!$B$5)+(H70*Coefficients!$D$5)+(I70*Coefficients!$F$5)+(J70*Coefficients!$H$5)+(K70*Coefficients!$J$5)+(L70*Coefficients!$N$5)) ->  | Q70: =IF((G70*Coefficients!$C$5)+(H70*Coefficients!$E$5)+(I70*Coefficients!$G$5)+(J70*Coefficients!$I$5)+(K70*Coefficients!$K$5)+(L70*Coefficients!$O$5)=0,"",(G70*Coefficients!$C$5)+(H70*Coefficients!$E$5)+(I70*Coefficients!$G$5)+(J70*Coefficients!$I$5)+(K70*Coefficients!$K$5)+(L70*Coefficients!$O$5)) -> 
M71: =IF((G71*Coefficients!$B$5)+(H71*Coefficients!$D$5)+(I71*Coefficients!$F$5)+(J71*Coefficients!$H$5)+(K71*Coefficients!$J$5)+(L71*Coefficients!$N$5)=0,"",(G71*Coefficients!$B$5)+(H71*Coefficients!$D$5)+(I71*Coefficients!$F$5)+(J71*Coefficients!$H$5)+(K71*Coefficients!$J$5)+(L71*Coefficients!$N$5)) ->  | Q71: =IF((G71*Coefficients!$C$5)+(H71*Coefficients!$E$5)+(I71*Coefficients!$G$5)+(J71*Coefficients!$I$5)+(K71*Coefficients!$K$5)+(L71*Coefficients!$O$5)=0,"",(G71*Coefficients!$C$5)+(H71*Coefficients!$E$5)+(I71*Coefficients!$G$5)+(J71*Coefficients!$I$5)+(K71*Coefficients!$K$5)+(L71*Coefficients!$O$5)) -> 
M72: =IF((G72*Coefficients!$B$5)+(H72*Coefficients!$D$5)+(I72*Coefficients!$F$5)+(J72*Coefficients!$H$5)+(K72*Coefficients!$J$5)+(L72*Coefficients!$N$5)=0,"",(G72*Coefficients!$B$5)+(H72*Coefficients!$D$5)+(I72*Coefficients!$F$5)+(J72*Coefficients!$H$5)+(K72*Coefficients!$J$5)+(L72*Coefficients!$N$5)) ->  | Q72: =IF((G72*Coefficients!$C$5)+(H72*Coefficients!$E$5)+(I72*Coefficients!$G$5)+(J72*Coefficients!$I$5)+(K72*Coefficients!$K$5)+(L72*Coefficients!$O$5)=0,"",(G72*Coefficients!$C$5)+(H72*Coefficients!$E$5)+(I72*Coefficients!$G$5)+(J72*Coefficients!$I$5)+(K72*Coefficients!$K$5)+(L72*Coefficients!$O$5)) -> 
M73: =IF((G73*Coefficients!$B$5)+(H73*Coefficients!$D$5)+(I73*Coefficients!$F$5)+(J73*Coefficients!$H$5)+(K73*Coefficients!$J$5)+(L73*Coefficients!$N$5)=0,"",(G73*Coefficients!$B$5)+(H73*Coefficients!$D$5)+(I73*Coefficients!$F$5)+(J73*Coefficients!$H$5)+(K73*Coefficients!$J$5)+(L73*Coefficients!$N$5)) ->  | Q73: =IF((G73*Coefficients!$C$5)+(H73*Coefficients!$E$5)+(I73*Coefficients!$G$5)+(J73*Coefficients!$I$5)+(K73*Coefficients!$K$5)+(L73*Coefficients!$O$5)=0,"",(G73*Coefficients!$C$5)+(H73*Coefficients!$E$5)+(I73*Coefficients!$G$5)+(J73*Coefficients!$I$5)+(K73*Coefficients!$K$5)+(L73*Coefficients!$O$5)) -> 
M74: =IF((G74*Coefficients!$B$5)+(H74*Coefficients!$D$5)+(I74*Coefficients!$F$5)+(J74*Coefficients!$H$5)+(K74*Coefficients!$J$5)+(L74*Coefficients!$N$5)=0,"",(G74*Coefficients!$B$5)+(H74*Coefficients!$D$5)+(I74*Coefficients!$F$5)+(J74*Coefficients!$H$5)+(K74*Coefficients!$J$5)+(L74*Coefficients!$N$5)) ->  | Q74: =IF((G74*Coefficients!$C$5)+(H74*Coefficients!$E$5)+(I74*Coefficients!$G$5)+(J74*Coefficients!$I$5)+(K74*Coefficients!$K$5)+(L74*Coefficients!$O$5)=0,"",(G74*Coefficients!$C$5)+(H74*Coefficients!$E$5)+(I74*Coefficients!$G$5)+(J74*Coefficients!$I$5)+(K74*Coefficients!$K$5)+(L74*Coefficients!$O$5)) -> 
M75: =IF((G75*Coefficients!$B$5)+(H75*Coefficients!$D$5)+(I75*Coefficients!$F$5)+(J75*Coefficients!$H$5)+(K75*Coefficients!$J$5)+(L75*Coefficients!$N$5)=0,"",(G75*Coefficients!$B$5)+(H75*Coefficients!$D$5)+(I75*Coefficients!$F$5)+(J75*Coefficients!$H$5)+(K75*Coefficients!$J$5)+(L75*Coefficients!$N$5)) ->  | Q75: =IF((G75*Coefficients!$C$5)+(H75*Coefficients!$E$5)+(I75*Coefficients!$G$5)+(J75*Coefficients!$I$5)+(K75*Coefficients!$K$5)+(L75*Coefficients!$O$5)=0,"",(G75*Coefficients!$C$5)+(H75*Coefficients!$E$5)+(I75*Coefficients!$G$5)+(J75*Coefficients!$I$5)+(K75*Coefficients!$K$5)+(L75*Coefficients!$O$5)) -> 
M76: =IF((G76*Coefficients!$B$5)+(H76*Coefficients!$D$5)+(I76*Coefficients!$F$5)+(J76*Coefficients!$H$5)+(K76*Coefficients!$J$5)+(L76*Coefficients!$N$5)=0,"",(G76*Coefficients!$B$5)+(H76*Coefficients!$D$5)+(I76*Coefficients!$F$5)+(J76*Coefficients!$H$5)+(K76*Coefficients!$J$5)+(L76*Coefficients!$N$5)) ->  | Q76: =IF((G76*Coefficients!$C$5)+(H76*Coefficients!$E$5)+(I76*Coefficients!$G$5)+(J76*Coefficients!$I$5)+(K76*Coefficients!$K$5)+(L76*Coefficients!$O$5)=0,"",(G76*Coefficients!$C$5)+(H76*Coefficients!$E$5)+(I76*Coefficients!$G$5)+(J76*Coefficients!$I$5)+(K76*Coefficients!$K$5)+(L76*Coefficients!$O$5)) -> 
M77: =IF((G77*Coefficients!$B$5)+(H77*Coefficients!$D$5)+(I77*Coefficients!$F$5)+(J77*Coefficients!$H$5)+(K77*Coefficients!$J$5)+(L77*Coefficients!$N$5)=0,"",(G77*Coefficients!$B$5)+(H77*Coefficients!$D$5)+(I77*Coefficients!$F$5)+(J77*Coefficients!$H$5)+(K77*Coefficients!$J$5)+(L77*Coefficients!$N$5)) ->  | Q77: =IF((G77*Coefficients!$C$5)+(H77*Coefficients!$E$5)+(I77*Coefficients!$G$5)+(J77*Coefficients!$I$5)+(K77*Coefficients!$K$5)+(L77*Coefficients!$O$5)=0,"",(G77*Coefficients!$C$5)+(H77*Coefficients!$E$5)+(I77*Coefficients!$G$5)+(J77*Coefficients!$I$5)+(K77*Coefficients!$K$5)+(L77*Coefficients!$O$5)) -> 
M78: =IF((G78*Coefficients!$B$5)+(H78*Coefficients!$D$5)+(I78*Coefficients!$F$5)+(J78*Coefficients!$H$5)+(K78*Coefficients!$J$5)+(L78*Coefficients!$N$5)=0,"",(G78*Coefficients!$B$5)+(H78*Coefficients!$D$5)+(I78*Coefficients!$F$5)+(J78*Coefficients!$H$5)+(K78*Coefficients!$J$5)+(L78*Coefficients!$N$5)) ->  | Q78: =IF((G78*Coefficients!$C$5)+(H78*Coefficients!$E$5)+(I78*Coefficients!$G$5)+(J78*Coefficients!$I$5)+(K78*Coefficients!$K$5)+(L78*Coefficients!$O$5)=0,"",(G78*Coefficients!$C$5)+(H78*Coefficients!$E$5)+(I78*Coefficients!$G$5)+(J78*Coefficients!$I$5)+(K78*Coefficients!$K$5)+(L78*Coefficients!$O$5)) -> 
M79: =IF((G79*Coefficients!$B$5)+(H79*Coefficients!$D$5)+(I79*Coefficients!$F$5)+(J79*Coefficients!$H$5)+(K79*Coefficients!$J$5)+(L79*Coefficients!$N$5)=0,"",(G79*Coefficients!$B$5)+(H79*Coefficients!$D$5)+(I79*Coefficients!$F$5)+(J79*Coefficients!$H$5)+(K79*Coefficients!$J$5)+(L79*Coefficients!$N$5)) ->  | Q79: =IF((G79*Coefficients!$C$5)+(H79*Coefficients!$E$5)+(I79*Coefficients!$G$5)+(J79*Coefficients!$I$5)+(K79*Coefficients!$K$5)+(L79*Coefficients!$O$5)=0,"",(G79*Coefficients!$C$5)+(H79*Coefficients!$E$5)+(I79*Coefficients!$G$5)+(J79*Coefficients!$I$5)+(K79*Coefficients!$K$5)+(L79*Coefficients!$O$5)) -> 
M80: =IF((G80*Coefficients!$B$5)+(H80*Coefficients!$D$5)+(I80*Coefficients!$F$5)+(J80*Coefficients!$H$5)+(K80*Coefficients!$J$5)+(L80*Coefficients!$N$5)=0,"",(G80*Coefficients!$B$5)+(H80*Coefficients!$D$5)+(I80*Coefficients!$F$5)+(J80*Coefficients!$H$5)+(K80*Coefficients!$J$5)+(L80*Coefficients!$N$5)) ->  | Q80: =IF((G80*Coefficients!$C$5)+(H80*Coefficients!$E$5)+(I80*Coefficients!$G$5)+(J80*Coefficients!$I$5)+(K80*Coefficients!$K$5)+(L80*Coefficients!$O$5)=0,"",(G80*Coefficients!$C$5)+(H80*Coefficients!$E$5)+(I80*Coefficients!$G$5)+(J80*Coefficients!$I$5)+(K80*Coefficients!$K$5)+(L80*Coefficients!$O$5)) -> 
M81: =IF((G81*Coefficients!$B$5)+(H81*Coefficients!$D$5)+(I81*Coefficients!$F$5)+(J81*Coefficients!$H$5)+(K81*Coefficients!$J$5)+(L81*Coefficients!$N$5)=0,"",(G81*Coefficients!$B$5)+(H81*Coefficients!$D$5)+(I81*Coefficients!$F$5)+(J81*Coefficients!$H$5)+(K81*Coefficients!$J$5)+(L81*Coefficients!$N$5)) ->  | Q81: =IF((G81*Coefficients!$C$5)+(H81*Coefficients!$E$5)+(I81*Coefficients!$G$5)+(J81*Coefficients!$I$5)+(K81*Coefficients!$K$5)+(L81*Coefficients!$O$5)=0,"",(G81*Coefficients!$C$5)+(H81*Coefficients!$E$5)+(I81*Coefficients!$G$5)+(J81*Coefficients!$I$5)+(K81*Coefficients!$K$5)+(L81*Coefficients!$O$5)) -> 
M82: =IF((G82*Coefficients!$B$5)+(H82*Coefficients!$D$5)+(I82*Coefficients!$F$5)+(J82*Coefficients!$H$5)+(K82*Coefficients!$J$5)+(L82*Coefficients!$N$5)=0,"",(G82*Coefficients!$B$5)+(H82*Coefficients!$D$5)+(I82*Coefficients!$F$5)+(J82*Coefficients!$H$5)+(K82*Coefficients!$J$5)+(L82*Coefficients!$N$5)) ->  | Q82: =IF((G82*Coefficients!$C$5)+(H82*Coefficients!$E$5)+(I82*Coefficients!$G$5)+(J82*Coefficients!$I$5)+(K82*Coefficients!$K$5)+(L82*Coefficients!$O$5)=0,"",(G82*Coefficients!$C$5)+(H82*Coefficients!$E$5)+(I82*Coefficients!$G$5)+(J82*Coefficients!$I$5)+(K82*Coefficients!$K$5)+(L82*Coefficients!$O$5)) -> 
M83: =IF((G83*Coefficients!$B$5)+(H83*Coefficients!$D$5)+(I83*Coefficients!$F$5)+(J83*Coefficients!$H$5)+(K83*Coefficients!$J$5)+(L83*Coefficients!$N$5)=0,"",(G83*Coefficients!$B$5)+(H83*Coefficients!$D$5)+(I83*Coefficients!$F$5)+(J83*Coefficients!$H$5)+(K83*Coefficients!$J$5)+(L83*Coefficients!$N$5)) ->  | P83: =IFERROR(O83/N83,"") ->  | Q83: =IF((G83*Coefficients!$C$5)+(H83*Coefficients!$E$5)+(I83*Coefficients!$G$5)+(J83*Coefficients!$I$5)+(K83*Coefficients!$K$5)+(L83*Coefficients!$O$5)=0,"",(G83*Coefficients!$C$5)+(H83*Coefficients!$E$5)+(I83*Coefficients!$G$5)+(J83*Coefficients!$I$5)+(K83*Coefficients!$K$5)+(L83*Coefficients!$O$5)) -> 
M84: =IF((G84*Coefficients!$B$5)+(H84*Coefficients!$D$5)+(I84*Coefficients!$F$5)+(J84*Coefficients!$H$5)+(K84*Coefficients!$J$5)+(L84*Coefficients!$N$5)=0,"",(G84*Coefficients!$B$5)+(H84*Coefficients!$D$5)+(I84*Coefficients!$F$5)+(J84*Coefficients!$H$5)+(K84*Coefficients!$J$5)+(L84*Coefficients!$N$5)) ->  | Q84: =IF((G84*Coefficients!$C$5)+(H84*Coefficients!$E$5)+(I84*Coefficients!$G$5)+(J84*Coefficients!$I$5)+(K84*Coefficients!$K$5)+(L84*Coefficients!$O$5)=0,"",(G84*Coefficients!$C$5)+(H84*Coefficients!$E$5)+(I84*Coefficients!$G$5)+(J84*Coefficients!$I$5)+(K84*Coefficients!$K$5)+(L84*Coefficients!$O$5)) -> 
M85: =IF((G85*Coefficients!$B$5)+(H85*Coefficients!$D$5)+(I85*Coefficients!$F$5)+(J85*Coefficients!$H$5)+(K85*Coefficients!$J$5)+(L85*Coefficients!$N$5)=0,"",(G85*Coefficients!$B$5)+(H85*Coefficients!$D$5)+(I85*Coefficients!$F$5)+(J85*Coefficients!$H$5)+(K85*Coefficients!$J$5)+(L85*Coefficients!$N$5)) ->  | Q85: =IF((G85*Coefficients!$C$5)+(H85*Coefficients!$E$5)+(I85*Coefficients!$G$5)+(J85*Coefficients!$I$5)+(K85*Coefficients!$K$5)+(L85*Coefficients!$O$5)=0,"",(G85*Coefficients!$C$5)+(H85*Coefficients!$E$5)+(I85*Coefficients!$G$5)+(J85*Coefficients!$I$5)+(K85*Coefficients!$K$5)+(L85*Coefficients!$O$5)) -> 
M86: =IF((G86*Coefficients!$B$5)+(H86*Coefficients!$D$5)+(I86*Coefficients!$F$5)+(J86*Coefficients!$H$5)+(K86*Coefficients!$J$5)+(L86*Coefficients!$N$5)=0,"",(G86*Coefficients!$B$5)+(H86*Coefficients!$D$5)+(I86*Coefficients!$F$5)+(J86*Coefficients!$H$5)+(K86*Coefficients!$J$5)+(L86*Coefficients!$N$5)) ->  | Q86: =IF((G86*Coefficients!$C$5)+(H86*Coefficients!$E$5)+(I86*Coefficients!$G$5)+(J86*Coefficients!$I$5)+(K86*Coefficients!$K$5)+(L86*Coefficients!$O$5)=0,"",(G86*Coefficients!$C$5)+(H86*Coefficients!$E$5)+(I86*Coefficients!$G$5)+(J86*Coefficients!$I$5)+(K86*Coefficients!$K$5)+(L86*Coefficients!$O$5)) -> 
M87: =IF((G87*Coefficients!$B$5)+(H87*Coefficients!$D$5)+(I87*Coefficients!$F$5)+(J87*Coefficients!$H$5)+(K87*Coefficients!$J$5)+(L87*Coefficients!$N$5)=0,"",(G87*Coefficients!$B$5)+(H87*Coefficients!$D$5)+(I87*Coefficients!$F$5)+(J87*Coefficients!$H$5)+(K87*Coefficients!$J$5)+(L87*Coefficients!$N$5)) ->  | Q87: =IF((G87*Coefficients!$C$5)+(H87*Coefficients!$E$5)+(I87*Coefficients!$G$5)+(J87*Coefficients!$I$5)+(K87*Coefficients!$K$5)+(L87*Coefficients!$O$5)=0,"",(G87*Coefficients!$C$5)+(H87*Coefficients!$E$5)+(I87*Coefficients!$G$5)+(J87*Coefficients!$I$5)+(K87*Coefficients!$K$5)+(L87*Coefficients!$O$5)) -> 
M88: =IF((G88*Coefficients!$B$5)+(H88*Coefficients!$D$5)+(I88*Coefficients!$F$5)+(J88*Coefficients!$H$5)+(K88*Coefficients!$J$5)+(L88*Coefficients!$N$5)=0,"",(G88*Coefficients!$B$5)+(H88*Coefficients!$D$5)+(I88*Coefficients!$F$5)+(J88*Coefficients!$H$5)+(K88*Coefficients!$J$5)+(L88*Coefficients!$N$5)) ->  | Q88: =IF((G88*Coefficients!$C$5)+(H88*Coefficients!$E$5)+(I88*Coefficients!$G$5)+(J88*Coefficients!$I$5)+(K88*Coefficients!$K$5)+(L88*Coefficients!$O$5)=0,"",(G88*Coefficients!$C$5)+(H88*Coefficients!$E$5)+(I88*Coefficients!$G$5)+(J88*Coefficients!$I$5)+(K88*Coefficients!$K$5)+(L88*Coefficients!$O$5)) -> 
M89: =IF((G89*Coefficients!$B$5)+(H89*Coefficients!$D$5)+(I89*Coefficients!$F$5)+(J89*Coefficients!$H$5)+(K89*Coefficients!$J$5)+(L89*Coefficients!$N$5)=0,"",(G89*Coefficients!$B$5)+(H89*Coefficients!$D$5)+(I89*Coefficients!$F$5)+(J89*Coefficients!$H$5)+(K89*Coefficients!$J$5)+(L89*Coefficients!$N$5)) ->  | Q89: =IF((G89*Coefficients!$C$5)+(H89*Coefficients!$E$5)+(I89*Coefficients!$G$5)+(J89*Coefficients!$I$5)+(K89*Coefficients!$K$5)+(L89*Coefficients!$O$5)=0,"",(G89*Coefficients!$C$5)+(H89*Coefficients!$E$5)+(I89*Coefficients!$G$5)+(J89*Coefficients!$I$5)+(K89*Coefficients!$K$5)+(L89*Coefficients!$O$5)) -> 
M90: =IF((G90*Coefficients!$B$5)+(H90*Coefficients!$D$5)+(I90*Coefficients!$F$5)+(J90*Coefficients!$H$5)+(K90*Coefficients!$J$5)+(L90*Coefficients!$N$5)=0,"",(G90*Coefficients!$B$5)+(H90*Coefficients!$D$5)+(I90*Coefficients!$F$5)+(J90*Coefficients!$H$5)+(K90*Coefficients!$J$5)+(L90*Coefficients!$N$5)) ->  | Q90: =IF((G90*Coefficients!$C$5)+(H90*Coefficients!$E$5)+(I90*Coefficients!$G$5)+(J90*Coefficients!$I$5)+(K90*Coefficients!$K$5)+(L90*Coefficients!$O$5)=0,"",(G90*Coefficients!$C$5)+(H90*Coefficients!$E$5)+(I90*Coefficients!$G$5)+(J90*Coefficients!$I$5)+(K90*Coefficients!$K$5)+(L90*Coefficients!$O$5)) -> 
M91: =IF((G91*Coefficients!$B$5)+(H91*Coefficients!$D$5)+(I91*Coefficients!$F$5)+(J91*Coefficients!$H$5)+(K91*Coefficients!$J$5)+(L91*Coefficients!$N$5)=0,"",(G91*Coefficients!$B$5)+(H91*Coefficients!$D$5)+(I91*Coefficients!$F$5)+(J91*Coefficients!$H$5)+(K91*Coefficients!$J$5)+(L91*Coefficients!$N$5)) ->  | Q91: =IF((G91*Coefficients!$C$5)+(H91*Coefficients!$E$5)+(I91*Coefficients!$G$5)+(J91*Coefficients!$I$5)+(K91*Coefficients!$K$5)+(L91*Coefficients!$O$5)=0,"",(G91*Coefficients!$C$5)+(H91*Coefficients!$E$5)+(I91*Coefficients!$G$5)+(J91*Coefficients!$I$5)+(K91*Coefficients!$K$5)+(L91*Coefficients!$O$5)) -> 

Sheet ECMs (hidden)
A2: ECMs | B2: ECMS | C2: ECMs | D2: ECMs | E2: ECMs | F2: ECMs | G2: ECMs | H2: ECMs | I2: ECMs | J2: ECMs | K2: ECMs | L2: ECMs | M2: ECMs | N2: ECMs | O2: ECMs | P2: ECMs | Q2: ECMs | R2: ECMs | S2: ECMs | T2: ECMs
A3: DD_ECMCategories | B3: Behavior_Change | C3: Conveying_Systems | D3: Cooling_System | E3: Data_Centers_and_Server_Rooms | F3: Distribution_System | G3: Domestic_Hot_Water | H3: Energy_Management_System | I3: Envelope | J3: Fuel_Switching | K3: Heating_System | L3: HVAC_Controls_and_Sensors | M3: Lighting | N3: Motors | O3: On/Off_Site_Generation | P3: Operations&Maintenance | Q3: Process_and_Plug_Loads | R3: Space | S3: Submetering | T3: Ventilation
A4: ECM Categories | B4: ECMs_Behavior Change | C4: ECMs_Conveying Systems | D4: ECMs_Cooling System | E4: Data Centers and Server Rooms | F4: ECMs_Distribution System | G4: ECMs_Domestic Hot Water | H4: ECMs_Energy Management System | I4: ECMs_Envelope | J4: ECMs_Fuel Switching | K4: ECMs_Heating System | L4: ECMs_HVAC Controls and Sensors | M4: ECMs_Lighting | N4: ECMs_Motors | O4: ECMs_On-Site Generation | P4: ECMs_Operations and Maintenance | Q4: ECMs_Process/Plug Loads | R4: ECMs_Space | S4: ECMs_Submetering | T4: ECMs_Ventilation
A5: Behavior_Change | B5: Employee Engagement | C5: Add Elevator Regenerative Drives | D5: Add economizer cycle | E5: Decommissioning Servers | F5: Capture and return condensate | G5: Decrease DHW Temperature | H5: Install Energy Management System | I5: Add Window Films | J5: #2 oil to natural gas | K5: Add static pressure control | L5: Change Set Points / Setbacks - Cooling | M5: Computerized Lighting Control | N5: Install VFDs | O5: Install Cogeneration Plant | P5: Facilities Staff Training | Q5: Automatic Shutdown / Sleep Mode for Computers | R5: Densification | S5: Install Submetering | T5: Convert CV system to VAV system
A6: Operations&Maintenance | B6: Employee Training | C6: Upgrade Controls | D6: Add or upgrade cooling tower | E6: Hot aisle/cold aisle design | F6: Install or Upgrade Master Venting | G6: Install DHW Controls | H6: Other | I6: Exterior Door Replacement | J6: #6 oil or #4 oil to #2 oil | K6: Clean & Tune Boiler/Furnace | L6: Change Set Points / Setbacks - Heating | M6: Delamping | N6: Remove Motors | O6: Install Ground Source Heat Pump | P6: Monitoring | Q6: Drain Water Heat Recovery | R6: Space Layout Optimization | S6: Other | T6: Displacement Ventilation Systems
A7: Conveying_Systems | B7: Other | C7: Upgrade Motors | D7: Free Night Cooling | E7: Eliminate Redundancies | F7: Insulate Ducts | G7: Install Low-Flow Aerators | I7: External Shading | J7: #6 oil or #4 oil to natural gas | K7: Electric to Gas Conversion | L7: Implement Static Pressure Reset | M7: Install Bi-level Lighting | N7: Upgrade Motors | O7: Install Solar/Photovoltaic | P7: Ongoing Commissioning | Q7: Power Management System for Computers | R7: Other | T7: Install CAR Dampers
A8: Cooling_System | C8: Other | D8: Heat recovery - Cooling only | E8: Server Virtualization | F8: Insulate Pipes | G8: Install Low-Flow Showerheads | I8: Increase Insulation - Basement/Crawl Space | J8: #6 to dual fuel | K8: Electric to Hydronic Conversion | L8: Install Indoor Sensors | M8: Install Light Shelves | N8: Other | O8: Other | P8: Retro-Commissioning | Q8: Replace Appliances | T8: Install Demand Control Ventilation
A9: Data_Centers_and_Server_Rooms | D9: Install VSD on Electric Centrifugal Chillers | E9: Upgrade Servers | F9: Repair Leaks | G9: Install Solar Thermal DHW | I9: Increase Insulation - Floor | J9: District steam to on-site generation | K9: Electric to Steam Conversion | L9: Install or Upgrade EMS/BMS | M9: Install Occupancy/Vacancy Sensors | P9: Other | Q9: Replace IT Equipment | T9: Install Exhaust Fan Timers
A10: Distribution_System | D10: Radiant Cooling Systems | E10: Other | F10: Replace or repair Main Steam Trap | G10: Install Water Pressure Booster | I10: Increase Insulation - Roof | J10: Utility steam to on-site generation | K10: Heat recovery - Heating only | L10: Install Programmable Thermostats | M10: Install Photocell Control | Q10: Smart Power Strips | T10: Lower Air Supply Temperatures
A11: Domestic_Hot_Water | D11: Replace Chiller | F11: Replace or repair Steam Traps | G11: Insulate DHW Piping | I11: Increase Insulation - Wall | J11: Other | K11: Heat recovery from Utility Steam | L11: Install TRVs | M11: Install Shades or Blinds | Q11: Timers on Equipment | T11: Upgrade Exhaust Fans
A12: Energy_Management_System | D12: Replace Packaged Units | F12: Replace or repair Vacuum Pump | G12: Insulate DHW Tank | I12: Install Cool or Green Roof | K12: Install Barometric Damper | L12: Pneumatic to DDC conversion | M12: Install Timers | Q12: Other | T12: Upgrade Fan/Air Handlers
A13: Envelope | D13: Upgrade Chiller | F13: Replace PTACs | G13: Replace Piping | I13: Install Radiant Barrier | K13: Install Bleeders | L13: Replace Outdoor Reset | M13: Replace Diffusers | T13: Other
A14: Fuel_Switching | D14: Upgrade Packaged Units | F14: Upgrade PTACs | G14: Replace Tankless Coil | I14: Replace Curtain/Window Wall | K14: Install Circulators | L14: Zone control upgrades | M14: Upgrade Exit Signs to LED
A15: Heating_System | D15: Other | F15: Seal Ducts | G15: Separate DHW from Heating | I15: Replace Glazing and Frames | K15: Install Thermostatic Damper | L15: Other | M15: Upgrade Exterior Lighting
A16: HVAC_Controls_and_Sensors | F16: Upgrade Pumps | G16: Upgrade DHW Boiler | I16: Replace Windows | K16: Insulate Condensate Tank | M16: Upgrade to Fluorescent
A17: Lighting | F17: Other | G17: Other | I17: Sealing - Door | K17: Replace Boiler | M17: Upgrade to LED
A18: Motors | I18: Sealing - Roof Penetrations | K18: Upgrade Boiler | M18: Other
A19: On/Off_Site_Generation | I19: Sealing - Room AC | K19: Replace Boiler Jacket
A20: Process_and_Plug_Loads | I20: Sealing - Vertical Shafts | K20: Replace Burner
A21: Space | I21: Sealing - Windows | K21: Upgrade Burner
A22: Submetering | I22: Utilization of Thermal Mass | K22: Replace Furnace
A23: Ventilation | I23: Other | K23: Upgrade Furnace
A24: Other | K24: Replace Steam Control Valves
K25: Replace Steam Header
K26: Steam to Hydronic Conversion
K27: Other

Sheet Wedge Chart
C2: NYC Carbon Challenge - Commercial Offices
O3: Name | Q3: ='New Inventory'!K3 -> City Hall
C4: Wedge Chart Tool
O5: Submission Year | Q5: ='New Inventory'!$K$5 -> 2015
O7: Base Year | Q7: ='New Inventory'!K7 -> 2007
O9: End Year | Q9: ='Summary of Inputs'!F21 -> 2025
O11: ='New Inventory'!J15 -> Base Year Carbon Intensity (lbs CO2e/FTE) | Q11: ='New Inventory'!K15 -> 10776.1188
O13: ='New Inventory'!J13 -> Submission Year Carbon Intensity (lbs CO2e/SF) | Q13: ='New Inventory'!K13 -> 8004.742978
O15: Business as Usual Growth from Base Year (Percent/Year) | Q15: 0.01
O17: ="Business as Usual Growth from Submission Year "&'Table 1'!D16 -> Business as Usual Growth from Submission Year lbs CO2e/FTE | Q17: =IFERROR(Q13*(1+Q15)^(Q9-Q5),"") -> 8842.216202
O19: ="Business as Usual Growth from Base Year "&'Table 1'!D16 -> Business as Usual Growth from Base Year lbs CO2e/FTE | Q19: =IFERROR(Q11*(1+Q15)^(Q9-Q7),"") -> 12889.8273
O21: Challenge Reduction Goal from Base Year | Q21: =IFERROR('New Inventory'!K11,"") -> 0.5
O23: =TEXT(ChallengeGoal,"##%")&" Reduction Goal "&'Table 1'!D16 -> 50% Reduction Goal lbs CO2e/FTE | Q23: =IFERROR(Base_Intensity*(1-ChallengeGoal),"") -> 5388.059401
E30: ="Achieved Reductions " &'Table 1'!D16 -> Achieved Reductions lbs CO2e/FTE
D31: =Base_Year -> 2007 | E31: ="Carbon Intensity in "&D31 -> Carbon Intensity in 2007 | F31: =IFERROR(VLOOKUP(D31,Summary!$F$60:$W$78,14, FALSE),"") -> 10776.1188
D32: =D31+1 -> 2008 | E32: =IF(D32>Submission_Year,"","Carbon Intensity in "&D32) -> Carbon Intensity in 2008 | F32: =IFERROR(VLOOKUP(D32,Summary!$F$60:$W$78,14, FALSE),"") -> 10808.83768
D33: =D32+1 -> 2009 | E33: Carbon Intensity in 2009 | F33: =IFERROR(VLOOKUP(D33,Summary!$F$60:$W$78,14, FALSE),"") -> 10826.58577
D34: 2010 | E34: Carbon Intensity in 2010 | F34: =IFERROR(VLOOKUP(D34,Summary!$F$60:$W$78,14, FALSE),"") -> 9903.283771
D35: 2011 | E35: Carbon Intensity in 2011 | F35: =IFERROR(VLOOKUP(D35,Summary!$F$60:$W$78,14, FALSE),"") -> 9527.096152
D36: 2012 | E36: Carbon Intensity in 2012 | F36: =IFERROR(VLOOKUP(D36,Summary!$F$60:$W$78,14, FALSE),"") -> 8763.334735
D37: 2013 | E37: Carbon Intensity in 2013 | F37: =IFERROR(VLOOKUP(D37,Summary!$F$60:$W$78,14, FALSE),"") -> 8182.063239
D38: 2014 | E38: Carbon Intensity in 2014 | F38: =IFERROR(VLOOKUP(D38,Summary!$F$60:$W$78,14, FALSE),"") -> 8281.706012
D39: 2015 | E39: =IF(D39>Submission_Year,"","Carbon Intensity in "&D39) -> Carbon Intensity in 2015 | F39: =IFERROR(VLOOKUP(D39,Summary!$F$60:$W$78,14, FALSE),"") -> 8004.742978
D40: 2016 | E40: =IF(D40>Submission_Year,"","Carbon Intensity in "&D40) ->  | F40: =IFERROR(VLOOKUP(D40,Summary!$F$60:$W$78,14, FALSE),"") -> 
D41: 2017 | E41: =IF(D41>Submission_Year,"","Carbon Intensity in "&D41) -> 
E44: Projected Reductions
E45: Energy Conservation Measure (ECM) | F45: Reduction Target (% of current emissions)
E46: Behavior_Change | F46: =IFERROR(-(SUMIF('Tables 11-12'!$C$18:$C$91,E46,'Tables 11-12'!$Q$18:$Q$91)*2203.64)/'Summary of Inputs'!$P$15/10000,"") -> 0
E47: Operations&Maintenance | F47: =IFERROR(-(SUMIF('Tables 11-12'!$C$18:$C$91,E47,'Tables 11-12'!$Q$18:$Q$91)*2203.64)/'Summary of Inputs'!$P$15/10000,"") -> 0
E48: Conveying_Systems | F48: =IFERROR(-(SUMIF('Tables 11-12'!$C$18:$C$91,E48,'Tables 11-12'!$Q$18:$Q$91)*2203.64)/'Summary of Inputs'!$P$15/10000,"") -> 0
E49: Cooling_System | F49: =IFERROR(-(SUMIF('Tables 11-12'!$C$18:$C$91,E49,'Tables 11-12'!$Q$18:$Q$91)*2203.64)/'Summary of Inputs'!$P$15/10000,"") -> -0.02606075491
E50: Data_Centers_and_Server_Rooms | F50: =IFERROR(-(SUMIF('Tables 11-12'!$C$18:$C$91,E50,'Tables 11-12'!$Q$18:$Q$91)*2203.64)/'Summary of Inputs'!$P$15/10000,"") -> 0
E51: Distribution_System | F51: =IFERROR(-(SUMIF('Tables 11-12'!$C$18:$C$91,E51,'Tables 11-12'!$Q$18:$Q$91)*2203.64)/'Summary of Inputs'!$P$15/10000,"") -> 0
E52: Domestic_Hot_Water | F52: =IFERROR(-(SUMIF('Tables 11-12'!$C$18:$C$91,E52,'Tables 11-12'!$Q$18:$Q$91)*2203.64)/'Summary of Inputs'!$P$15/10000,"") -> 0
E53: Energy_Management_System | F53: =IFERROR(-(SUMIF('Tables 11-12'!$C$18:$C$91,E53,'Tables 11-12'!$Q$18:$Q$91)*2203.64)/'Summary of Inputs'!$P$15/10000,"") -> 0
E54: Envelope | F54: =IFERROR(-(SUMIF('Tables 11-12'!$C$18:$C$91,E54,'Tables 11-12'!$Q$18:$Q$91)*2203.64)/'Summary of Inputs'!$P$15/10000,"") -> -0.09984018953
E55: Fuel_Switching | F55: =IFERROR(-(SUMIF('Tables 11-12'!$C$18:$C$91,E55,'Tables 11-12'!$Q$18:$Q$91)*2203.64)/'Summary of Inputs'!$P$15/10000,"") -> 0
E56: Heating_System | F56: =IFERROR(-(SUMIF('Tables 11-12'!$C$18:$C$91,E56,'Tables 11-12'!$Q$18:$Q$91)*2203.64)/'Summary of Inputs'!$P$15/10000,"") -> -0.1079430878
E57: HVAC_Controls_and_Sensors | F57: =IFERROR(-(SUMIF('Tables 11-12'!$C$18:$C$91,E57,'Tables 11-12'!$Q$18:$Q$91)*2203.64)/'Summary of Inputs'!$P$15/10000,"") -> 0
E58: Lighting | F58: =IFERROR(-(SUMIF('Tables 11-12'!$C$18:$C$91,E58,'Tables 11-12'!$Q$18:$Q$91)*2203.64)/'Summary of Inputs'!$P$15/10000,"") -> -0.05031191118
E59: Motors | F59: =IFERROR(-(SUMIF('Tables 11-12'!$C$18:$C$91,E59,'Tables 11-12'!$Q$18:$Q$91)*2203.64)/'Summary of Inputs'!$P$15/10000,"") -> 0
E60: On/Off_Site_Generation | F60: =IFERROR(-(SUMIF('Tables 11-12'!$C$18:$C$91,E60,'Tables 11-12'!$Q$18:$Q$91)*2203.64)/'Summary of Inputs'!$P$15/10000,"") -> 0
E61: Process_and_Plug_Loads | F61: =IFERROR(-(SUMIF('Tables 11-12'!$C$18:$C$91,E61,'Tables 11-12'!$Q$18:$Q$91)*2203.64)/'Summary of Inputs'!$P$15/10000,"") -> 0
E62: Space | F62: =IFERROR(-(SUMIF('Tables 11-12'!$C$18:$C$91,E62,'Tables 11-12'!$Q$18:$Q$91)*2203.64)/'Summary of Inputs'!$P$15/10000,"") -> 0
E63: Submetering | F63: =IFERROR(-(SUMIF('Tables 11-12'!$C$18:$C$91,E63,'Tables 11-12'!$Q$18:$Q$91)*2203.64)/'Summary of Inputs'!$P$15/10000,"") -> 0
E64: Ventilation | F64: =IFERROR(-(SUMIF('Tables 11-12'!$C$18:$C$91,E64,'Tables 11-12'!$Q$18:$Q$91)*2203.64)/'Summary of Inputs'!$P$15/10000,"") -> -0.03273986996
E65: Other | F65: =IFERROR(-(SUMIF('Tables 11-12'!$C$18:$C$91,E65,'Tables 11-12'!$Q$18:$Q$91)*2203.64)/'Summary of Inputs'!$P$15/10000,"") -> 0
E66: ="Total Projected Reductions from "&Submission_Year -> Total Projected Reductions from 2015 | F66: =SUM(F46:F65) -> -0.3168958134
E67: ="Carbon Intensity in "&Submission_Year -> Carbon Intensity in 2015 | F67: =End_Intensity -> 8004.742978
E68: ="Projected Carbon Intensity in "&End_Year -> Projected Carbon Intensity in 2025 | F68: =IFERROR(($F$67+($F$67*F66)),"") -> 5468.073441
E69: ="Total Projected Reduction from "&Base_Year -> Total Projected Reduction from 2007 | F69: =IFERROR((-(Base_Intensity-ProjectedEmissions)/Base_Intensity),"") -> -0.4925748739
M77: Submission | N77: =AM8&" Projection" -> Projection | Q77: Goal | R77: Goal
E78: Years | F78: =Base_Year -> 2007 | G78: =IF(F78>=Submission_Year-1,NA(),F78+1) -> 2008 | H78: 2009 | I78: 2010 | J78: 2011 | K78: 2012 | L78: 2013 | M78: =Submission_Year -> 2015 | N78: =Q9 -> 2025 | Q78: =Q23 -> 5388.059401 | R78: =Q23 -> 5388.059401
E79: [ACTUAL GHG] | F79: =IF(D31>=Submission_Year,NA(),F31) -> 10776.1188 | G79: =IF(D32>=Submission_Year,NA(),F32) -> 10808.83768 | H79: =IF(D33>=Submission_Year,NA(),F33) -> 10826.58577 | I79: =IF(D34>=Submission_Year,NA(),F34) -> 9903.283771 | J79: =IF(D35>=Submission_Year,NA(),F35) -> 9527.096152 | K79: =IF(D36>=Submission_Year,NA(),F36) -> 8763.334735 | L79: =IF(D37>=Submission_Year,NA(),F37) -> 8182.063239 | M79: =End_Intensity -> 8004.742978 | N79: =BAU_Submission -> 8842.216202
E80: Behavior_Change | F80: 0 | M80: 8004.742978 | N80: =IFERROR(N79-O80,"") -> 8842.216202 | O80: =IFERROR(End_Intensity*-F46,"") -> 0
E81: Operations&Maintenance | M81: =End_Intensity -> 8004.742978 | N81: 8842.216202 | O81: 0 | Q81: =Q7 -> 2007 | R81: =Q9 -> 2025
E82: Conveying_Systems | F82: 0 | M82: =End_Intensity -> 8004.742978 | N82: 8842.216202 | O82: 0 | Q82: 63 | R82: =Q19 -> 12889.8273
E83: Cooling_System | F83: 0 | M83: 8004.742978 | N83: 8633.606557 | O83: 208.6096449
E84: Data_Centers_and_Server_Rooms | F84: 0 | M84: 8004.742978 | N84: 8633.606557 | O84: 0
E85: Distribution_System | F85: 0 | M85: 8004.742978 | N85: 8633.606557 | O85: 0
E86: Domestic_Hot_Water | F86: 0 | M86: 8004.742978 | N86: 8633.606557 | O86: 0
E87: Energy_Management_System | F87: 0 | M87: 8004.742978 | N87: 8633.606557 | O87: 0
E88: Envelope | F88: 0 | M88: 8004.742978 | N88: 7834.411501 | O88: 799.1950561
E89: Fuel_Switching | F89: 0 | M89: 8004.742978 | N89: 7834.411501 | O89: 0
E90: Heating_System | F90: 0 | M90: 8004.742978 | N90: 6970.354827 | O90: 864.0566739
E91: HVAC_Controls_and_Sensors | M91: =End_Intensity -> 8004.742978 | N91: 6970.354827 | O91: 0
E92: Lighting | M92: 8004.742978 | N92: 6567.620909 | O92: 402.7339177
E93: Motors | M93: 8004.742978 | N93: 6567.620909 | O93: 0
E94: On/Off_Site_Generation | M94: 8004.742978 | N94: 6567.620909 | O94: 0
E95: Process_and_Plug_Loads | M95: 8004.742978 | N95: 6567.620909 | O95: 0
E96: Space | M96: 8004.742978 | N96: 6567.620909 | O96: 0
E97: Submetering | M97: 8004.742978 | N97: 6567.620909 | O97: 0
E98: Ventilation | M98: 8004.742978 | N98: 6305.546665 | O98: 262.0742442
E99: Other | F99: 0 | M99: 8004.742978 | N99: =IFERROR(N98-O99,"") -> 6305.546665 | O99: 0
E100: Goal | F100: 0 | M100: =ReductionGoal -> 5388.059401 | N100: =ReductionGoal -> 5388.059401
E101: =E107 -> 50% Reduction Goal | F101: =ReductionGoal -> 5388.059401 | G101: =IF(G78=ERROR.TYPE(NA()),NA(),ReductionGoal) -> 5388.059401 | H101: 5388.059401 | I101: 5388.059401 | J101: 5388.059401 | K101: 5388.059401 | L101: 5388.059401 | M101: =ReductionGoal -> 5388.059401 | N101: =ReductionGoal -> 5388.059401
E102: Business as Usual | F102: =Base_Intensity -> 10776.1188 | G102: =IF(G78=ERROR.TYPE(NA()),NA(),Base_Intensity*(1+BAU_Growth)^(G78-$F$78)) -> 10883.87999 | H102: 10992.71879 | I102: 11102.64598 | J102: 11213.67244 | K102: 11325.80916 | L102: 11439.06725 | M102: =Base_Intensity*(1+BAU_Growth)^(M78-$F$78) -> 11668.99251 | N102: =Base_Intensity*(1+BAU_Growth)^(N78-$F$78) -> 12889.8273
E105: 0.3
E106: 0.5
E107: =TEXT(ChallengeGoal,"##%")&" Reduction Goal" -> 50% Reduction Goal

Sheet Property Types (hidden)
B2: Property Types | C2: Space Types
B3: Bank Branch | C3: Bank Branch
B4: Convention Center | C4: Conference Room/Training Room
B5: Data Center | C5: Convention Center
B6: Financial Office | C6: Data Center
B7: Hotel | C7: Enclosed Parking/Garage
B8: Manufacturing/Industrial Plant | C8: Exterior Parking
B9: Medical Office | C9: Financial Office
B10: Mixed Use Property | C10: Fitness Center/Gym
B11: Multifamily Housing | C11: Hotel
B12: Museum | C12: HVAC/Mechanical Rooms
B13: Office | C13: Kitchen
B14: Other | C14: Laboratory
B15: Parking/Garage | C15: Medical Office
B16: Recreation | C16: Multifamily Housing
B17: Residence Hall/Dorm | C17: Museum
B18: Restaurant/Cafeteria | C18: Office
B19: Single Family Home | C19: Other
B20: Theater | C20: Recreation
B21: Warehouse/Storage | C21: Residence Hall/Dorm
B22: Worship Facility | C22: Restaurant/Cafeteria
C23: Retail
C24: Server Room
C25: Swimming Pool
C26: Telecom Room
C27: Theater
C28: Trading Desks
C29: Warehouse/Storage
C30: Worship Facility

Sheet Coefficients (hidden)
A1: OLTPS Year: | B1: 2010
A2: 1 | B2: 2 | C2: 3 | D2: 4 | E2: 5 | F2: 6 | G2: 7 | H2: 8 | I2: 9 | J2: 10 | K2: 11 | L2: 12 | M2: 13 | N2: 14 | O2: 15
B3: Electricity | D3: Natural Gas | F3: #2 Distillate Fuel Oil | H3: #4 Distillate Fuel Oil | J3: #6 Residual Fuel Oil | L3: On-Site Renewable Electricity | N3: Steam
A4: Base Year | B4: MMBtu/unit energy used | C4: Mtons CO2/unit energy used | D4: MMBtu/unit energy used | E4: Mtons CO2/unit energy used | F4: MMBtu/unit energy used | G4: Mtons CO2/unit energy used | H4: MMBtu/unit energy used | I4: Mtons CO2/unit energy used | J4: MMBtu/unit energy used | K4: Mtons CO2/unit energy used | L4: MMBtu/unit energy used | M4: Mtons CO2/unit energy used | N4: MMBtu/unit energy used | O4: Mtons CO2/unit energy used
A5: 2000 | B5: 0.009546 | C5: 0.0004227035007 | D5: 0.1 | E5: 0.0053156 | F5: 0.138 | G5: 0.010264026 | H5: 0.146 | I5: 0.011016722 | J5: 0.15 | K5: 0.01132755 | L5: 0.0034121412 | M5: 0 | N5: 1.33015 | O5: 0.086629611 | P5: Note: It was decided that coefficients would remain constant for the Hospital and University Challenges. 2005 coefficients are used for all years.
A6: 2001 | B6: 0.009546 | C6: 0.0004227035007 | D6: 0.1 | E6: 0.0053156 | F6: 0.138 | G6: 0.010264026 | H6: 0.146 | I6: 0.011016722 | J6: 0.15 | K6: 0.01132755 | L6: 0.0034121412 | M6: 0 | N6: 1.33015 | O6: 0.086629611
A7: 2002 | B7: 0.009546 | C7: 0.0004227035007 | D7: 0.1 | E7: 0.0053156 | F7: 0.138 | G7: 0.010264026 | H7: 0.146 | I7: 0.011016722 | J7: 0.15 | K7: 0.01132755 | L7: 0.0034121412 | M7: 0 | N7: 1.33015 | O7: 0.086629611
A8: 2003 | B8: 0.009546 | C8: 0.0004227035007 | D8: 0.1 | E8: 0.0053156 | F8: 0.138 | G8: 0.010264026 | H8: 0.146 | I8: 0.011016722 | J8: 0.15 | K8: 0.01132755 | L8: 0.0034121412 | M8: 0 | N8: 1.33015 | O8: 0.086629611
A9: 2004 | B9: 0.009546 | C9: 0.0004227035007 | D9: 0.1 | E9: 0.0053156 | F9: 0.138 | G9: 0.010264026 | H9: 0.146 | I9: 0.011016722 | J9: 0.15 | K9: 0.01132755 | L9: 0.0034121412 | M9: 0 | N9: 1.33015 | O9: 0.086629611
A10: 2005 | B10: 0.009546 | C10: 0.0004227035007 | D10: 0.1 | E10: 0.0053156 | F10: 0.138 | G10: 0.010264026 | H10: 0.146 | I10: 0.011016722 | J10: 0.15 | K10: 0.01132755 | L10: 0.0034121412 | M10: 0 | N10: 1.33015 | O10: 0.086629611
A11: 2006 | B11: 0.009546 | C11: 0.0004227035007 | D11: 0.1 | E11: 0.0053156 | F11: 0.138 | G11: 0.010264026 | H11: 0.146 | I11: 0.011016722 | J11: 0.15 | K11: 0.01132755 | L11: 0.0034121412 | M11: 0 | N11: 1.33015 | O11: 0.086629611
A12: 2007 | B12: 0.009546 | C12: 0.0004227035007 | D12: 0.1 | E12: 0.0053156 | F12: 0.138 | G12: 0.010264026 | H12: 0.146 | I12: 0.011016722 | J12: 0.15 | K12: 0.01132755 | L12: 0.0034121412 | M12: 0 | N12: 1.33015 | O12: 0.086629611
A13: 2008 | B13: 0.009546 | C13: 0.0004227035007 | D13: 0.1 | E13: 0.0053156 | F13: 0.138 | G13: 0.010264026 | H13: 0.146 | I13: 0.011016722 | J13: 0.15 | K13: 0.01132755 | L13: 0.0034121412 | M13: 0 | N13: 1.33015 | O13: 0.086629611
A14: 2009 | B14: 0.009546 | C14: 0.0004227035007 | D14: 0.1 | E14: 0.0053156 | F14: 0.138 | G14: 0.010264026 | H14: 0.146 | I14: 0.011016722 | J14: 0.15 | K14: 0.01132755 | L14: 0.0034121412 | M14: 0 | N14: 1.33015 | O14: 0.086629611
A15: 2010 | B15: 0.009546 | C15: 0.0004227035007 | D15: 0.1 | E15: 0.0053156 | F15: 0.138 | G15: 0.010264026 | H15: 0.146 | I15: 0.011016722 | J15: 0.15 | K15: 0.01132755 | L15: 0.0034121412 | M15: 0 | N15: 1.33015 | O15: 0.086629611
A16: 2011 | B16: 0.009546 | C16: 0.0004227035007 | D16: 0.1 | E16: 0.0053156 | F16: 0.138 | G16: 0.010264026 | H16: 0.146 | I16: 0.011016722 | J16: 0.15 | K16: 0.01132755 | L16: 0.0034121412 | M16: 0 | N16: 1.33015 | O16: 0.086629611
A17: 2012 | B17: 0.009546 | C17: 0.0004227035007 | D17: 0.1 | E17: 0.0053156 | F17: 0.138 | G17: 0.010264026 | H17: 0.146 | I17: 0.011016722 | J17: 0.15 | K17: 0.01132755 | L17: 0.0034121412 | M17: 0 | N17: 1.33015 | O17: 0.086629611
A18: 2013 | B18: 0.009546 | C18: 0.0004227035007 | D18: 0.1 | E18: 0.0053156 | F18: 0.138 | G18: 0.010264026 | H18: 0.146 | I18: 0.011016722 | J18: 0.15 | K18: 0.01132755 | L18: 0.0034121412 | M18: 0 | N18: 1.33015 | O18: 0.086629611
A19: 2014 | B19: 0.009546 | C19: 0.0004227035007 | D19: 0.1 | E19: 0.0053156 | F19: 0.138 | G19: 0.010264026 | H19: 0.146 | I19: 0.011016722 | J19: 0.15 | K19: 0.01132755 | L19: 0.0034121412 | M19: 0 | N19: 1.33015 | O19: 0.086629611
A20: 2015 | B20: 0.009546 | C20: 0.0004227035007 | D20: 0.1 | E20: 0.0053156 | F20: 0.138 | G20: 0.010264026 | H20: 0.146 | I20: 0.011016722 | J20: 0.15 | K20: 0.01132755 | L20: 0.0034121412 | M20: 0 | N20: 1.33015 | O20: 0.086629611
A21: 2016 | B21: 0.009546 | C21: 0.0004227035007 | D21: 0.1 | E21: 0.0053156 | F21: 0.138 | G21: 0.010264026 | H21: 0.146 | I21: 0.011016722 | J21: 0.15 | K21: 0.01132755 | L21: 0.0034121412 | M21: 0 | N21: 1.33015 | O21: 0.086629611
A22: 2017 | B22: 0.009546 | C22: 0.0004227035007 | D22: 0.1 | E22: 0.0053156 | F22: 0.138 | G22: 0.010264026 | H22: 0.146 | I22: 0.011016722 | J22: 0.15 | K22: 0.01132755 | L22: 0.0034121412 | M22: 0 | N22: 1.33015 | O22: 0.086629611
A23: 2018 | B23: 0.009546 | C23: 0.0004227035007 | D23: 0.1 | E23: 0.0053156 | F23: 0.138 | G23: 0.010264026 | H23: 0.146 | I23: 0.011016722 | J23: 0.15 | K23: 0.01132755 | L23: 0.0034121412 | M23: 0 | N23: 1.33015 | O23: 0.086629611
A24: 2019 | B24: 0.009546 | C24: 0.0004227035007 | D24: 0.1 | E24: 0.0053156 | F24: 0.138 | G24: 0.010264026 | H24: 0.146 | I24: 0.011016722 | J24: 0.15 | K24: 0.01132755 | L24: 0.0034121412 | M24: 0 | N24: 1.33015 | O24: 0.086629611
A25: 2020 | B25: 0.009546 | C25: 0.0004227035007 | D25: 0.1 | E25: 0.0053156 | F25: 0.138 | G25: 0.010264026 | H25: 0.146 | I25: 0.011016722 | J25: 0.15 | K25: 0.01132755 | L25: 0.0034121412 | M25: 0 | N25: 1.33015 | O25: 0.086629611
B26: Per Mayor's Office Calc | D26: Per LGOP 2010 | F26: Per LGOP 2010 | H26: Per LGOP 2010 | J26: Per LGOP 2010 | L26: Per LGOP 2010
D27: 5.3156 | F27: 10.264026 | H27: 11.016722 | J27: 11.32755 | L27: 12.41380448
D28: kg/therm | F28: kg/gallon | H28: kg/gallon | J28: kg/gallon | L28: kg/gallon
E29: Note: All CO2 factors, are in-fact CO2e
B32: Base year | C32: =VLOOKUP( [4]Inventory!$K$11,A5:O25,3,FALSE) -> 0.0004227035007 | N32: Base year | O32: =VLOOKUP( [4]Inventory!$K$11,A5:O25,15,FALSE) -> 0.086629611
B33: Current Year | C33: =VLOOKUP( [4]Inventory!$K$9,A5:O25,3,FALSE) -> 0.0004227035007 | N33: Current Year | O33: =VLOOKUP( [4]Inventory!$K$9,A5:O25,15,FALSE) -> 0.086629611
B34: E Coefficientnct % Change to date | C34: =-($C$32-$C$33)/$C$32 -> 0 | N34: Steam Coefficient % Change to date | O34: =-($O$32-$O$33)/$O$32 -> 0
B37: Submission Year - Electricity portion of Carbon Intensity | C37: =[4]Summary!$AM$65 -> 7.625955429 | N37: Change in Electricy Portion of Carbon Intensity from Base Year to Current Year | O37: =[4]Summary!$AS$65 -> 0.6946119718
B39: Total Electricity Emission Intensity reduction due coefficient change | C39: =PRODUCT(C$34,C$37) -> 0 | O39: =PRODUCT(O$34,O$37) -> 0
B42: Total Benefit to Carbon Intensity of Emission Coefficient Change | C42: =SUM(C39,O39) -> 0
